Workbook

Sheet Sine
B1: Visualizing Trig Substitutions
C3: This DIGMath spreadsheet lets you
C4: visualize the process of
C5: Integration with Trig Substitutions
C6: for a function of the form:
A11: What is the value of the constant a? | D11: 3
A13: What is the value of the constant b? | D13: 2
J14: Pick a tracing point x0 = | M14: =a+K15*dx -> 0.5
A15: Your subsitution is then x = | D15: =TEXT(a0/b0,"0.00") -> 1.50 | K15: 150
C16: so that dx = | D16: =TEXT(a0/b0,"0.00") -> 1.50
J17: The corresponding transformed point is | P17: =LOOKUP(x0,Sheet2!C3:C202,Sheet2!F3:F202) -> 0.3327745999 | Q17: = q
A18: What is the interval for x for display? | D18: =" It must be within "&TEXT(-a0/b0,"0.00")& " to "&TEXT(a0/b0,"0.00") -> It must be within -1.50 to 1.50
C19: xMin = | D19: -1 | E19: =IF(a<-a0/b0,"Must be larger than "&TEXT(-a0/b0,"0.00"),"") ->  | J19: The area from x = | L19: =a -> -1 | M19: to x = | N19: =x0 -> 0.5 | O19: = | P19: =LOOKUP(x0+dx/2,Sheet2!$C$3:$C$203,Sheet2!E$3:E$203) -> 0.535
C20: xMax = | D20: 1 | E20: =IF(b>a0/b0,"Must be smaller than "&TEXT(a0/b0,"0.00"),"") -> 
B22: This corresponds to: | P22: The area under the transformed graph
C23: q Min = | D23: =theta0 -> -0.730 | E23: radians | P23: from q = | Q23: =theta0 -> -0.730 | R23: to q = | S23: =th0 -> 0.333
C24: q Max = | D24: =theta00 -> 0.730 | E24: radians | Q24: is about | R24: =LOOKUP(ATAN(b0/a0*x0)+0.001,Sheet2!F3:F203,Sheet2!H3:H203) -> 0.524
A27: Click each item below for suggestions and investigations
C28: Item 1
C29: Item 2
C30: Item 3
C31: Item 4
C32: Item 5
I34: The area = | K34: =LOOKUP(x0+dx/2,Sheet2!$C$3:$C$203,Sheet2!F3:F203) -> 0.340
A35: To access/download all the DIGMath Apps for Calculus
A36: Click this link: | C36: DIGMath for Calculus
A38: Created by: Sheldon P. Gordon
A39: Farmingdale State College
A40: Development of this module was supported by the
A41: NSF's Division of Undergraduate Education
A42: under grants DUE-0310123 and DUE-0442160.

Sheet Tangent
B1: Visualizing Trig Substitutions
C3: This DIGMath spreadsheet lets you
C4: visualize the process of
C5: Integration with Trig Substitutions
C6: for a function of the form:
A11: What is the value of the constant a? | D11: 3
A13: What is the value of the constant b? | D13: 2
J14: Pick a tracing point x0 = | M14: =aa+K15*dxx -> 1
A15: Your substitution is then x = | D15: =TEXT(a00/b00,"0.00") -> 1.50 | E15: tan q | K15: 150
C16: so that dx = | D16: =TEXT(a00/b00,"0.00") -> 1.50 | E16: sec2q dq
J17: The corresponding transformed point is | P17: =LOOKUP(x00,Sheet2!S3:S203,Sheet2!V3:V203) -> 0.5787149449 | Q17: = q
A18: What is the interval for x for display? | D18: =" It must be within "&TEXT(-1.3*a00/b00,"0.00")& " to "&TEXT(1.3*a00/b00,"0.00") -> It must be within -1.95 to 1.95
C19: xMin = | D19: -2 | E19: =IF(aa<-1.3*a00/b00,"Must be larger than "&TEXT(-1.3*a00/b00,"0.00"),"") -> Must be larger than -1.95 | J19: The area from x = | L19: =aa -> -2 | M19: to x = | N19: =x00 -> 1 | O19: is | P19: =LOOKUP(x00+dxx/2,Sheet2!$S$3:$S$203,Sheet2!U$3:U$203) -> 0.862
C20: xMax = | D20: 2
B22: This corresponds to: | P22: The area under the transformed graph
C23: q Min = | D23: =ttheta0 -> -0.927 | E23: radians | P23: from q = | Q23: =ttheta0 -> -0.927 | R23: to q = | S23: =th00 -> 0.579
C24: q Max = | D24: =ttheta00 -> 0.927 | E24: radians | Q24: is about | R24: =LOOKUP(ATAN(b00/a00*x00)+0.001,Sheet2!V3:V203,Sheet2!X3:X203) -> 0.862
A27: Click each item below for suggestions and investigations
C28: Item 1
C29: Item 2
C30: Item 3
C31: Item 4
C32: Item 5
I34: The area = | K34: =LOOKUP(x0+dx/2,Sheet2!$C$3:$C$203,Sheet2!F3:F203) -> 0.340
A36: To access/download all the DIGMath Apps for Calculus
A37: Click this link: | C37: DIGMath for Calculus
A39: Created by: Sheldon P. Gordon
A40: Farmingdale State College
A41: Development of this module was supported by the
A42: NSF's Division of Undergraduate Education
A43: under grants DUE-0310123 and DUE-0442160.

Sheet Sheet2
G1: SINE | W1: TANGENT
C2: x | D2: f(x) | E2: Area | F2: q | G2: f(q ) | H2: Area | J2: xx | K2: f(xx) | L2: sweep x | M2: sweep y | N2: q | O2: f(q ) | S2: xxx | T2: f(x) | U2: Area | V2: q | W2: f(q ) | X2: Area | Z2: xxxx | AA2: f(xx) | AB2: sweep x | AC2: sweep y | AD2: q | AE2: f(q )
C3: =a -> -1 | D3: =1/SQRT(a0^2-b0^2*x^2) -> 0.4472135955 | E3: 0 | F3: =theta0 -> -0.7297276562 | G3: =1/b0 -> 0.5 | H3: 0 | J3: =C3 -> -1 | K3: 0 | L3: =J3 -> -1 | M3: =K3 -> 0 | N3: =theta0 -> -0.7297276562 | O3: 0 | S3: =aa -> -2 | T3: =1/SQRT(a00^2+b00^2*xxx^2) -> 0.2 | U3: 0 | V3: =ttheta0 -> -0.927295218 | W3: =1/b00/COS(t) -> 0.8333333333 | X3: 0 | Z3: =S3 -> -2 | AA3: 0 | AB3: =Z3 -> -2 | AC3: =AA3 -> 0 | AD3: =ttheta0 -> -0.927295218 | AE3: 0
C4: =C3+dx -> -0.99 | D4: 0.4436957234 | E4: =E3+(D3+D4)*dx/2 -> 0.004454546594 | F4: =ASIN(b0/a0*x) -> -0.7208187609 | G4: 0.5 | H4: =H3+(G3+G4)*(F4-F3)/2 -> 0.004454447678 | J4: =J3 -> -1 | K4: =1/SQRT(a0^2-b0^2*xx^2) -> 0.4472135955 | L4: =L3 -> -1 | M4: =K4 -> 0.4472135955 | N4: =N3 -> -0.7297276562 | O4: =G3 -> 0.5 | S4: =S3+dxx -> -1.98 | T4: 0.201285896 | U4: =U3+(T3+T4)*dxx/2 -> 0.00401285896 | V4: =ATAN(b00/a00*xxx) -> -0.9224643377 | W4: 0.8280096618 | X4: =X3+(W3+W4)*(V4-V3)/2 -> 0.004012874568 | Z4: =Z3 -> -2 | AA4: =1/SQRT(a00^2+b00^2*xxxx^2) -> 0.2 | AB4: =AB3 -> -2 | AC4: =AA4 -> 0.2 | AD4: =AD3 -> -0.927295218 | AE4: =W3 -> 0.8333333333
C5: -0.98 | D5: 0.440293721 | E5: 0.008874493817 | F5: -0.7119790549 | G5: 0.5 | H5: =H4+(G4+G5)*(F5-F4)/2 -> 0.008874300657 | J5: =J3+dx -> -0.99 | K5: 0 | L5: =IF(xx<=x0,L3+dx,L3) -> -0.99 | M5: =K5 -> 0 | N5: =IF(xx<=x0,ASIN(b0/a0*xx),N3) -> -0.7208187609 | O5: 0 | S5: -1.96 | T5: 0.2025836144 | U5: 0.008051554064 | V5: -0.9175710513 | W5: 0.8227055636 | X5: =X4+(W4+W5)*(V5-V4)/2 -> 0.00805158579 | Z5: =Z3+dxx -> -1.98 | AA5: 0 | AB5: =IF(xxxx<=x00,AB3+dxx,AB3) -> -1.98 | AC5: =AA5 -> 0 | AD5: =IF(xxxx<=x00,ATAN(b00/a00*xxxx),AD3) -> -0.9224643377 | AE5: 0
C6: -0.97 | D6: 0.4370021694 | E6: 0.01326097327 | F6: -0.7032062758 | G6: 0.5 | H6: 0.01326069023 | J6: =J5 -> -0.99 | K6: =1/SQRT(a0^2-b0^2*xx^2) -> 0.4436957234 | L6: =L5 -> -0.99 | M6: =IF(xx<=x0,1/SQRT(a0^2-b0^2*xx^2),M4) -> 0.4436957234 | N6: =N5 -> -0.7208187609 | O6: =O4 -> 0.5 | S6: -1.94 | T6: 0.2038931971 | U6: 0.01211632218 | V6: -0.9126143805 | W6: 0.8174214199 | X6: 0.01211637055 | Z6: =Z5 -> -1.98 | AA6: =1/SQRT(a00^2+b00^2*xxxx^2) -> 0.201285896 | AB6: =AB5 -> -1.98 | AC6: =IF(xxxx<=x00,1/SQRT(a00^2+b00^2*xxxx^2),AC4) -> 0.201285896 | AD6: =AD5 -> -0.9224643377 | AE6: =IF(xxxx<=x00,1/b00/COS(tt),AE4) -> 0.8280096618
C7: -0.96 | D7: 0.4338160052 | E7: 0.01761506414 | F7: -0.6944982656 | G7: 0.5 | H7: 0.0176146953 | J7: =J5+dx -> -0.98 | K7: 0 | L7: =IF(xx<=x0,L5+dx,L5) -> -0.98 | M7: =K7 -> 0 | N7: =IF(xx<=x0,ASIN(b0/a0*xx),N5) -> -0.7119790549 | O7: 0 | S7: -1.92 | T7: 0.2052146807 | U7: 0.01620740096 | V7: -0.9075933341 | W7: 0.8121576202 | X7: 0.01620746652 | Z7: =Z5+dxx -> -1.96 | AA7: 0 | AB7: =IF(xxxx<=x00,AB5+dxx,AB5) -> -1.96 | AC7: =AA7 -> 0 | AD7: =IF(xxxx<=x00,ATAN(b00/a00*xxxx),AD5) -> -0.9175710513 | AE7: 0
A8: =a -> -1 | C8: -0.95 | D8: 0.4307304923 | E8: 0.02193779663 | F8: -0.6858529646 | G8: 0.5 | H8: 0.0219373458 | J8: =J7 -> -0.98 | K8: =1/SQRT(a0^2-b0^2*xx^2) -> 0.440293721 | L8: =L7 -> -0.98 | M8: =IF(xx<=x0,1/SQRT(a0^2-b0^2*xx^2),M6) -> 0.440293721 | N8: =N7 -> -0.7119790549 | O8: =O6 -> 0.5 | Q8: =a -> -1 | S8: -1.9 | T8: 0.2065480962 | U8: 0.02032502872 | V8: -0.902506908 | W8: 0.8069145625 | X8: 0.02032511204 | Z8: =Z7 -> -1.96 | AA8: =1/SQRT(a00^2+b00^2*xxxx^2) -> 0.2025836144 | AB8: =AB7 -> -1.96 | AC8: =IF(xxxx<=x00,1/SQRT(a00^2+b00^2*xxxx^2),AC6) -> 0.2025836144 | AD8: =AD7 -> -0.9175710513 | AE8: =IF(xxxx<=x00,1/b00/COS(tt),AE6) -> 0.8227055636
A9: =b -> 1 | C9: -0.94 | D9: 0.4277411943 | E9: 0.02623015506 | F9: -0.6772684046 | G9: 0.5 | H9: 0.02622962583 | J9: =J7+dx -> -0.97 | K9: 0 | L9: =IF(xx<=x0,L7+dx,L7) -> -0.97 | M9: =K9 -> 0 | N9: =IF(xx<=x0,ASIN(b0/a0*xx),N7) -> -0.7032062758 | O9: 0 | Q9: =b -> 1 | S9: -1.88 | T9: 0.2078934688 | U9: 0.02446944437 | V9: -0.8973540851 | W9: 0.8016926538 | X9: 0.02446954603 | Z9: =Z7+dxx -> -1.94 | AA9: 0 | AB9: =IF(xxxx<=x00,AB7+dxx,AB7) -> -1.94 | AC9: =AA9 -> 0 | AD9: =IF(xxxx<=x00,ATAN(b00/a00*xxxx),AD7) -> -0.9126143805 | AE9: 0
C10: -0.93 | D10: 0.4248439516 | E10: 0.03049308079 | F10: -0.6687427032 | G10: 0.5 | H10: 0.03049247651 | J10: =J9 -> -0.97 | K10: =1/SQRT(a0^2-b0^2*xx^2) -> 0.4370021694 | L10: =L9 -> -0.97 | M10: =IF(xx<=x0,1/SQRT(a0^2-b0^2*xx^2),M8) -> 0.4370021694 | N10: =N9 -> -0.7032062758 | O10: =O8 -> 0.5 | S10: -1.86 | T10: 0.2092508171 | U10: 0.02864088723 | V10: -0.892133836 | W10: 0.7964923101 | X10: 0.02864100783 | Z10: =Z9 -> -1.94 | AA10: =1/SQRT(a00^2+b00^2*xxxx^2) -> 0.2038931971 | AB10: =AB9 -> -1.94 | AC10: =IF(xxxx<=x00,1/SQRT(a00^2+b00^2*xxxx^2),AC8) -> 0.2038931971 | AD10: =AD9 -> -0.9126143805 | AE10: =IF(xxxx<=x00,1/b00/COS(tt),AE8) -> 0.8174214199
A11: dx = | C11: -0.92 | D11: 0.4220348595 | E11: 0.03472747485 | F11: -0.6602740589 | G11: 0.5 | H11: 0.03472679867 | J11: =J9+dx -> -0.96 | K11: 0 | L11: =IF(xx<=x0,L9+dx,L9) -> -0.96 | M11: =K11 -> 0 | N11: =IF(xx<=x0,ASIN(b0/a0*xx),N9) -> -0.6944982656 | O11: 0 | Q11: dxx = | S11: -1.84 | T11: 0.2106201531 | U11: 0.03283959693 | V11: -0.8868451187 | W11: 0.7913139565 | X11: 0.03283973711 | Z11: =Z9+dxx -> -1.92 | AA11: 0 | AB11: =IF(xxxx<=x00,AB9+dxx,AB9) -> -1.92 | AC11: =AA11 -> 0 | AD11: =IF(xxxx<=x00,ATAN(b00/a00*xxxx),AD9) -> -0.9075933341 | AE11: 0
A12: =(b-a)/200 -> 0.01 | C12: -0.91 | D12: 0.4193102485 | E12: 0.03893420039 | F12: -0.6518607457 | G12: 0.5 | H12: 0.03893345528 | J12: =J11 -> -0.96 | K12: =1/SQRT(a0^2-b0^2*xx^2) -> 0.4338160052 | L12: =L11 -> -0.96 | M12: =IF(xx<=x0,1/SQRT(a0^2-b0^2*xx^2),M10) -> 0.4338160052 | N12: =N11 -> -0.6944982656 | O12: =O10 -> 0.5 | Q12: =(bb-aa)/200 -> 0.02 | S12: -1.82 | T12: 0.2120014816 | U12: 0.03706581328 | V12: -0.8814868789 | W12: 0.7861580277 | X12: 0.03706597368 | Z12: =Z11 -> -1.92 | AA12: =1/SQRT(a00^2+b00^2*xxxx^2) -> 0.2052146807 | AB12: =AB11 -> -1.92 | AC12: =IF(xxxx<=x00,1/SQRT(a00^2+b00^2*xxxx^2),AC10) -> 0.2052146807 | AD12: =AD11 -> -0.9075933341 | AE12: =IF(xxxx<=x00,1/b00/COS(tt),AE10) -> 0.8121576202
C13: -0.9 | D13: 0.4166666667 | E13: 0.04311408496 | F13: -0.6435011088 | G13: 0.5 | H13: 0.04311327372 | J13: =J11+dx -> -0.95 | K13: 0 | L13: =IF(xx<=x0,L11+dx,L11) -> -0.95 | M13: =K13 -> 0 | N13: =IF(xx<=x0,ASIN(b0/a0*xx),N11) -> -0.6858529646 | O13: 0 | S13: -1.8 | T13: 0.2133947999 | U13: 0.0413197761 | V13: -0.8760580506 | W13: 0.7810249676 | X13: 0.04131995739 | Z13: =Z11+dxx -> -1.9 | AA13: 0 | AB13: =IF(xxxx<=x00,AB11+dxx,AB11) -> -1.9 | AC13: =AA13 -> 0 | AD13: =IF(xxxx<=x00,ATAN(b00/a00*xxxx),AD11) -> -0.902506908 | AE13: 0
C14: -0.89 | D14: 0.4141008637 | E14: 0.04726792261 | F14: -0.6351935605 | G14: 0.5 | H14: 0.04726704786 | J14: =J13 -> -0.95 | K14: =1/SQRT(a0^2-b0^2*xx^2) -> 0.4307304923 | L14: =L13 -> -0.95 | M14: =IF(xx<=x0,1/SQRT(a0^2-b0^2*xx^2),M12) -> 0.4307304923 | N14: =N13 -> -0.6858529646 | O14: =O12 -> 0.5 | S14: -1.78 | T14: 0.2148000969 | U14: 0.04560172506 | V14: -0.870557556 | W14: 0.7759152302 | X14: 0.04560192795 | Z14: =Z13 -> -1.9 | AA14: =1/SQRT(a00^2+b00^2*xxxx^2) -> 0.2065480962 | AB14: =AB13 -> -1.9 | AC14: =IF(xxxx<=x00,1/SQRT(a00^2+b00^2*xxxx^2),AC12) -> 0.2065480962 | AD14: =AD13 -> -0.902506908 | AE14: =IF(xxxx<=x00,1/b00/COS(tt),AE12) -> 0.8069145625
A15: First graph | C15: -0.88 | D15: 0.4116097761 | E15: 0.05139647581 | F15: -0.6269365762 | G15: 0.5 | H15: 0.05139554002 | J15: =J13+dx -> -0.94 | K15: 0 | L15: =IF(xx<=x0,L13+dx,L13) -> -0.94 | M15: =K15 -> 0 | N15: =IF(xx<=x0,ASIN(b0/a0*xx),N13) -> -0.6772684046 | O15: 0 | Q15: First graph | S15: -1.76 | T15: 0.2162173534 | U15: 0.04991189957 | V15: -0.8649843061 | W15: 0.7708292793 | X15: 0.04991212477 | Z15: =Z13+dxx -> -1.88 | AA15: 0 | AB15: =IF(xxxx<=x00,AB13+dxx,AB13) -> -1.88 | AC15: =AA15 -> 0 | AD15: =IF(xxxx<=x00,ATAN(b00/a00*xxxx),AD13) -> -0.8973540851 | AE15: 0
A16: =x0 -> 0.5 | B16: 0 | C16: -0.87 | D16: 0.4091905135 | E16: 0.05550047726 | F16: -0.6187286907 | G16: 0.5 | H16: 0.05549948278 | J16: =J15 -> -0.94 | K16: =1/SQRT(a0^2-b0^2*xx^2) -> 0.4277411943 | L16: =L15 -> -0.94 | M16: =IF(xx<=x0,1/SQRT(a0^2-b0^2*xx^2),M14) -> 0.4277411943 | N16: =N15 -> -0.6772684046 | O16: =O14 -> 0.5 | Q16: =x00 -> 1 | R16: 0 | S16: -1.74 | T16: 0.2176465407 | U16: 0.05425053851 | V16: -0.8593372011 | W16: 0.7657675888 | X16: 0.05425078677 | Z16: =Z15 -> -1.88 | AA16: =1/SQRT(a00^2+b00^2*xxxx^2) -> 0.2078934688 | AB16: =AB15 -> -1.88 | AC16: =IF(xxxx<=x00,1/SQRT(a00^2+b00^2*xxxx^2),AC14) -> 0.2078934688 | AD16: =AD15 -> -0.8973540851 | AE16: =IF(xxxx<=x00,1/b00/COS(tt),AE14) -> 0.8016926538
A17: =x0 -> 0.5 | B17: =LOOKUP(x0+dx/2,C3:C203,D3:D203) -> 0.3535533906 | C17: -0.86 | D17: 0.4068403468 | E17: 0.05958063156 | F17: -0.610568495 | G17: 0.5 | H17: 0.0595795806 | J17: =J15+dx -> -0.93 | K17: 0 | L17: =IF(xx<=x0,L15+dx,L15) -> -0.93 | M17: =K17 -> 0 | N17: =IF(xx<=x0,ASIN(b0/a0*xx),N15) -> -0.6687427032 | O17: 0 | Q17: =x00 -> 1 | R17: =LOOKUP(x00+dxx/2,S3:S203,T3:T203) -> 0.2773500981 | S17: -1.72 | T17: 0.2190876208 | U17: 0.05861788012 | V17: -0.8536151303 | W17: 0.7607306429 | X17: 0.05861815222 | Z17: =Z15+dxx -> -1.86 | AA17: 0 | AB17: =IF(xxxx<=x00,AB15+dxx,AB15) -> -1.86 | AC17: =AA17 -> 0 | AD17: =IF(xxxx<=x00,ATAN(b00/a00*xxxx),AD15) -> -0.892133836 | AE17: 0
C18: -0.85 | D18: 0.404556697 | E18: 0.06363761678 | F18: -0.6024546334 | G18: 0.5 | H18: 0.06363651142 | J18: =J17 -> -0.93 | K18: =1/SQRT(a0^2-b0^2*xx^2) -> 0.4248439516 | L18: =L17 -> -0.93 | M18: =IF(xx<=x0,1/SQRT(a0^2-b0^2*xx^2),M16) -> 0.4248439516 | N18: =N17 -> -0.6687427032 | O18: =O16 -> 0.5 | S18: -1.7 | T18: 0.2205405457 | U18: 0.06301416179 | V18: -0.8478169734 | W18: 0.7557189366 | X18: 0.06301445851 | Z18: =Z17 -> -1.86 | AA18: =1/SQRT(a00^2+b00^2*xxxx^2) -> 0.2092508171 | AB18: =AB17 -> -1.86 | AC18: =IF(xxxx<=x00,1/SQRT(a00^2+b00^2*xxxx^2),AC16) -> 0.2092508171 | AD18: =AD17 -> -0.892133836 | AE18: =IF(xxxx<=x00,1/b00/COS(tt),AE16) -> 0.7964923101
A19: Second graph | C19: -0.84 | D19: 0.4023371247 | E19: 0.06767208589 | F19: -0.5943858 | G19: 0.5 | H19: 0.06767092811 | J19: =J17+dx -> -0.92 | K19: 0 | L19: =IF(xx<=x0,L17+dx,L17) -> -0.92 | M19: =K19 -> 0 | N19: =IF(xx<=x0,ASIN(b0/a0*xx),N17) -> -0.6602740589 | O19: 0 | Q19: Second graph | S19: -1.68 | T19: 0.2220052564 | U19: 0.06743961981 | V19: -0.8419416003 | W19: 0.7507329752 | X19: 0.067439942 | Z19: =Z17+dxx -> -1.84 | AA19: 0 | AB19: =IF(xxxx<=x00,AB17+dxx,AB17) -> -1.84 | AC19: =AA19 -> 0 | AD19: =IF(xxxx<=x00,ATAN(b00/a00*xxxx),AD17) -> -0.8868451187 | AE19: 0
A20: =x0 -> 0.5 | B20: 0 | C20: -0.83 | D20: 0.4001793205 | E20: 0.07168466812 | F20: -0.5863607366 | G20: 0.5 | H20: 0.07168345979 | J20: =J19 -> -0.92 | K20: =1/SQRT(a0^2-b0^2*xx^2) -> 0.4220348595 | L20: =L19 -> -0.92 | M20: =IF(xx<=x0,1/SQRT(a0^2-b0^2*xx^2),M18) -> 0.4220348595 | N20: =N19 -> -0.6602740589 | O20: =O18 -> 0.5 | Q20: =x00 -> 1 | R20: 0 | S20: -1.66 | T20: 0.223481683 | U20: 0.07189448921 | V20: -0.8359878722 | W20: 0.745773275 | X20: 0.07189483771 | Z20: =Z19 -> -1.84 | AA20: =1/SQRT(a00^2+b00^2*xxxx^2) -> 0.2106201531 | AB20: =AB19 -> -1.84 | AC20: =IF(xxxx<=x00,1/SQRT(a00^2+b00^2*xxxx^2),AC18) -> 0.2106201531 | AD20: =AD19 -> -0.8868451187 | AE20: =IF(xxxx<=x00,1/b00/COS(tt),AE18) -> 0.7913139565
A21: =x0 -> 0.5 | B21: =LOOKUP(x0+dx/2,C$3:C$203,E$3:E$203) -> 0.5347860007 | C21: -0.82 | D21: 0.3980810971 | E21: 0.0756759702 | F21: -0.57837823 | G21: 0.5 | H21: 0.07567471311 | J21: =J19+dx -> -0.91 | K21: 0 | L21: =IF(xx<=x0,L19+dx,L19) -> -0.91 | M21: =K21 -> 0 | N21: =IF(xx<=x0,ASIN(b0/a0*xx),N19) -> -0.6518607457 | O21: 0 | Q21: =x00 -> 1 | R21: =LOOKUP(x00+dxx/2,S$3:S$203,U$3:U$203) -> 0.861873725 | S21: -1.64 | T21: 0.2249697436 | U21: 0.07637900347 | V21: -0.8299546415 | W21: 0.7408403637 | X21: 0.07637937918 | Z21: =Z19+dxx -> -1.82 | AA21: 0 | AB21: =IF(xxxx<=x00,AB19+dxx,AB19) -> -1.82 | AC21: =AA21 -> 0 | AD21: =IF(xxxx<=x00,ATAN(b00/a00*xxxx),AD19) -> -0.8814868789 | AE21: 0
C22: -0.81 | D22: 0.3960403804 | E22: 0.07964657759 | F22: -0.5704371094 | G22: 0.5 | H22: 0.07964527341 | J22: =J21 -> -0.91 | K22: =1/SQRT(a0^2-b0^2*xx^2) -> 0.4193102485 | L22: =L21 -> -0.91 | M22: =IF(xx<=x0,1/SQRT(a0^2-b0^2*xx^2),M20) -> 0.4193102485 | N22: =N21 -> -0.6518607457 | O22: =O20 -> 0.5 | S22: -1.62 | T22: 0.2264693438 | U22: 0.08089339435 | V22: -0.8238407534 | W22: 0.7359347797 | X22: 0.08089379818 | Z22: =Z21 -> -1.82 | AA22: =1/SQRT(a00^2+b00^2*xxxx^2) -> 0.2120014816 | AB22: =AB21 -> -1.82 | AC22: =IF(xxxx<=x00,1/SQRT(a00^2+b00^2*xxxx^2),AC20) -> 0.2120014816 | AD22: =AD21 -> -0.8814868789 | AE22: =IF(xxxx<=x00,1/b00/COS(tt),AE20) -> 0.7861580277
A23: Third graph | C23: -0.8 | D23: 0.3940552031 | E23: 0.08359705551 | F23: -0.5625362445 | G23: 0.5 | H23: 0.08359570584 | J23: =J21+dx -> -0.9 | K23: 0 | L23: =IF(xx<=x0,L21+dx,L21) -> -0.9 | M23: =K23 -> 0 | N23: =IF(xx<=x0,ASIN(b0/a0*xx),N21) -> -0.6435011088 | O23: 0 | Q23: Third graph | S23: -1.6 | T23: 0.2279803763 | U23: 0.08543789155 | V23: -0.8176450458 | W23: 0.7310570733 | X23: 0.08543832446 | Z23: =Z21+dxx -> -1.8 | AA23: 0 | AB23: =IF(xxxx<=x00,AB21+dxx,AB21) -> -1.8 | AC23: =AA23 -> 0 | AD23: =IF(xxxx<=x00,ATAN(b00/a00*xxxx),AD21) -> -0.8760580506 | AE23: 0
A24: =th0 -> 0.3327745999 | B24: 0 | C24: -0.79 | D24: 0.3921236972 | E24: 0.08752795001 | F24: -0.5546745435 | G24: 0.5 | H24: 0.08752655637 | J24: =J23 -> -0.9 | K24: =1/SQRT(a0^2-b0^2*xx^2) -> 0.4166666667 | L24: =L23 -> -0.9 | M24: =IF(xx<=x0,1/SQRT(a0^2-b0^2*xx^2),M22) -> 0.4166666667 | N24: =N23 -> -0.6435011088 | O24: =O22 -> 0.5 | Q24: =th00 -> 0.5787149449 | R24: 0 | S24: -1.58 | T24: 0.2295027198 | U24: 0.09001272251 | V24: -0.8113663506 | W24: 0.7262078062 | X24: 0.09001318548 | Z24: =Z23 -> -1.8 | AA24: =1/SQRT(a00^2+b00^2*xxxx^2) -> 0.2133947999 | AB24: =AB23 -> -1.8 | AC24: =IF(xxxx<=x00,1/SQRT(a00^2+b00^2*xxxx^2),AC22) -> 0.2133947999 | AD24: =AD23 -> -0.8760580506 | AE24: =IF(xxxx<=x00,1/b00/COS(tt),AE22) -> 0.7810249676
A25: =A24 -> 0.3327745999 | B25: =LOOKUP(x0+dx/2,C$3:C$203,G$3:G$203) -> 0.5 | C25: -0.78 | D25: 0.3902440882 | E25: 0.09143978894 | F25: -0.5468509507 | G25: 0.5 | H25: 0.09143835277 | J25: =J23+dx -> -0.89 | K25: 0 | L25: =IF(xx<=x0,L23+dx,L23) -> -0.89 | M25: =K25 -> 0 | N25: =IF(xx<=x0,ASIN(b0/a0*xx),N23) -> -0.6351935605 | O25: 0 | Q25: =Q24 -> 0.5787149449 | R25: =LOOKUP(x00+dxx/2,S$3:S$203,W$3:W$203) -> 0.6009252126 | S25: -1.56 | T25: 0.2310362388 | U25: 0.09461811209 | V25: -0.8050034943 | W25: 0.7213875519 | X25: 0.09461860614 | Z25: =Z23+dxx -> -1.78 | AA25: 0 | AB25: =IF(xxxx<=x00,AB23+dxx,AB23) -> -1.78 | AC25: =AA25 -> 0 | AD25: =IF(xxxx<=x00,ATAN(b00/a00*xxxx),AD23) -> -0.870557556 | AE25: 0
C26: -0.77 | D26: 0.3884146891 | E26: 0.09533308282 | F26: -0.5390644452 | G26: 0.5 | H26: 0.09533160549 | J26: =J25 -> -0.89 | K26: =1/SQRT(a0^2-b0^2*xx^2) -> 0.4141008637 | L26: =L25 -> -0.89 | M26: =IF(xx<=x0,1/SQRT(a0^2-b0^2*xx^2),M24) -> 0.4141008637 | N26: =N25 -> -0.6351935605 | O26: =O24 -> 0.5 | S26: -1.54 | T26: 0.2325807824 | U26: 0.0992542823 | V26: -0.7985552989 | W26: 0.7165968958 | X26: 0.09925480848 | Z26: =Z25 -> -1.78 | AA26: =1/SQRT(a00^2+b00^2*xxxx^2) -> 0.2148000969 | AB26: =AB25 -> -1.78 | AC26: =IF(xxxx<=x00,1/SQRT(a00^2+b00^2*xxxx^2),AC24) -> 0.2148000969 | AD26: =AD25 -> -0.870557556 | AE26: =IF(xxxx<=x00,1/b00/COS(tt),AE24) -> 0.7759152302
A27: x vert | C27: -0.76 | D27: 0.3866338952 | E27: 0.09920832574 | F27: -0.5313140391 | G27: 0.5 | H27: 0.09920680856 | J27: =J25+dx -> -0.88 | K27: 0 | L27: =IF(xx<=x0,L25+dx,L25) -> -0.88 | M27: =K27 -> 0 | N27: =IF(xx<=x0,ASIN(b0/a0*xx),N25) -> -0.6269365762 | O27: 0 | Q27: x vert | S27: -1.52 | T27: 0.234136184 | U27: 0.103921452 | V27: -0.7920205831 | W27: 0.7118364356 | X27: 0.1039220114 | Z27: =Z25+dxx -> -1.76 | AA27: 0 | AB27: =IF(xxxx<=x00,AB25+dxx,AB25) -> -1.76 | AC27: =AA27 -> 0 | AD27: =IF(xxxx<=x00,ATAN(b00/a00*xxxx),AD25) -> -0.8649843061 | AE27: 0
A28: 0 | B28: 0 | C28: -0.75 | D28: 0.3849001795 | E28: 0.1030659961 | F28: -0.5235987756 | G28: 0.5 | H28: 0.1030644403 | J28: =J27 -> -0.88 | K28: =1/SQRT(a0^2-b0^2*xx^2) -> 0.4116097761 | L28: =L27 -> -0.88 | M28: =IF(xx<=x0,1/SQRT(a0^2-b0^2*xx^2),M26) -> 0.4116097761 | N28: =N27 -> -0.6269365762 | O28: =O26 -> 0.5 | Q28: 0 | R28: 0 | S28: -1.5 | T28: 0.2357022604 | U28: 0.1086198364 | V28: -0.7853981634 | W28: 0.7071067812 | X28: 0.1086204301 | Z28: =Z27 -> -1.76 | AA28: =1/SQRT(a00^2+b00^2*xxxx^2) -> 0.2162173534 | AB28: =AB27 -> -1.76 | AC28: =IF(xxxx<=x00,1/SQRT(a00^2+b00^2*xxxx^2),AC26) -> 0.2162173534 | AD28: =AD27 -> -0.8649843061 | AE28: =IF(xxxx<=x00,1/b00/COS(tt),AE26) -> 0.7708292793
A29: 0 | B29: =MAX(D3:D203) -> 0.4472135955 | C29: -0.74 | D29: 0.3832120872 | E29: 0.1069065575 | F29: -0.5159177278 | G29: 0.5 | H29: 0.1069049642 | J29: =J27+dx -> -0.87 | K29: 0 | L29: =IF(xx<=x0,L27+dx,L27) -> -0.87 | M29: =K29 -> 0 | N29: =IF(xx<=x0,ASIN(b0/a0*xx),N27) -> -0.6187286907 | O29: 0 | Q29: 0 | R29: =MAX(T3:T203) -> 0.3333333333 | S29: -1.48 | T29: 0.2372788109 | U29: 0.1133496471 | V29: -0.7786868548 | W29: 0.7024085547 | X29: 0.1133502764 | Z29: =Z27+dxx -> -1.74 | AA29: 0 | AB29: =IF(xxxx<=x00,AB27+dxx,AB27) -> -1.74 | AC29: =AA29 -> 0 | AD29: =IF(xxxx<=x00,ATAN(b00/a00*xxxx),AD27) -> -0.8593372011 | AE29: 0
C30: -0.73 | D30: 0.3815682324 | E30: 0.110730459 | F30: -0.5082699972 | G30: 0.5 | H30: 0.1107288295 | J30: =J29 -> -0.87 | K30: =1/SQRT(a0^2-b0^2*xx^2) -> 0.4091905135 | L30: =L29 -> -0.87 | M30: =IF(xx<=x0,1/SQRT(a0^2-b0^2*xx^2),M28) -> 0.4091905135 | N30: =N29 -> -0.6187286907 | O30: =O28 -> 0.5 | S30: -1.46 | T30: 0.2388656168 | U30: 0.1181110914 | V30: -0.7718854724 | W30: 0.6977423912 | X30: 0.1181117574 | Z30: =Z29 -> -1.74 | AA30: =1/SQRT(a00^2+b00^2*xxxx^2) -> 0.2176465407 | AB30: =AB29 -> -1.74 | AC30: =IF(xxxx<=x00,1/SQRT(a00^2+b00^2*xxxx^2),AC28) -> 0.2176465407 | AD30: =AD29 -> -0.8593372011 | AE30: =IF(xxxx<=x00,1/b00/COS(tt),AE28) -> 0.7657675888
A31: q vert | C31: -0.72 | D31: 0.3799672938 | E31: 0.1145381367 | F31: -0.5006547124 | G31: 0.5 | H31: 0.1145364719 | J31: =J29+dx -> -0.86 | K31: 0 | L31: =IF(xx<=x0,L29+dx,L29) -> -0.86 | M31: =K31 -> 0 | N31: =IF(xx<=x0,ASIN(b0/a0*xx),N29) -> -0.610568495 | O31: 0 | Q31: q vert | S31: -1.44 | T31: 0.2404624403 | U31: 0.122904372 | V31: -0.7649928327 | W31: 0.693108938 | X31: 0.1229050759 | Z31: =Z29+dxx -> -1.72 | AA31: 0 | AB31: =IF(xxxx<=x00,AB29+dxx,AB29) -> -1.72 | AC31: =AA31 -> 0 | AD31: =IF(xxxx<=x00,ATAN(b00/a00*xxxx),AD29) -> -0.8536151303 | AE31: 0
A32: 0 | B32: 0 | C32: -0.71 | D32: 0.3784080109 | E32: 0.1183300132 | F32: -0.4930710278 | G32: 0.5 | H32: 0.1183283142 | J32: =J31 -> -0.86 | K32: =1/SQRT(a0^2-b0^2*xx^2) -> 0.4068403468 | L32: =L31 -> -0.86 | M32: =IF(xx<=x0,1/SQRT(a0^2-b0^2*xx^2),M30) -> 0.4068403468 | N32: =N31 -> -0.610568495 | O32: =O30 -> 0.5 | Q32: 0 | R32: 0 | S32: -1.42 | T32: 0.2420690239 | U32: 0.1277296866 | V32: -0.7580077549 | W32: 0.6885088557 | X32: 0.1277304298 | Z32: =Z31 -> -1.72 | AA32: =1/SQRT(a00^2+b00^2*xxxx^2) -> 0.2190876208 | AB32: =AB31 -> -1.72 | AC32: =IF(xxxx<=x00,1/SQRT(a00^2+b00^2*xxxx^2),AC30) -> 0.2190876208 | AD32: =AD31 -> -0.8536151303 | AE32: =IF(xxxx<=x00,1/b00/COS(tt),AE30) -> 0.7607306429
A33: 0 | B33: =MAX(G3:G203) -> 0.5 | C33: -0.7 | D33: 0.3768891807 | E33: 0.1221064992 | F33: -0.4855181223 | G33: 0.5 | H33: 0.122104767 | J33: =J31+dx -> -0.85 | K33: 0 | L33: =IF(xx<=x0,L31+dx,L31) -> -0.85 | M33: =K33 -> 0 | N33: =IF(xx<=x0,ASIN(b0/a0*xx),N31) -> -0.6024546334 | O33: 0 | Q33: 0 | R33: =MAX(W3:W203) -> 0.8333333333 | S33: -1.4 | T33: 0.2436850894 | U33: 0.1325872278 | V33: -0.7509290624 | W33: 0.6839428176 | X33: 0.1325880115 | Z33: =Z31+dxx -> -1.7 | AA33: 0 | AB33: =IF(xxxx<=x00,AB31+dxx,AB31) -> -1.7 | AC33: =AA33 -> 0 | AD33: =IF(xxxx<=x00,ATAN(b00/a00*xxxx),AD31) -> -0.8478169734 | AE33: 0
C34: -0.69 | D34: 0.3754096547 | E34: 0.1258679933 | F34: -0.4779951985 | G34: 0.5 | H34: 0.1258662289 | J34: =J33 -> -0.85 | K34: =1/SQRT(a0^2-b0^2*xx^2) -> 0.404556697 | L34: =L33 -> -0.85 | M34: =IF(xx<=x0,1/SQRT(a0^2-b0^2*xx^2),M32) -> 0.404556697 | N34: =N33 -> -0.6024546334 | O34: =O32 -> 0.5 | S34: -1.38 | T34: 0.2453103373 | U34: 0.137477182 | V34: -0.7437555843 | W34: 0.6794115101 | X34: 0.1374780077 | Z34: =Z33 -> -1.7 | AA34: =1/SQRT(a00^2+b00^2*xxxx^2) -> 0.2205405457 | AB34: =AB33 -> -1.7 | AC34: =IF(xxxx<=x00,1/SQRT(a00^2+b00^2*xxxx^2),AC32) -> 0.2205405457 | AD34: =AD33 -> -0.8478169734 | AE34: =IF(xxxx<=x00,1/b00/COS(tt),AE32) -> 0.7557189366
A35: x-axis | C35: -0.68 | D35: 0.3739683355 | E35: 0.1296148833 | F35: -0.4705014814 | G35: 0.5 | H35: 0.1296130874 | J35: =J33+dx -> -0.84 | K35: 0 | L35: =IF(xx<=x0,L33+dx,L33) -> -0.84 | M35: =K35 -> 0 | N35: =IF(xx<=x0,ASIN(b0/a0*xx),N33) -> -0.5943858 | O35: 0 | Q35: x-axis | S35: -1.36 | T35: 0.2469444455 | U35: 0.1423997298 | V35: -0.7364861572 | W35: 0.6749156326 | X35: 0.1424005988 | Z35: =Z33+dxx -> -1.68 | AA35: 0 | AB35: =IF(xxxx<=x00,AB33+dxx,AB33) -> -1.68 | AC35: =AA35 -> 0 | AD35: =IF(xxxx<=x00,ATAN(b00/a00*xxxx),AD33) -> -0.8419416003 | AE35: 0
A36: =a -> -1 | B36: 0 | C36: =C35+dx -> -0.67 | D36: 0.3725641746 | E36: =E35+(D35+D36)*dx/2 -> 0.1333475458 | F36: =ASIN(b0/a0*x) -> -0.4630362174 | G36: 0.5 | H36: 0.1333457194 | J36: =J35 -> -0.84 | K36: =1/SQRT(a0^2-b0^2*xx^2) -> 0.4023371247 | L36: =L35 -> -0.84 | M36: =IF(xx<=x0,1/SQRT(a0^2-b0^2*xx^2),M34) -> 0.4023371247 | N36: =N35 -> -0.5943858 | O36: =O34 -> 0.5 | Q36: =aa -> -2 | R36: 0 | S36: =S35+dxx -> -1.34 | T36: 0.2485870691 | U36: =U35+(T35+T36)*dxx/2 -> 0.147355045 | V36: =ATAN(b00/a00*xxx) -> -0.7291196271 | W36: 0.670455898 | X36: 0.1473559588 | Z36: =Z35 -> -1.68 | AA36: =1/SQRT(a00^2+b00^2*xxxx^2) -> 0.2220052564 | AB36: =AB35 -> -1.68 | AC36: =IF(xxxx<=x00,1/SQRT(a00^2+b00^2*xxxx^2),AC34) -> 0.2220052564 | AD36: =AD35 -> -0.8419416003 | AE36: =IF(xxxx<=x00,1/b00/COS(tt),AE34) -> 0.7507329752
A37: =b -> 1 | B37: 0 | C37: -0.66 | D37: 0.3711961693 | E37: 0.1370663476 | F37: -0.4555986734 | G37: 0.5 | H37: 0.1370644914 | J37: =J35+dx -> -0.83 | K37: 0 | L37: =IF(xx<=x0,L35+dx,L35) -> -0.83 | M37: =K37 -> 0 | N37: =IF(xx<=x0,ASIN(b0/a0*xx),N35) -> -0.5863607366 | O37: 0 | Q37: =bb -> 2 | R37: 0 | S37: -1.32 | T37: 0.250237839 | U37: 0.1523432941 | V37: -0.7216548509 | W37: 0.6660330322 | X37: 0.1523442542 | Z37: =Z35+dxx -> -1.66 | AA37: 0 | AB37: =IF(xxxx<=x00,AB35+dxx,AB35) -> -1.66 | AC37: =AA37 -> 0 | AD37: =IF(xxxx<=x00,ATAN(b00/a00*xxxx),AD35) -> -0.8359878722 | AE37: 0
C38: -0.65 | D38: 0.3698633607 | E38: 0.1407716452 | F38: -0.448188136 | G38: 0.5 | H38: 0.1407697601 | J38: =J37 -> -0.83 | K38: =1/SQRT(a0^2-b0^2*xx^2) -> 0.4001793205 | L38: =L37 -> -0.83 | M38: =IF(xx<=x0,1/SQRT(a0^2-b0^2*xx^2),M36) -> 0.4001793205 | N38: =N37 -> -0.5863607366 | O38: =O36 -> 0.5 | S38: -1.3 | T38: 0.2518963609 | U38: 0.1573646361 | V38: -0.7140906986 | W38: 0.6616477747 | X38: 0.1573656441 | Z38: =Z37 -> -1.66 | AA38: =1/SQRT(a00^2+b00^2*xxxx^2) -> 0.223481683 | AB38: =AB37 -> -1.66 | AC38: =IF(xxxx<=x00,1/SQRT(a00^2+b00^2*xxxx^2),AC36) -> 0.223481683 | AD38: =AD37 -> -0.8359878722 | AE38: =IF(xxxx<=x00,1/b00/COS(tt),AE36) -> 0.745773275
A39: theta-axis | C39: -0.64 | D39: 0.3685648312 | E39: 0.1444637862 | F39: -0.4408039104 | G39: 0.5 | H39: 0.1444618729 | J39: =J37+dx -> -0.82 | K39: 0 | L39: =IF(xx<=x0,L37+dx,L37) -> -0.82 | M39: =K39 -> 0 | N39: =IF(xx<=x0,ASIN(b0/a0*xx),N37) -> -0.57837823 | O39: 0 | Q39: theta-axis | S39: -1.28 | T39: 0.2535622151 | U39: 0.1624192218 | V39: -0.7064260557 | W39: 0.6573008782 | X39: 0.1624202794 | Z39: =Z37+dxx -> -1.64 | AA39: 0 | AB39: =IF(xxxx<=x00,AB37+dxx,AB37) -> -1.64 | AC39: =AA39 -> 0 | AD39: =IF(xxxx<=x00,ATAN(b00/a00*xxxx),AD37) -> -0.8299546415 | AE39: 0
A40: =theta0 -> -0.7297276562 | B40: 0 | C40: -0.63 | D40: 0.3672997023 | E40: 0.1481431088 | F40: -0.4334453201 | G40: 0.5 | H40: 0.1481411681 | J40: =J39 -> -0.82 | K40: =1/SQRT(a0^2-b0^2*xx^2) -> 0.3980810971 | L40: =L39 -> -0.82 | M40: =IF(xx<=x0,1/SQRT(a0^2-b0^2*xx^2),M38) -> 0.3980810971 | N40: =N39 -> -0.57837823 | O40: =O38 -> 0.5 | Q40: =ttheta0 -> -0.927295218 | R40: 0 | S40: -1.26 | T40: 0.2552349549 | U40: 0.1675071935 | V40: -0.6986598247 | W40: 0.6529931087 | X40: 0.1675083022 | Z40: =Z39 -> -1.64 | AA40: =1/SQRT(a00^2+b00^2*xxxx^2) -> 0.2249697436 | AB40: =AB39 -> -1.64 | AC40: =IF(xxxx<=x00,1/SQRT(a00^2+b00^2*xxxx^2),AC38) -> 0.2249697436 | AD40: =AD39 -> -0.8299546415 | AE40: =IF(xxxx<=x00,1/b00/COS(tt),AE38) -> 0.7408403637
A41: =theta00 -> 0.7297276562 | B41: 0 | C41: -0.62 | D41: 0.3660671329 | E41: 0.151809943 | F41: -0.4261117053 | G41: 0.5 | H41: 0.1518079755 | J41: =J39+dx -> -0.81 | K41: 0 | L41: =IF(xx<=x0,L39+dx,L39) -> -0.81 | M41: =K41 -> 0 | N41: =IF(xx<=x0,ASIN(b0/a0*xx),N39) -> -0.5704371094 | O41: 0 | Q41: =ttheta00 -> 0.927295218 | R41: 0 | S41: -1.24 | T41: 0.2569141062 | U41: 0.1726286841 | V41: -0.6907909283 | W41: 0.6487252457 | X41: 0.1726298457 | Z41: =Z39+dxx -> -1.62 | AA41: 0 | AB41: =IF(xxxx<=x00,AB39+dxx,AB39) -> -1.62 | AC41: =AA41 -> 0 | AD41: =IF(xxxx<=x00,ATAN(b00/a00*xxxx),AD39) -> -0.8238407534 | AE41: 0
C42: -0.61 | D42: 0.3648663174 | E42: 0.1554646103 | F42: -0.4188024231 | G42: 0.5 | H42: 0.1554626166 | J42: =J41 -> -0.81 | K42: =1/SQRT(a0^2-b0^2*xx^2) -> 0.3960403804 | L42: =L41 -> -0.81 | M42: =IF(xx<=x0,1/SQRT(a0^2-b0^2*xx^2),M40) -> 0.3960403804 | N42: =N41 -> -0.5704371094 | O42: =O40 -> 0.5 | S42: -1.22 | T42: 0.2585991662 | U42: 0.1777838169 | V42: -0.682818311 | W42: 0.6444980821 | X42: 0.177785033 | Z42: =Z41 -> -1.62 | AA42: =1/SQRT(a00^2+b00^2*xxxx^2) -> 0.2264693438 | AB42: =AB41 -> -1.62 | AC42: =IF(xxxx<=x00,1/SQRT(a00^2+b00^2*xxxx^2),AC40) -> 0.2264693438 | AD42: =AD41 -> -0.8238407534 | AE42: =IF(xxxx<=x00,1/b00/COS(tt),AE40) -> 0.7359347797
C43: -0.6 | D43: 0.3636964837 | E43: 0.1591074243 | F43: -0.4115168461 | G43: 0.5 | H43: 0.1591054051 | J43: =J41+dx -> -0.8 | K43: 0 | L43: =IF(xx<=x0,L41+dx,L41) -> -0.8 | M43: =K43 -> 0 | N43: =IF(xx<=x0,ASIN(b0/a0*xx),N41) -> -0.5625362445 | O43: 0 | S43: -1.2 | T43: 0.2602896031 | U43: 0.1829727046 | V43: -0.6747409422 | W43: 0.6403124237 | X43: 0.1829739771 | Z43: =Z41+dxx -> -1.6 | AA43: 0 | AB43: =IF(xxxx<=x00,AB41+dxx,AB41) -> -1.6 | AC43: =AA43 -> 0 | AD43: =IF(xxxx<=x00,ATAN(b00/a00*xxxx),AD41) -> -0.8176450458 | AE43: 0
C44: -0.59 | D44: 0.3625568919 | E44: 0.1627386911 | F44: -0.4042543621 | G44: 0.5 | H44: 0.1627366471 | J44: =J43 -> -0.8 | K44: =1/SQRT(a0^2-b0^2*xx^2) -> 0.3940552031 | L44: =L43 -> -0.8 | M44: =IF(xx<=x0,1/SQRT(a0^2-b0^2*xx^2),M42) -> 0.3940552031 | N44: =N43 -> -0.5625362445 | O44: =O42 -> 0.5 | S44: -1.18 | T44: 0.2619848548 | U44: 0.1881954491 | V44: -0.6665578188 | W44: 0.63616909 | X44: 0.18819678 | Z44: =Z43 -> -1.6 | AA44: =1/SQRT(a00^2+b00^2*xxxx^2) -> 0.2279803763 | AB44: =AB43 -> -1.6 | AC44: =IF(xxxx<=x00,1/SQRT(a00^2+b00^2*xxxx^2),AC42) -> 0.2279803763 | AD44: =AD43 -> -0.8176450458 | AE44: =IF(xxxx<=x00,1/b00/COS(tt),AE42) -> 0.7310570733
A45: q0 = | B45: =ASIN(b0/a0*a) -> -0.7297276562 | C45: -0.58 | D45: 0.3614468325 | E45: 0.1663587098 | F45: -0.3970143735 | G45: 0.5 | H45: 0.1663566414 | J45: =J43+dx -> -0.79 | K45: 0 | L45: =IF(xx<=x0,L43+dx,L43) -> -0.79 | M45: =K45 -> 0 | N45: =IF(xx<=x0,ASIN(b0/a0*xx),N43) -> -0.5546745435 | O45: 0 | Q45: q0 = | R45: =ATAN(b00/a00*aa) -> -0.927295218 | S45: -1.16 | T45: 0.263684328 | U45: 0.193452141 | V45: -0.6582679678 | W45: 0.6320689133 | X45: 0.193453532 | Z45: =Z43+dxx -> -1.58 | AA45: 0 | AB45: =IF(xxxx<=x00,AB43+dxx,AB43) -> -1.58 | AC45: =AA45 -> 0 | AD45: =IF(xxxx<=x00,ATAN(b00/a00*xxxx),AD43) -> -0.8113663506 | AE45: 0
A46: q00 = | B46: =ASIN(b0/a0*b) -> 0.7297276562 | C46: -0.57 | D46: 0.3603656251 | E46: 0.1699677721 | F46: -0.3897962965 | G46: 0.5 | H46: 0.1699656799 | J46: =J45 -> -0.79 | K46: =1/SQRT(a0^2-b0^2*xx^2) -> 0.3921236972 | L46: =L45 -> -0.79 | M46: =IF(xx<=x0,1/SQRT(a0^2-b0^2*xx^2),M44) -> 0.3921236972 | N46: =N45 -> -0.5546745435 | O46: =O44 -> 0.5 | Q46: q00 = | R46: =ATAN(b00/a00*bb) -> 0.927295218 | S46: -1.14 | T46: 0.265387398 | U46: 0.1987428582 | V46: -0.6498704494 | W46: 0.6280127387 | X46: 0.1987443115 | Z46: =Z45 -> -1.58 | AA46: =1/SQRT(a00^2+b00^2*xxxx^2) -> 0.2295027198 | AB46: =AB45 -> -1.58 | AC46: =IF(xxxx<=x00,1/SQRT(a00^2+b00^2*xxxx^2),AC44) -> 0.2295027198 | AD46: =AD45 -> -0.8113663506 | AE46: =IF(xxxx<=x00,1/b00/COS(tt),AE44) -> 0.7262078062
A47: dq = | B47: =(theta00-theta0)/200 -> 0.007297276562 | C47: -0.56 | D47: 0.359312617 | E47: 0.1735661633 | F47: -0.3825995605 | G47: 0.5 | H47: 0.1735640479 | J47: =J45+dx -> -0.78 | K47: 0 | L47: =IF(xx<=x0,L45+dx,L45) -> -0.78 | M47: =K47 -> 0 | N47: =IF(xx<=x0,ASIN(b0/a0*xx),N45) -> -0.5468509507 | O47: 0 | Q47: dq = | R47: =(ttheta00-ttheta0)/200 -> 0.00927295218 | S47: -1.12 | T47: 0.2670934074 | U47: 0.2040676663 | V47: -0.6413643599 | W47: 0.6240014245 | X47: 0.2040691837 | Z47: =Z45+dxx -> -1.56 | AA47: 0 | AB47: =IF(xxxx<=x00,AB45+dxx,AB45) -> -1.56 | AC47: =AA47 -> 0 | AD47: =IF(xxxx<=x00,ATAN(b00/a00*xxxx),AD45) -> -0.8050034943 | AE47: 0
C48: -0.55 | D48: 0.358287182 | E48: 0.1771541623 | F48: -0.375423608 | G48: 0.5 | H48: 0.1771520241 | J48: =J47 -> -0.78 | K48: =1/SQRT(a0^2-b0^2*xx^2) -> 0.3902440882 | L48: =L47 -> -0.78 | M48: =IF(xx<=x0,1/SQRT(a0^2-b0^2*xx^2),M46) -> 0.3902440882 | N48: =N47 -> -0.5468509507 | O48: =O46 -> 0.5 | S48: -1.1 | T48: 0.2688016653 | U48: 0.209426617 | V48: -0.632748835 | W48: 0.6200358413 | X48: 0.2094282008 | Z48: =Z47 -> -1.56 | AA48: =1/SQRT(a00^2+b00^2*xxxx^2) -> 0.2310362388 | AB48: =AB47 -> -1.56 | AC48: =IF(xxxx<=x00,1/SQRT(a00^2+b00^2*xxxx^2),AC46) -> 0.2310362388 | AD48: =AD47 -> -0.8050034943 | AE48: =IF(xxxx<=x00,1/b00/COS(tt),AE46) -> 0.7213875519
C49: -0.54 | D49: 0.357288719 | E49: 0.1807320418 | F49: -0.3682678934 | G49: 0.5 | H49: 0.1807298814 | J49: =J47+dx -> -0.77 | K49: 0 | L49: =IF(xx<=x0,L47+dx,L47) -> -0.77 | M49: =K49 -> 0 | N49: =IF(xx<=x0,ASIN(b0/a0*xx),N47) -> -0.5390644452 | O49: 0 | S49: -1.08 | T49: 0.2705114472 | U49: 0.2148197481 | V49: -0.624023053 | W49: 0.616116872 | X49: 0.2148214003 | Z49: =Z47+dxx -> -1.54 | AA49: 0 | AB49: =IF(xxxx<=x00,AB47+dxx,AB47) -> -1.54 | AC49: =AA49 -> 0 | AD49: =IF(xxxx<=x00,ATAN(b00/a00*xxxx),AD47) -> -0.7985552989 | AE49: 0
C50: -0.53 | D50: 0.3563166514 | E50: 0.1843000686 | F50: -0.3611318833 | G50: 0.5 | H50: 0.1842978865 | J50: =J49 -> -0.77 | K50: =1/SQRT(a0^2-b0^2*xx^2) -> 0.3884146891 | L50: =L49 -> -0.77 | M50: =IF(xx<=x0,1/SQRT(a0^2-b0^2*xx^2),M48) -> 0.3884146891 | N50: =N49 -> -0.5390644452 | O50: =O48 -> 0.5 | S50: -1.06 | T50: 0.2722219937 | U50: 0.2202470825 | V50: -0.6151862381 | W50: 0.6122454119 | X50: 0.2202488054 | Z50: =Z49 -> -1.54 | AA50: =1/SQRT(a00^2+b00^2*xxxx^2) -> 0.2325807824 | AB50: =AB49 -> -1.54 | AC50: =IF(xxxx<=x00,1/SQRT(a00^2+b00^2*xxxx^2),AC48) -> 0.2325807824 | AD50: =AD49 -> -0.7985552989 | AE50: =IF(xxxx<=x00,1/b00/COS(tt),AE48) -> 0.7165968958
A51: a/b = | B51: =a0/b0 -> 1.5 | C51: -0.52 | D51: 0.3553704251 | E51: 0.187858504 | F51: -0.3540150551 | G51: 0.5 | H51: 0.1878563006 | J51: =J49+dx -> -0.76 | K51: 0 | L51: =IF(xx<=x0,L49+dx,L49) -> -0.76 | M51: =K51 -> 0 | N51: =IF(xx<=x0,ASIN(b0/a0*xx),N49) -> -0.5313140391 | O51: 0 | Q51: a/b = | R51: =a00/b00 -> 1.5 | S51: -1.04 | T51: 0.2739325105 | U51: 0.2257086276 | V51: -0.6062376642 | W51: 0.6084223679 | X51: 0.2257104233 | Z51: =Z49+dxx -> -1.52 | AA51: 0 | AB51: =IF(xxxx<=x00,AB49+dxx,AB49) -> -1.52 | AC51: =AA51 -> 0 | AD51: =IF(xxxx<=x00,ATAN(b00/a00*xxxx),AD49) -> -0.7920205831 | AE51: 0
C52: -0.51 | D52: 0.3544495084 | E52: 0.1914076037 | F52: -0.3469168975 | G52: 0.5 | H52: 0.1914053793 | J52: =J51 -> -0.76 | K52: =1/SQRT(a0^2-b0^2*xx^2) -> 0.3866338952 | L52: =L51 -> -0.76 | M52: =IF(xx<=x0,1/SQRT(a0^2-b0^2*xx^2),M50) -> 0.3866338952 | N52: =N51 -> -0.5313140391 | O52: =O50 -> 0.5 | S52: -1.02 | T52: 0.2756421674 | U52: 0.2312043744 | V52: -0.5971766581 | W52: 0.6046486583 | X52: 0.2312062453 | Z52: =Z51 -> -1.52 | AA52: =1/SQRT(a00^2+b00^2*xxxx^2) -> 0.234136184 | AB52: =AB51 -> -1.52 | AC52: =IF(xxxx<=x00,1/SQRT(a00^2+b00^2*xxxx^2),AC50) -> 0.234136184 | AD52: =AD51 -> -0.7920205831 | AE52: =IF(xxxx<=x00,1/b00/COS(tt),AE50) -> 0.7118364356
C53: -0.5 | D53: 0.3535533906 | E53: 0.1949476182 | F53: -0.3398369095 | G53: 0.5 | H53: 0.1949453734 | J53: =J51+dx -> -0.75 | K53: 0 | L53: =IF(xx<=x0,L51+dx,L51) -> -0.75 | M53: =K53 -> 0 | N53: =IF(xx<=x0,ASIN(b0/a0*xx),N51) -> -0.5235987756 | O53: 0 | S53: -1 | T53: 0.2773500981 | U53: 0.236734297 | V53: -0.5880026035 | W53: 0.6009252126 | X53: 0.2367362455 | Z53: =Z51+dxx -> -1.5 | AA53: 0 | AB53: =IF(xxxx<=x00,AB51+dxx,AB51) -> -1.5 | AC53: =AA53 -> 0 | AD53: =IF(xxxx<=x00,ATAN(b00/a00*xxxx),AD51) -> -0.7853981634 | AE53: 0
C54: -0.49 | D54: 0.3526815812 | E54: 0.198478793 | F54: -0.3327745999 | G54: 0.5 | H54: 0.1984765282 | J54: =J53 -> -0.75 | K54: =1/SQRT(a0^2-b0^2*xx^2) -> 0.3849001795 | L54: =L53 -> -0.75 | M54: =IF(xx<=x0,1/SQRT(a0^2-b0^2*xx^2),M52) -> 0.3849001795 | N54: =N53 -> -0.5235987756 | O54: =O52 -> 0.5 | S54: -0.98 | T54: 0.2790554 | U54: 0.242298352 | V54: -0.5787149449 | W54: 0.5972529708 | X54: 0.2423003805 | Z54: =Z53 -> -1.5 | AA54: =1/SQRT(a00^2+b00^2*xxxx^2) -> 0.2357022604 | AB54: =AB53 -> -1.5 | AC54: =IF(xxxx<=x00,1/SQRT(a00^2+b00^2*xxxx^2),AC52) -> 0.2357022604 | AD54: =AD53 -> -0.7853981634 | AE54: =IF(xxxx<=x00,1/b00/COS(tt),AE52) -> 0.7071067812
C55: -0.48 | D55: 0.3518336091 | E55: 0.202001369 | F55: -0.3257294873 | G55: 0.5 | H55: 0.2019990845 | J55: =J53+dx -> -0.74 | K55: 0 | L55: =IF(xx<=x0,L53+dx,L53) -> -0.74 | M55: =K55 -> 0 | N55: =IF(xx<=x0,ASIN(b0/a0*xx),N53) -> -0.5159177278 | O55: 0 | S55: -0.96 | T55: 0.2807571336 | U55: 0.2478964773 | V55: -0.5693131911 | W55: 0.5936328832 | X55: 0.2478985883 | Z55: =Z53+dxx -> -1.48 | AA55: 0 | AB55: =IF(xxxx<=x00,AB53+dxx,AB53) -> -1.48 | AC55: =AA55 -> 0 | AD55: =IF(xxxx<=x00,ATAN(b00/a00*xxxx),AD53) -> -0.7786868548 | AE55: 0
C56: -0.47 | D56: 0.3510090217 | E56: 0.2055155821 | F56: -0.3187010996 | G56: 0.5 | H56: 0.2055132783 | J56: =J55 -> -0.74 | K56: =1/SQRT(a0^2-b0^2*xx^2) -> 0.3832120872 | L56: =L55 -> -0.74 | M56: =IF(xx<=x0,1/SQRT(a0^2-b0^2*xx^2),M54) -> 0.3832120872 | N56: =N55 -> -0.5159177278 | O56: =O54 -> 0.5 | S56: -0.94 | T56: 0.2824543224 | U56: 0.2535285919 | V56: -0.5597969196 | W56: 0.5900659097 | X56: 0.2535307879 | Z56: =Z55 -> -1.48 | AA56: =1/SQRT(a00^2+b00^2*xxxx^2) -> 0.2372788109 | AB56: =AB55 -> -1.48 | AC56: =IF(xxxx<=x00,1/SQRT(a00^2+b00^2*xxxx^2),AC54) -> 0.2372788109 | AD56: =AD55 -> -0.7786868548 | AE56: =IF(xxxx<=x00,1/b00/COS(tt),AE54) -> 0.7024085547
C57: -0.46 | D57: 0.3502073842 | E57: 0.2090216642 | F57: -0.3116889734 | G57: 0.5 | H57: 0.2090193414 | J57: =J55+dx -> -0.73 | K57: 0 | L57: =IF(xx<=x0,L55+dx,L55) -> -0.73 | M57: =K57 -> 0 | N57: =IF(xx<=x0,ASIN(b0/a0*xx),N55) -> -0.5082699972 | O57: 0 | S57: -0.92 | T57: 0.284145953 | U57: 0.2591945946 | V57: -0.5501657804 | W57: 0.5865530193 | X57: 0.2591968782 | Z57: =Z55+dxx -> -1.46 | AA57: 0 | AB57: =IF(xxxx<=x00,AB55+dxx,AB55) -> -1.46 | AC57: =AA57 -> 0 | AD57: =IF(xxxx<=x00,ATAN(b00/a00*xxxx),AD55) -> -0.7718854724 | AE57: 0
C58: -0.45 | D58: 0.3494282789 | E58: 0.2125198425 | F58: -0.304692654 | G58: 0.5 | H58: 0.2125175011 | J58: =J57 -> -0.73 | K58: =1/SQRT(a0^2-b0^2*xx^2) -> 0.3815682324 | L58: =L57 -> -0.73 | M58: =IF(xx<=x0,1/SQRT(a0^2-b0^2*xx^2),M56) -> 0.3815682324 | N58: =N57 -> -0.5082699972 | O58: =O56 -> 0.5 | S58: -0.9 | T58: 0.2858309752 | U58: 0.2648943639 | V58: -0.5404195003 | W58: 0.5830951895 | X58: 0.2648967377 | Z58: =Z57 -> -1.46 | AA58: =1/SQRT(a00^2+b00^2*xxxx^2) -> 0.2388656168 | AB58: =AB57 -> -1.46 | AC58: =IF(xxxx<=x00,1/SQRT(a00^2+b00^2*xxxx^2),AC56) -> 0.2388656168 | AD58: =AD57 -> -0.7718854724 | AE58: =IF(xxxx<=x00,1/b00/COS(tt),AE56) -> 0.6977423912
C59: -0.44 | D59: 0.3486713046 | E59: 0.2160103404 | F59: -0.2977116947 | G59: 0.5 | H59: 0.2160079807 | J59: =J57+dx -> -0.72 | K59: 0 | L59: =IF(xx<=x0,L57+dx,L57) -> -0.72 | M59: =K59 -> 0 | N59: =IF(xx<=x0,ASIN(b0/a0*xx),N57) -> -0.5006547124 | O59: 0 | S59: -0.88 | T59: 0.2875083019 | U59: 0.2706277567 | V59: -0.530557887 | W59: 0.5796934056 | X59: 0.2706302234 | Z59: =Z57+dxx -> -1.44 | AA59: 0 | AB59: =IF(xxxx<=x00,AB57+dxx,AB57) -> -1.44 | AC59: =AA59 -> 0 | AD59: =IF(xxxx<=x00,ATAN(b00/a00*xxxx),AD57) -> -0.7649928327 | AE59: 0
C60: -0.43 | D60: 0.3479360758 | E60: 0.2194933773 | F60: -0.2907456569 | G60: 0.5 | H60: 0.2194909997 | J60: =J59 -> -0.72 | K60: =1/SQRT(a0^2-b0^2*xx^2) -> 0.3799672938 | L60: =L59 -> -0.72 | M60: =IF(xx<=x0,1/SQRT(a0^2-b0^2*xx^2),M58) -> 0.3799672938 | N60: =N59 -> -0.5006547124 | O60: =O58 -> 0.5 | S60: -0.86 | T60: 0.2891768096 | U60: 0.2763946078 | V60: -0.5205808335 | W60: 0.5763486599 | X60: 0.2763971702 | Z60: =Z59 -> -1.44 | AA60: =1/SQRT(a00^2+b00^2*xxxx^2) -> 0.2404624403 | AB60: =AB59 -> -1.44 | AC60: =IF(xxxx<=x00,1/SQRT(a00^2+b00^2*xxxx^2),AC58) -> 0.2404624403 | AD60: =AD59 -> -0.7649928327 | AE60: =IF(xxxx<=x00,1/b00/COS(tt),AE58) -> 0.693108938
C61: -0.42 | D61: 0.3472222222 | E61: 0.2229691688 | F61: -0.2837941092 | G61: 0.5 | H61: 0.2229667735 | J61: =J59+dx -> -0.71 | K61: 0 | L61: =IF(xx<=x0,L59+dx,L59) -> -0.71 | M61: =K61 -> 0 | N61: =IF(xx<=x0,ASIN(b0/a0*xx),N59) -> -0.4930710278 | O61: 0 | S61: -0.84 | T61: 0.2908353386 | U61: 0.2821947293 | V61: -0.5104883219 | W61: 0.5730619513 | X61: 0.2821973902 | Z61: =Z59+dxx -> -1.42 | AA61: 0 | AB61: =IF(xxxx<=x00,AB59+dxx,AB59) -> -1.42 | AC61: =AA61 -> 0 | AD61: =IF(xxxx<=x00,ATAN(b00/a00*xxxx),AD59) -> -0.7580077549 | AE61: 0
C62: -0.41 | D62: 0.3465293881 | E62: 0.2264379268 | F62: -0.2768566278 | G62: 0.5 | H62: 0.2264355142 | J62: =J61 -> -0.71 | K62: =1/SQRT(a0^2-b0^2*xx^2) -> 0.3784080109 | L62: =L61 -> -0.71 | M62: =IF(xx<=x0,1/SQRT(a0^2-b0^2*xx^2),M60) -> 0.3784080109 | N62: =N61 -> -0.4930710278 | O62: =O60 -> 0.5 | S62: -0.82 | T62: 0.2924826943 | U62: 0.2880279096 | V62: -0.5002804282 | W62: 0.5698342839 | X62: 0.2880306718 | Z62: =Z61 -> -1.42 | AA62: =1/SQRT(a00^2+b00^2*xxxx^2) -> 0.2420690239 | AB62: =AB61 -> -1.42 | AC62: =IF(xxxx<=x00,1/SQRT(a00^2+b00^2*xxxx^2),AC60) -> 0.2420690239 | AD62: =AD61 -> -0.7580077549 | AE62: =IF(xxxx<=x00,1/b00/COS(tt),AE60) -> 0.6885088557
C63: -0.4 | D63: 0.3458572319 | E63: 0.2298998599 | F63: -0.2699327958 | G63: 0.5 | H63: 0.2298974302 | J63: =J61+dx -> -0.7 | K63: 0 | L63: =IF(xx<=x0,L61+dx,L61) -> -0.7 | M63: =K63 -> 0 | N63: =IF(xx<=x0,ASIN(b0/a0*xx),N61) -> -0.4855181223 | O63: 0 | S63: -0.8 | T63: 0.2941176471 | U63: 0.293893913 | V63: -0.4899573263 | W63: 0.5666666667 | X63: 0.2938967794 | Z63: =Z61+dxx -> -1.4 | AA63: 0 | AB63: =IF(xxxx<=x00,AB61+dxx,AB61) -> -1.4 | AC63: =AA63 -> 0 | AD63: =IF(xxxx<=x00,ATAN(b00/a00*xxxx),AD61) -> -0.7509290624 | AE63: 0
C64: -0.39 | D64: 0.3452054256 | E64: 0.2333551732 | F64: -0.2630222029 | G64: 0.5 | H64: 0.2333527267 | J64: =J63 -> -0.7 | K64: =1/SQRT(a0^2-b0^2*xx^2) -> 0.3768891807 | L64: =L63 -> -0.7 | M64: =IF(xx<=x0,1/SQRT(a0^2-b0^2*xx^2),M62) -> 0.3768891807 | N64: =N63 -> -0.4855181223 | O64: =O62 -> 0.5 | S64: -0.78 | T64: 0.2957389337 | U64: 0.2997924789 | V64: -0.479519292 | W64: 0.5635601121 | X64: 0.2997954523 | Z64: =Z63 -> -1.4 | AA64: =1/SQRT(a00^2+b00^2*xxxx^2) -> 0.2436850894 | AB64: =AB63 -> -1.4 | AC64: =IF(xxxx<=x00,1/SQRT(a00^2+b00^2*xxxx^2),AC62) -> 0.2436850894 | AD64: =AD63 -> -0.7509290624 | AE64: =IF(xxxx<=x00,1/b00/COS(tt),AE62) -> 0.6839428176
C65: -0.38 | D65: 0.344573654 | E65: 0.2368040686 | F65: -0.2561244452 | G65: 0.5 | H65: 0.2368016055 | J65: =J63+dx -> -0.69 | K65: 0 | L65: =IF(xx<=x0,L63+dx,L63) -> -0.69 | M65: =K65 -> 0 | N65: =IF(xx<=x0,ASIN(b0/a0*xx),N63) -> -0.4779951985 | O65: 0 | S65: -0.76 | T65: 0.2973452587 | U65: 0.3057233208 | V65: -0.4689667078 | W65: 0.5605156356 | X65: 0.3057264043 | Z65: =Z63+dxx -> -1.38 | AA65: 0 | AB65: =IF(xxxx<=x00,AB63+dxx,AB63) -> -1.38 | AC65: =AA65 -> 0 | AD65: =IF(xxxx<=x00,ATAN(b00/a00*xxxx),AD63) -> -0.7437555843 | AE65: 0
C66: -0.37 | D66: 0.3439616149 | E66: 0.240246745 | F66: -0.2492391252 | G66: 0.5 | H66: 0.2402442655 | J66: =J65 -> -0.69 | K66: =1/SQRT(a0^2-b0^2*xx^2) -> 0.3754096547 | L66: =L65 -> -0.69 | M66: =IF(xx<=x0,1/SQRT(a0^2-b0^2*xx^2),M64) -> 0.3754096547 | N66: =N65 -> -0.4779951985 | O66: =O64 -> 0.5 | S66: -0.74 | T66: 0.2989352949 | U66: 0.3116861263 | V66: -0.4583000664 | W66: 0.5575342541 | X66: 0.3116893229 | Z66: =Z65 -> -1.38 | AA66: =1/SQRT(a00^2+b00^2*xxxx^2) -> 0.2453103373 | AB66: =AB65 -> -1.38 | AC66: =IF(xxxx<=x00,1/SQRT(a00^2+b00^2*xxxx^2),AC64) -> 0.2453103373 | AD66: =AD65 -> -0.7437555843 | AE66: =IF(xxxx<=x00,1/b00/COS(tt),AE64) -> 0.6794115101
C67: -0.36 | D67: =1/SQRT(a0^2-b0^2*x^2) -> 0.3433690181 | E67: 0.2436833981 | F67: -0.242365851 | G67: =1/b0 -> 0.5 | H67: 0.2436809026 | J67: =J65+dx -> -0.68 | K67: 0 | L67: =IF(xx<=x0,L65+dx,L65) -> -0.68 | M67: =K67 -> 0 | N67: =IF(xx<=x0,ASIN(b0/a0*xx),N65) -> -0.4705014814 | O67: 0 | S67: -0.72 | T67: =1/SQRT(a00^2+b00^2*xxx^2) -> 0.3005076858 | U67: 0.3176805561 | V67: -0.4475199752 | W67: =1/b00/COS(t) -> 0.554616985 | X67: 0.3176838688 | Z67: =Z65+dxx -> -1.36 | AA67: 0 | AB67: =IF(xxxx<=x00,AB65+dxx,AB65) -> -1.36 | AC67: =AA67 -> 0 | AD67: =IF(xxxx<=x00,ATAN(b00/a00*xxxx),AD65) -> -0.7364861572 | AE67: 0
C68: =C67+dx -> -0.35 | D68: 0.3427955851 | E68: =E67+(D67+D68)*dx/2 -> 0.2471142211 | F68: =ASIN(b0/a0*x) -> -0.2355042367 | G68: 0.5 | H68: 0.2471117098 | J68: =J67 -> -0.68 | K68: =1/SQRT(a0^2-b0^2*xx^2) -> 0.3739683355 | L68: =L67 -> -0.68 | M68: =IF(xx<=x0,1/SQRT(a0^2-b0^2*xx^2),M66) -> 0.3739683355 | N68: =N67 -> -0.4705014814 | O68: =O66 -> 0.5 | S68: =S67+dxx -> -0.7 | T68: 0.3020610467 | U68: =U67+(T67+T68)*dxx/2 -> 0.3237062434 | V68: =ATAN(b00/a00*xxx) -> -0.4366271598 | W68: 0.5517648452 | X68: 0.3237096753 | Z68: =Z67 -> -1.36 | AA68: =1/SQRT(a00^2+b00^2*xxxx^2) -> 0.2469444455 | AB68: =AB67 -> -1.36 | AC68: =IF(xxxx<=x00,1/SQRT(a00^2+b00^2*xxxx^2),AC66) -> 0.2469444455 | AD68: =AD67 -> -0.7364861572 | AE68: =IF(xxxx<=x00,1/b00/COS(tt),AE66) -> 0.6749156326
C69: -0.34 | D69: 0.3422410489 | E69: 0.2505394043 | F69: -0.2286539017 | G69: 0.5 | H69: =H68+(G68+G69)*(F69-F68)/2 -> 0.2505368773 | J69: =J67+dx -> -0.67 | K69: 0 | L69: =IF(xx<=x0,L67+dx,L67) -> -0.67 | M69: =K69 -> 0 | N69: =IF(xx<=x0,ASIN(b0/a0*xx),N67) -> -0.4630362174 | O69: 0 | S69: -0.68 | T69: 0.3035939666 | U69: 0.3297627936 | V69: -0.4256224683 | W69: 0.54897885 | X69: =X68+(W68+W69)*(V69-V68)/2 -> 0.3297663477 | Z69: =Z67+dxx -> -1.34 | AA69: 0 | AB69: =IF(xxxx<=x00,AB67+dxx,AB67) -> -1.34 | AC69: =AA69 -> 0 | AD69: =IF(xxxx<=x00,ATAN(b00/a00*xxxx),AD67) -> -0.7291196271 | AE69: 0
C70: -0.33 | D70: 0.3417051534 | E70: 0.2539591353 | F70: -0.2218144705 | G70: 0.5 | H70: 0.2539565929 | J70: =J69 -> -0.67 | K70: =1/SQRT(a0^2-b0^2*xx^2) -> 0.3725641746 | L70: =L69 -> -0.67 | M70: =IF(xx<=x0,1/SQRT(a0^2-b0^2*xx^2),M68) -> 0.3725641746 | N70: =N69 -> -0.4630362174 | O70: =O68 -> 0.5 | S70: -0.66 | T70: 0.3051050108 | U70: 0.3358497834 | V70: -0.4145068746 | W70: 0.5462600113 | X70: 0.3358534628 | Z70: =Z69 -> -1.34 | AA70: =1/SQRT(a00^2+b00^2*xxxx^2) -> 0.2485870691 | AB70: =AB69 -> -1.34 | AC70: =IF(xxxx<=x00,1/SQRT(a00^2+b00^2*xxxx^2),AC68) -> 0.2485870691 | AD70: =AD69 -> -0.7291196271 | AE70: =IF(xxxx<=x00,1/b00/COS(tt),AE68) -> 0.670455898
C71: -0.32 | D71: 0.3411876532 | E71: 0.2573735994 | F71: -0.2149855729 | G71: 0.5 | H71: 0.2573710417 | J71: =J69+dx -> -0.66 | K71: 0 | L71: =IF(xx<=x0,L69+dx,L69) -> -0.66 | M71: =K71 -> 0 | N71: =IF(xx<=x0,ASIN(b0/a0*xx),N69) -> -0.4555986734 | O71: 0 | S71: -0.64 | T71: 0.3065927227 | U71: 0.3419667607 | V71: -0.4032814817 | W71: 0.5436093369 | X71: 0.3419705686 | Z71: =Z69+dxx -> -1.32 | AA71: 0 | AB71: =IF(xxxx<=x00,AB69+dxx,AB69) -> -1.32 | AC71: =AA71 -> 0 | AD71: =IF(xxxx<=x00,ATAN(b00/a00*xxxx),AD69) -> -0.7216548509 | AE71: 0
C72: -0.31 | D72: 0.3406883134 | E72: 0.2607829792 | F72: -0.2081668433 | G72: 0.5 | H72: 0.2607804065 | J72: =J71 -> -0.66 | K72: =1/SQRT(a0^2-b0^2*xx^2) -> 0.3711961693 | L72: =L71 -> -0.66 | M72: =IF(xx<=x0,1/SQRT(a0^2-b0^2*xx^2),M70) -> 0.3711961693 | N72: =N71 -> -0.4555986734 | O72: =O70 -> 0.5 | S72: -0.62 | T72: 0.3080556266 | U72: 0.3481132442 | V72: -0.3919475255 | W72: 0.5410278284 | X72: 0.3481171837 | Z72: =Z71 -> -1.32 | AA72: =1/SQRT(a00^2+b00^2*xxxx^2) -> 0.250237839 | AB72: =AB71 -> -1.32 | AC72: =IF(xxxx<=x00,1/SQRT(a00^2+b00^2*xxxx^2),AC70) -> 0.250237839 | AD72: =AD71 -> -0.7216548509 | AE72: =IF(xxxx<=x00,1/b00/COS(tt),AE70) -> 0.6660330322
C73: -0.3 | D73: 0.3402069087 | E73: 0.2641874553 | F73: -0.2013579208 | G73: 0.5 | H73: 0.2641848677 | J73: =J71+dx -> -0.65 | K73: 0 | L73: =IF(xx<=x0,L71+dx,L71) -> -0.65 | M73: =K73 -> 0 | N73: =IF(xx<=x0,ASIN(b0/a0*xx),N71) -> -0.448188136 | O73: 0 | S73: -0.6 | T73: 0.3094922303 | U73: 0.3542887227 | V73: -0.3805063771 | W73: 0.5385164807 | X73: 0.354292797 | Z73: =Z71+dxx -> -1.3 | AA73: 0 | AB73: =IF(xxxx<=x00,AB71+dxx,AB71) -> -1.3 | AC73: =AA73 -> 0 | AD73: =IF(xxxx<=x00,ATAN(b00/a00*xxxx),AD71) -> -0.7140906986 | AE73: 0
C74: -0.29 | D74: 0.339743224 | E74: 0.267587206 | F74: -0.1945584488 | G74: 0.5 | H74: 0.2675846037 | J74: =J73 -> -0.65 | K74: =1/SQRT(a0^2-b0^2*xx^2) -> 0.3698633607 | L74: =L73 -> -0.65 | M74: =IF(xx<=x0,1/SQRT(a0^2-b0^2*xx^2),M72) -> 0.3698633607 | N74: =N73 -> -0.448188136 | O74: =O72 -> 0.5 | S74: -0.58 | T74: 0.3109010283 | U74: 0.3604926553 | V74: -0.3689595462 | W74: 0.5360762798 | X74: 0.3604968675 | Z74: =Z73 -> -1.3 | AA74: =1/SQRT(a00^2+b00^2*xxxx^2) -> 0.2518963609 | AB74: =AB73 -> -1.3 | AC74: =IF(xxxx<=x00,1/SQRT(a00^2+b00^2*xxxx^2),AC72) -> 0.2518963609 | AD74: =AD73 -> -0.7140906986 | AE74: =IF(xxxx<=x00,1/b00/COS(tt),AE72) -> 0.6616477747
C75: -0.28 | D75: 0.3392970532 | E75: 0.2709824074 | F75: -0.1877680751 | G75: 0.5 | H75: 0.2709797906 | J75: =J73+dx -> -0.64 | K75: 0 | L75: =IF(xx<=x0,L73+dx,L73) -> -0.64 | M75: =K75 -> 0 | N75: =IF(xx<=x0,ASIN(b0/a0*xx),N73) -> -0.4408039104 | O75: 0 | S75: -0.56 | T75: 0.3122805049 | U75: 0.3667244707 | V75: -0.357308683 | W75: 0.5337082016 | X75: 0.3667288238 | Z75: =Z73+dxx -> -1.28 | AA75: 0 | AB75: =IF(xxxx<=x00,AB73+dxx,AB73) -> -1.28 | AC75: =AA75 -> 0 | AD75: =IF(xxxx<=x00,ATAN(b00/a00*xxxx),AD73) -> -0.7064260557 | AE75: 0
C76: -0.27 | D76: 0.3388681997 | E76: 0.2743732336 | F76: -0.1809864512 | G76: 0.5 | H76: 0.2743706025 | J76: =J75 -> -0.64 | K76: =1/SQRT(a0^2-b0^2*xx^2) -> 0.3685648312 | L76: =L75 -> -0.64 | M76: =IF(xx<=x0,1/SQRT(a0^2-b0^2*xx^2),M74) -> 0.3685648312 | N76: =N75 -> -0.4408039104 | O76: =O74 -> 0.5 | S76: -0.54 | T76: 0.3136291373 | U76: 0.3729835671 | V76: -0.3455555806 | W76: 0.5314132102 | X76: 0.3729880643 | Z76: =Z75 -> -1.28 | AA76: =1/SQRT(a00^2+b00^2*xxxx^2) -> 0.2535622151 | AB76: =AB75 -> -1.28 | AC76: =IF(xxxx<=x00,1/SQRT(a00^2+b00^2*xxxx^2),AC74) -> 0.2535622151 | AD76: =AD75 -> -0.7064260557 | AE76: =IF(xxxx<=x00,1/b00/COS(tt),AE74) -> 0.6573008782
C77: -0.26 | D77: 0.3384564757 | E77: 0.277759857 | F77: -0.1742132329 | G77: 0.5 | H77: 0.2777572117 | J77: =J75+dx -> -0.63 | K77: 0 | L77: =IF(xx<=x0,L75+dx,L75) -> -0.63 | M77: =K77 -> 0 | N77: =IF(xx<=x0,ASIN(b0/a0*xx),N75) -> -0.4334453201 | O77: 0 | S77: -0.52 | T77: 0.3149453995 | U77: 0.3792693125 | V77: -0.3337021765 | W77: 0.5291922566 | X77: 0.3792739569 | Z77: =Z75+dxx -> -1.26 | AA77: 0 | AB77: =IF(xxxx<=x00,AB75+dxx,AB75) -> -1.26 | AC77: =AA77 -> 0 | AD77: =IF(xxxx<=x00,ATAN(b00/a00*xxxx),AD75) -> -0.6986598247 | AE77: 0
C78: -0.25 | D78: 0.3380617019 | E78: 0.2811424479 | F78: -0.1674480792 | G78: 0.5 | H78: 0.2811397885 | J78: =J77 -> -0.63 | K78: =1/SQRT(a0^2-b0^2*xx^2) -> 0.3672997023 | L78: =L77 -> -0.63 | M78: =IF(xx<=x0,1/SQRT(a0^2-b0^2*xx^2),M76) -> 0.3672997023 | N78: =N77 -> -0.4334453201 | O78: =O76 -> 0.5 | S78: -0.5 | T78: 0.316227766 | U78: 0.3855810441 | V78: -0.3217505544 | W78: 0.5270462767 | X78: 0.3855858388 | Z78: =Z77 -> -1.26 | AA78: =1/SQRT(a00^2+b00^2*xxxx^2) -> 0.2552349549 | AB78: =AB77 -> -1.26 | AC78: =IF(xxxx<=x00,1/SQRT(a00^2+b00^2*xxxx^2),AC76) -> 0.2552349549 | AD78: =AD77 -> -0.6986598247 | AE78: =IF(xxxx<=x00,1/b00/COS(tt),AE76) -> 0.6529931087
C79: -0.24 | D79: 0.3376837077 | E79: 0.2845211749 | F79: -0.160690653 | G79: 0.5 | H79: 0.2845185016 | J79: =J77+dx -> -0.62 | K79: 0 | L79: =IF(xx<=x0,L77+dx,L77) -> -0.62 | M79: =K79 -> 0 | N79: =IF(xx<=x0,ASIN(b0/a0*xx),N77) -> -0.4261117053 | O79: 0 | S79: -0.48 | T79: 0.3174747157 | U79: 0.3919180689 | V79: -0.3097029445 | W79: 0.5249761899 | X79: 0.3919230169 | Z79: =Z77+dxx -> -1.24 | AA79: 0 | AB79: =IF(xxxx<=x00,AB77+dxx,AB77) -> -1.24 | AC79: =AA79 -> 0 | AD79: =IF(xxxx<=x00,ATAN(b00/a00*xxxx),AD77) -> -0.6907909283 | AE79: 0
C80: -0.23 | D80: 0.3373223306 | E80: 0.2878962051 | F80: -0.1539406201 | G80: 0.5 | H80: 0.287893518 | J80: =J79 -> -0.62 | K80: =1/SQRT(a0^2-b0^2*xx^2) -> 0.3660671329 | L80: =L79 -> -0.62 | M80: =IF(xx<=x0,1/SQRT(a0^2-b0^2*xx^2),M78) -> 0.3660671329 | N80: =N79 -> -0.4261117053 | O80: =O78 -> 0.5 | S80: -0.46 | T80: 0.3186847361 | U80: 0.3982796634 | V80: -0.2975617247 | W80: 0.5229828975 | X80: 0.3982847677 | Z80: =Z79 -> -1.24 | AA80: =1/SQRT(a00^2+b00^2*xxxx^2) -> 0.2569141062 | AB80: =AB79 -> -1.24 | AC80: =IF(xxxx<=x00,1/SQRT(a00^2+b00^2*xxxx^2),AC78) -> 0.2569141062 | AD80: =AD79 -> -0.6907909283 | AE80: =IF(xxxx<=x00,1/b00/COS(tt),AE78) -> 0.6487252457
C81: -0.22 | D81: 0.3369774163 | E81: 0.2912677039 | F81: -0.14719765 | G81: 0.5 | H81: 0.2912650031 | J81: =J79+dx -> -0.61 | K81: 0 | L81: =IF(xx<=x0,L79+dx,L79) -> -0.61 | M81: =K81 -> 0 | N81: =IF(xx<=x0,ASIN(b0/a0*xx),N79) -> -0.4188024231 | O81: 0 | S81: -0.44 | T81: 0.3198563272 | U81: 0.4046650741 | V81: -0.2853294202 | W81: 0.5210672808 | X81: 0.4046703376 | Z81: =Z79+dxx -> -1.22 | AA81: 0 | AB81: =IF(xxxx<=x00,AB79+dxx,AB79) -> -1.22 | AC81: =AA81 -> 0 | AD81: =IF(xxxx<=x00,ATAN(b00/a00*xxxx),AD79) -> -0.682818311 | AE81: 0
C82: -0.21 | D82: 0.336648818 | E82: 0.294635835 | F82: -0.1404614147 | G82: 0.5 | H82: 0.2946331208 | J82: =J81 -> -0.61 | K82: =1/SQRT(a0^2-b0^2*xx^2) -> 0.3648663174 | L82: =L81 -> -0.61 | M82: =IF(xx<=x0,1/SQRT(a0^2-b0^2*xx^2),M80) -> 0.3648663174 | N82: =N81 -> -0.4188024231 | O82: =O80 -> 0.5 | S82: -0.42 | T82: 0.3209880066 | U82: 0.4110735174 | V82: -0.2730087031 | W82: 0.5192301994 | X82: 0.4110789431 | Z82: =Z81 -> -1.22 | AA82: =1/SQRT(a00^2+b00^2*xxxx^2) -> 0.2585991662 | AB82: =AB81 -> -1.22 | AC82: =IF(xxxx<=x00,1/SQRT(a00^2+b00^2*xxxx^2),AC80) -> 0.2585991662 | AD82: =AD81 -> -0.682818311 | AE82: =IF(xxxx<=x00,1/b00/COS(tt),AE80) -> 0.6444980821
C83: -0.2 | D83: 0.336336397 | E83: 0.2980007611 | F83: -0.1337315894 | G83: 0.5 | H83: 0.2979980334 | J83: =J81+dx -> -0.6 | K83: 0 | L83: =IF(xx<=x0,L81+dx,L81) -> -0.6 | M83: =K83 -> 0 | N83: =IF(xx<=x0,ASIN(b0/a0*xx),N81) -> -0.4115168461 | O83: 0 | S83: -0.4 | T83: 0.3220783132 | U83: 0.4175041806 | V83: -0.2606023917 | W83: 0.5174724899 | X83: 0.4175097713 | Z83: =Z81+dxx -> -1.2 | AA83: 0 | AB83: =IF(xxxx<=x00,AB81+dxx,AB81) -> -1.2 | AC83: =AA83 -> 0 | AD83: =IF(xxxx<=x00,ATAN(b00/a00*xxxx),AD81) -> -0.6747409422 | AE83: 0
C84: -0.19 | D84: 0.3360400218 | E84: 0.3013626432 | F84: -0.1270078519 | G84: 0.5 | H84: 0.3013599022 | J84: =J83 -> -0.6 | K84: =1/SQRT(a0^2-b0^2*xx^2) -> 0.3636964837 | L84: =L83 -> -0.6 | M84: =IF(xx<=x0,1/SQRT(a0^2-b0^2*xx^2),M82) -> 0.3636964837 | N84: =N83 -> -0.4115168461 | O84: =O82 -> 0.5 | S84: -0.38 | T84: 0.3231258125 | U84: 0.4239562219 | V84: -0.2481134491 | W84: 0.5157949636 | X84: 0.4239619802 | Z84: =Z83 -> -1.2 | AA84: =1/SQRT(a00^2+b00^2*xxxx^2) -> 0.2602896031 | AB84: =AB83 -> -1.2 | AC84: =IF(xxxx<=x00,1/SQRT(a00^2+b00^2*xxxx^2),AC82) -> 0.2602896031 | AD84: =AD83 -> -0.6747409422 | AE84: =IF(xxxx<=x00,1/b00/COS(tt),AE82) -> 0.6403124237
C85: -0.18 | D85: 0.3357595683 | E85: 0.3047216411 | F85: -0.1202898824 | G85: 0.5 | H85: 0.3047188869 | J85: =J83+dx -> -0.59 | K85: 0 | L85: =IF(xx<=x0,L83+dx,L83) -> -0.59 | M85: =K85 -> 0 | N85: =IF(xx<=x0,ASIN(b0/a0*xx),N83) -> -0.4042543621 | O85: 0 | S85: -0.36 | T85: 0.3241291007 | U85: 0.430428771 | V85: -0.2355449807 | W85: 0.5141984053 | X85: 0.4304346998 | Z85: =Z83+dxx -> -1.18 | AA85: 0 | AB85: =IF(xxxx<=x00,AB83+dxx,AB83) -> -1.18 | AC85: =AA85 -> 0 | AD85: =IF(xxxx<=x00,ATAN(b00/a00*xxxx),AD83) -> -0.6665578188 | AE85: 0
C86: -0.17 | D86: 0.3354949198 | E86: 0.3080779136 | F86: -0.1135773638 | G86: 0.5 | H86: 0.3080751462 | J86: =J85 -> -0.59 | K86: =1/SQRT(a0^2-b0^2*xx^2) -> 0.3625568919 | L86: =L85 -> -0.59 | M86: =IF(xx<=x0,1/SQRT(a0^2-b0^2*xx^2),M84) -> 0.3625568919 | N86: =N85 -> -0.4042543621 | O86: =O84 -> 0.5 | S86: -0.34 | T86: 0.3250868098 | U86: 0.4369209301 | V86: -0.2229002323 | W86: 0.5126835715 | X86: 0.4369270319 | Z86: =Z85 -> -1.18 | AA86: =1/SQRT(a00^2+b00^2*xxxx^2) -> 0.2619848548 | AB86: =AB85 -> -1.18 | AC86: =IF(xxxx<=x00,1/SQRT(a00^2+b00^2*xxxx^2),AC84) -> 0.2619848548 | AD86: =AD85 -> -0.6665578188 | AE86: =IF(xxxx<=x00,1/b00/COS(tt),AE84) -> 0.63616909
C87: -0.16 | D87: 0.3352459663 | E87: 0.311431618 | F87: -0.106869981 | G87: 0.5 | H87: 0.3114288376 | J87: =J85+dx -> -0.58 | K87: 0 | L87: =IF(xx<=x0,L85+dx,L85) -> -0.58 | M87: =K87 -> 0 | N87: =IF(xx<=x0,ASIN(b0/a0*xx),N85) -> -0.3970143735 | O87: 0 | S87: -0.32 | T87: 0.3259976121 | U87: 0.4434317743 | V87: -0.2101825867 | W87: 0.5112511885 | X87: 0.4434380516 | Z87: =Z85+dxx -> -1.16 | AA87: 0 | AB87: =IF(xxxx<=x00,AB85+dxx,AB85) -> -1.16 | AC87: =AA87 -> 0 | AD87: =IF(xxxx<=x00,ATAN(b00/a00*xxxx),AD85) -> -0.6582679678 | AE87: 0
C88: -0.15 | D88: 0.3350126051 | E88: 0.3147829109 | F88: -0.1001674212 | G88: 0.5 | H88: 0.3147801175 | J88: =J87 -> -0.58 | K88: =1/SQRT(a0^2-b0^2*xx^2) -> 0.3614468325 | L88: =L87 -> -0.58 | M88: =IF(xx<=x0,1/SQRT(a0^2-b0^2*xx^2),M86) -> 0.3614468325 | N88: =N87 -> -0.3970143735 | O88: =O86 -> 0.5 | S88: -0.3 | T88: 0.3268602252 | U88: 0.4499603527 | V88: -0.1973955598 | W88: 0.5099019514 | X88: 0.4499668079 | Z88: =Z87 -> -1.16 | AA88: =1/SQRT(a00^2+b00^2*xxxx^2) -> 0.263684328 | AB88: =AB87 -> -1.16 | AC88: =IF(xxxx<=x00,1/SQRT(a00^2+b00^2*xxxx^2),AC86) -> 0.263684328 | AD88: =AD87 -> -0.6582679678 | AE88: =IF(xxxx<=x00,1/b00/COS(tt),AE86) -> 0.6320689133
C89: -0.14 | D89: 0.33479474 | E89: 0.3181319476 | F89: -0.09346937346 | G89: 0.5 | H89: 0.3181291414 | J89: =J87+dx -> -0.57 | K89: 0 | L89: =IF(xx<=x0,L87+dx,L87) -> -0.57 | M89: =K89 -> 0 | N89: =IF(xx<=x0,ASIN(b0/a0*xx),N87) -> -0.3897962965 | O89: 0 | S89: -0.28 | T89: 0.3276734163 | U89: 0.4565056891 | V89: -0.1845427972 | W89: 0.5086365216 | X89: 0.4565123245 | Z89: =Z87+dxx -> -1.14 | AA89: 0 | AB89: =IF(xxxx<=x00,AB87+dxx,AB87) -> -1.14 | AC89: =AA89 -> 0 | AD89: =IF(xxxx<=x00,ATAN(b00/a00*xxxx),AD87) -> -0.6498704494 | AE89: 0
C90: -0.13 | D90: 0.3345922817 | E90: 0.3214788827 | F90: -0.08677552885 | G90: 0.5 | H90: 0.3214760637 | J90: =J89 -> -0.57 | K90: =1/SQRT(a0^2-b0^2*xx^2) -> 0.3603656251 | L90: =L89 -> -0.57 | M90: =IF(xx<=x0,1/SQRT(a0^2-b0^2*xx^2),M88) -> 0.3603656251 | N90: =N89 -> -0.3897962965 | O90: =O88 -> 0.5 | S90: -0.26 | T90: 0.3284360068 | U90: 0.4630667833 | V90: -0.1716280684 | W90: 0.5074555262 | X90: 0.4630736012 | Z90: =Z89 -> -1.14 | AA90: =1/SQRT(a00^2+b00^2*xxxx^2) -> 0.265387398 | AB90: =AB89 -> -1.14 | AC90: =IF(xxxx<=x00,1/SQRT(a00^2+b00^2*xxxx^2),AC88) -> 0.265387398 | AD90: =AD89 -> -0.6498704494 | AE90: =IF(xxxx<=x00,1/b00/COS(tt),AE88) -> 0.6280127387
C91: -0.12 | D91: 0.3344051475 | E91: 0.3248238699 | F91: -0.08008558003 | G91: 0.5 | H91: 0.3248210381 | J91: =J89+dx -> -0.56 | K91: 0 | L91: =IF(xx<=x0,L89+dx,L89) -> -0.56 | M91: =K91 -> 0 | N91: =IF(xx<=x0,ASIN(b0/a0*xx),N89) -> -0.3825995605 | O91: 0 | S91: -0.24 | T91: 0.3291468773 | U91: 0.4696426122 | V91: -0.1586552622 | W91: 0.506359556 | X91: 0.4696496145 | Z91: =Z89+dxx -> -1.12 | AA91: 0 | AB91: =IF(xxxx<=x00,AB89+dxx,AB89) -> -1.12 | AC91: =AA91 -> 0 | AD91: =IF(xxxx<=x00,ATAN(b00/a00*xxxx),AD89) -> -0.6413643599 | AE91: 0
C92: -0.11 | D92: 0.334233261 | E92: 0.3281670619 | F92: -0.0733992213 | G92: 0.5 | H92: 0.3281642175 | J92: =J91 -> -0.56 | K92: =1/SQRT(a0^2-b0^2*xx^2) -> 0.359312617 | L92: =L91 -> -0.56 | M92: =IF(xx<=x0,1/SQRT(a0^2-b0^2*xx^2),M90) -> 0.359312617 | N92: =N91 -> -0.3825995605 | O92: =O90 -> 0.5 | S92: -0.22 | T92: 0.3298049714 | U92: 0.4762321307 | V92: -0.1456283806 | W92: 0.5053491642 | X92: 0.4762393193 | Z92: =Z91 -> -1.12 | AA92: =1/SQRT(a00^2+b00^2*xxxx^2) -> 0.2670934074 | AB92: =AB91 -> -1.12 | AC92: =IF(xxxx<=x00,1/SQRT(a00^2+b00^2*xxxx^2),AC90) -> 0.2670934074 | AD92: =AD91 -> -0.6413643599 | AE92: =IF(xxxx<=x00,1/b00/COS(tt),AE90) -> 0.6240014245
C93: -0.1 | D93: 0.3340765524 | E93: 0.331508611 | F93: -0.06671614841 | G93: 0.5 | H93: 0.3315057539 | J93: =J91+dx -> -0.55 | K93: 0 | L93: =IF(xx<=x0,L91+dx,L91) -> -0.55 | M93: =K93 -> 0 | N93: =IF(xx<=x0,ASIN(b0/a0*xx),N91) -> -0.375423608 | O93: 0 | S93: -0.2 | T93: 0.3304093002 | U93: 0.4828342734 | V93: -0.1325515323 | W93: 0.504424865 | X93: 0.4828416502 | Z93: =Z91+dxx -> -1.1 | AA93: 0 | AB93: =IF(xxxx<=x00,AB91+dxx,AB91) -> -1.1 | AC93: =AA93 -> 0 | AD93: =IF(xxxx<=x00,ATAN(b00/a00*xxxx),AD91) -> -0.632748835 | AE93: 0
C94: -0.09 | D94: 0.3339349582 | E94: 0.3348486685 | F94: -0.06003605845 | G94: 0.5 | H94: 0.3348457989 | J94: =J93 -> -0.55 | K94: =1/SQRT(a0^2-b0^2*xx^2) -> 0.358287182 | L94: =L93 -> -0.55 | M94: =IF(xx<=x0,1/SQRT(a0^2-b0^2*xx^2),M92) -> 0.358287182 | N94: =N93 -> -0.375423608 | O94: =O92 -> 0.5 | S94: -0.18 | T94: 0.3309589462 | U94: 0.4894479559 | V94: -0.119428926 | W94: 0.5035871325 | X94: 0.4894555225 | Z94: =Z93 -> -1.1 | AA94: =1/SQRT(a00^2+b00^2*xxxx^2) -> 0.2688016653 | AB94: =AB93 -> -1.1 | AC94: =IF(xxxx<=x00,1/SQRT(a00^2+b00^2*xxxx^2),AC92) -> 0.2688016653 | AD94: =AD93 -> -0.632748835 | AE94: =IF(xxxx<=x00,1/b00/COS(tt),AE92) -> 0.6200358413
C95: -0.08 | D95: 0.3338084212 | E95: 0.3381873854 | F95: -0.0533586497 | G95: 0.5 | H95: 0.3381845033 | J95: =J93+dx -> -0.54 | K95: 0 | L95: =IF(xx<=x0,L93+dx,L93) -> -0.54 | M95: =K95 -> 0 | N95: =IF(xx<=x0,ASIN(b0/a0*xx),N93) -> -0.3682678934 | O95: 0 | S95: -0.16 | T95: 0.3314530669 | U95: 0.496072076 | V95: -0.1062648629 | W95: 0.5028363993 | X95: 0.4960798339 | Z95: =Z93+dxx -> -1.08 | AA95: 0 | AB95: =IF(xxxx<=x00,AB93+dxx,AB93) -> -1.08 | AC95: =AA95 -> 0 | AD95: =IF(xxxx<=x00,ATAN(b00/a00*xxxx),AD93) -> -0.624023053 | AE95: 0
C96: -0.07 | D96: 0.3336968902 | E96: 0.341524912 | F96: -0.04668362156 | G96: 0.5 | H96: 0.3415220173 | J96: =J95 -> -0.54 | K96: =1/SQRT(a0^2-b0^2*xx^2) -> 0.357288719 | L96: =L95 -> -0.54 | M96: =IF(xx<=x0,1/SQRT(a0^2-b0^2*xx^2),M94) -> 0.357288719 | N96: =N95 -> -0.3682678934 | O96: =O94 -> 0.5 | S96: -0.14 | T96: 0.3318908986 | U96: 0.5027055156 | V96: -0.09306372872 | W96: 0.5021730556 | X96: 0.5027134663 | Z96: =Z95 -> -1.08 | AA96: =1/SQRT(a00^2+b00^2*xxxx^2) -> 0.2705114472 | AB96: =AB95 -> -1.08 | AC96: =IF(xxxx<=x00,1/SQRT(a00^2+b00^2*xxxx^2),AC94) -> 0.2705114472 | AD96: =AD95 -> -0.624023053 | AE96: =IF(xxxx<=x00,1/b00/COS(tt),AE94) -> 0.616116872
C97: -0.06 | D97: 0.3336003204 | E97: 0.344861398 | F97: -0.04001067435 | G97: 0.5 | H97: 0.3448584909 | J97: =J95+dx -> -0.53 | K97: 0 | L97: =IF(xx<=x0,L95+dx,L95) -> -0.53 | M97: =K97 -> 0 | N97: =IF(xx<=x0,ASIN(b0/a0*xx),N95) -> -0.3611318833 | O97: 0 | S97: -0.12 | T97: 0.3322717595 | U97: 0.5093471422 | V97: -0.07982998571 | W97: 0.5015974482 | X97: 0.5093552867 | Z97: =Z95+dxx -> -1.06 | AA97: 0 | AB97: =IF(xxxx<=x00,AB95+dxx,AB95) -> -1.06 | AC97: =AA97 -> 0 | AD97: =IF(xxxx<=x00,ATAN(b00/a00*xxxx),AD95) -> -0.6151862381 | AE97: 0
C98: -0.05 | D98: 0.333518673 | E98: 0.348196993 | F98: -0.03333950926 | G98: 0.5 | H98: 0.3481940735 | J98: =J97 -> -0.53 | K98: =1/SQRT(a0^2-b0^2*xx^2) -> 0.3563166514 | L98: =L97 -> -0.53 | M98: =IF(xx<=x0,1/SQRT(a0^2-b0^2*xx^2),M96) -> 0.3563166514 | N98: =N97 -> -0.3611318833 | O98: =O96 -> 0.5 | S98: -0.1 | T98: 0.3325950526 | U98: 0.5159958103 | V98: -0.06656816378 | W98: 0.5011098793 | X98: 0.5160041497 | Z98: =Z97 -> -1.06 | AA98: =1/SQRT(a00^2+b00^2*xxxx^2) -> 0.2722219937 | AB98: =AB97 -> -1.06 | AC98: =IF(xxxx<=x00,1/SQRT(a00^2+b00^2*xxxx^2),AC96) -> 0.2722219937 | AD98: =AD97 -> -0.6151862381 | AE98: =IF(xxxx<=x00,1/b00/COS(tt),AE96) -> 0.6122454119
C99: -0.04 | D99: 0.3334519151 | E99: 0.3515318459 | F99: -0.02666982817 | G99: 0.5 | H99: 0.351528914 | J99: =J97+dx -> -0.52 | K99: 0 | L99: =IF(xx<=x0,L97+dx,L97) -> -0.52 | M99: =K99 -> 0 | N99: =IF(xx<=x0,ASIN(b0/a0*xx),N97) -> -0.3540150551 | O99: 0 | S99: -0.08 | T99: 0.3328602682 | U99: 0.5226503635 | V99: -0.05328285156 | W99: 0.5007106062 | X99: 0.5226588987 | Z99: =Z97+dxx -> -1.04 | AA99: 0 | AB99: =IF(xxxx<=x00,AB97+dxx,AB97) -> -1.04 | AC99: =AA99 -> 0 | AD99: =IF(xxxx<=x00,ATAN(b00/a00*xxxx),AD97) -> -0.6062376642 | AE99: 0
C100: =C99+dx -> -0.03 | D100: 0.33340002 | E100: =E99+(D99+D100)*dx/2 -> 0.3548661056 | F100: =ASIN(b0/a0*x) -> -0.02000133357 | G100: 0.5 | H100: 0.3548631613 | J100: =J99 -> -0.52 | K100: =1/SQRT(a0^2-b0^2*xx^2) -> 0.3553704251 | L100: =L99 -> -0.52 | M100: =IF(xx<=x0,1/SQRT(a0^2-b0^2*xx^2),M98) -> 0.3553704251 | N100: =N99 -> -0.3540150551 | O100: =O98 -> 0.5 | S100: =S99+dxx -> -0.06 | T100: 0.3330669862 | U100: =U99+(T99+T100)*dxx/2 -> 0.5293096361 | V100: =ATAN(b00/a00*xxx) -> -0.03997868712 | W100: 0.5003998401 | X100: 0.5293183677 | Z100: =Z99 -> -1.04 | AA100: =1/SQRT(a00^2+b00^2*xxxx^2) -> 0.2739325105 | AB100: =AB99 -> -1.04 | AC100: =IF(xxxx<=x00,1/SQRT(a00^2+b00^2*xxxx^2),AC98) -> 0.2739325105 | AD100: =AD99 -> -0.6062376642 | AE100: =IF(xxxx<=x00,1/b00/COS(tt),AE98) -> 0.6084223679
C101: -0.02 | D101: 0.3333629669 | E101: 0.3581999205 | F101: -0.01333372843 | G101: 0.5 | H101: 0.3581969639 | J101: =J99+dx -> -0.51 | K101: 0 | L101: =IF(xx<=x0,L99+dx,L99) -> -0.51 | M101: =K101 -> 0 | N101: =IF(xx<=x0,ASIN(b0/a0*xx),N99) -> -0.3469168975 | O101: 0 | S101: -0.04 | T101: 0.333214878 | U101: 0.5359724547 | V101: -0.02666034837 | W101: 0.5001777462 | X101: 0.5359813833 | Z101: =Z99+dxx -> -1.02 | AA101: 0 | AB101: =IF(xxxx<=x00,AB99+dxx,AB99) -> -1.02 | AC101: =AA101 -> 0 | AD101: =IF(xxxx<=x00,ATAN(b00/a00*xxxx),AD99) -> -0.5971766581 | AE101: 0
C102: -0.01 | D102: 0.333340741 | E102: 0.3615334391 | F102: -0.00666671605 | G102: 0.5 | H102: 0.3615304701 | J102: =J101 -> -0.51 | K102: =1/SQRT(a0^2-b0^2*xx^2) -> 0.3544495084 | L102: =L101 -> -0.51 | M102: =IF(xx<=x0,1/SQRT(a0^2-b0^2*xx^2),M100) -> 0.3544495084 | N102: =N101 -> -0.3469168975 | O102: =O100 -> 0.5 | S102: -0.02 | T102: 0.3333037077 | U102: 0.5426376406 | V102: -0.01333254329 | W102: 0.5000444425 | X102: 0.5426467665 | Z102: =Z101 -> -1.02 | AA102: =1/SQRT(a00^2+b00^2*xxxx^2) -> 0.2756421674 | AB102: =AB101 -> -1.02 | AC102: =IF(xxxx<=x00,1/SQRT(a00^2+b00^2*xxxx^2),AC100) -> 0.2756421674 | AD102: =AD101 -> -0.5971766581 | AE102: =IF(xxxx<=x00,1/b00/COS(tt),AE100) -> 0.6046486583
C103: 7.528699886e-16 | D103: 0.3333333333 | E103: 0.3648668095 | F103: 5.019133257e-16 | G103: 0.5 | H103: 0.3648638281 | J103: =J101+dx -> -0.5 | K103: 0 | L103: =IF(xx<=x0,L101+dx,L101) -> -0.5 | M103: =K103 -> 0 | N103: =IF(xx<=x0,ASIN(b0/a0*xx),N101) -> -0.3398369095 | O103: 0 | S103: 1.505739977e-15 | T103: 0.3333333333 | U103: 0.549304011 | V103: 1.003826651e-15 | W103: 0.5 | X103: 0.5493133344 | Z103: =Z101+dxx -> -1 | AA103: 0 | AB103: =IF(xxxx<=x00,AB101+dxx,AB101) -> -1 | AC103: =AA103 -> 0 | AD103: =IF(xxxx<=x00,ATAN(b00/a00*xxxx),AD101) -> -0.5880026035 | AE103: 0
C104: 0.01 | D104: 0.333340741 | E104: 0.3682001798 | F104: 0.00666671605 | G104: 0.5 | H104: 0.3681971861 | J104: =J103 -> -0.5 | K104: =1/SQRT(a0^2-b0^2*xx^2) -> 0.3535533906 | L104: =L103 -> -0.5 | M104: =IF(xx<=x0,1/SQRT(a0^2-b0^2*xx^2),M102) -> 0.3535533906 | N104: =N103 -> -0.3398369095 | O104: =O102 -> 0.5 | S104: 0.02 | T104: 0.3333037077 | U104: 0.5559703814 | V104: 0.01333254329 | W104: 0.5000444425 | X104: 0.5559799023 | Z104: =Z103 -> -1 | AA104: =1/SQRT(a00^2+b00^2*xxxx^2) -> 0.2773500981 | AB104: =AB103 -> -1 | AC104: =IF(xxxx<=x00,1/SQRT(a00^2+b00^2*xxxx^2),AC102) -> 0.2773500981 | AD104: =AD103 -> -0.5880026035 | AE104: =IF(xxxx<=x00,1/b00/COS(tt),AE102) -> 0.6009252126
C105: 0.02 | D105: 0.3333629669 | E105: 0.3715336984 | F105: 0.01333372843 | G105: 0.5 | H105: 0.3715306923 | J105: =J103+dx -> -0.49 | K105: 0 | L105: =IF(xx<=x0,L103+dx,L103) -> -0.49 | M105: =K105 -> 0 | N105: =IF(xx<=x0,ASIN(b0/a0*xx),N103) -> -0.3327745999 | O105: 0 | S105: 0.04 | T105: 0.333214878 | U105: 0.5626355673 | V105: 0.02666034837 | W105: 0.5001777462 | X105: 0.5626452855 | Z105: =Z103+dxx -> -0.98 | AA105: 0 | AB105: =IF(xxxx<=x00,AB103+dxx,AB103) -> -0.98 | AC105: =AA105 -> 0 | AD105: =IF(xxxx<=x00,ATAN(b00/a00*xxxx),AD103) -> -0.5787149449 | AE105: 0
C106: 0.03 | D106: 0.33340002 | E106: 0.3748675133 | F106: 0.02000133357 | G106: 0.5 | H106: 0.3748644949 | J106: =J105 -> -0.49 | K106: =1/SQRT(a0^2-b0^2*xx^2) -> 0.3526815812 | L106: =L105 -> -0.49 | M106: =IF(xx<=x0,1/SQRT(a0^2-b0^2*xx^2),M104) -> 0.3526815812 | N106: =N105 -> -0.3327745999 | O106: =O104 -> 0.5 | S106: 0.06 | T106: 0.3330669862 | U106: 0.5692983859 | V106: 0.03997868712 | W106: 0.5003998401 | X106: 0.5693083011 | Z106: =Z105 -> -0.98 | AA106: =1/SQRT(a00^2+b00^2*xxxx^2) -> 0.2790554 | AB106: =AB105 -> -0.98 | AC106: =IF(xxxx<=x00,1/SQRT(a00^2+b00^2*xxxx^2),AC104) -> 0.2790554 | AD106: =AD105 -> -0.5787149449 | AE106: =IF(xxxx<=x00,1/b00/COS(tt),AE104) -> 0.5972529708
C107: 0.04 | D107: 0.3334519151 | E107: 0.378201773 | F107: 0.02666982817 | G107: 0.5 | H107: 0.3781987422 | J107: =J105+dx -> -0.48 | K107: 0 | L107: =IF(xx<=x0,L105+dx,L105) -> -0.48 | M107: =K107 -> 0 | N107: =IF(xx<=x0,ASIN(b0/a0*xx),N105) -> -0.3257294873 | O107: 0 | S107: 0.08 | T107: 0.3328602682 | U107: 0.5759576585 | V107: 0.05328285156 | W107: 0.5007106062 | X107: 0.5759677701 | Z107: =Z105+dxx -> -0.96 | AA107: 0 | AB107: =IF(xxxx<=x00,AB105+dxx,AB105) -> -0.96 | AC107: =AA107 -> 0 | AD107: =IF(xxxx<=x00,ATAN(b00/a00*xxxx),AD105) -> -0.5693131911 | AE107: 0
C108: 0.05 | D108: 0.333518673 | E108: 0.3815366259 | F108: 0.03333950926 | G108: 0.5 | H108: 0.3815335827 | J108: =J107 -> -0.48 | K108: =1/SQRT(a0^2-b0^2*xx^2) -> 0.3518336091 | L108: =L107 -> -0.48 | M108: =IF(xx<=x0,1/SQRT(a0^2-b0^2*xx^2),M106) -> 0.3518336091 | N108: =N107 -> -0.3257294873 | O108: =O106 -> 0.5 | S108: 0.1 | T108: 0.3325950526 | U108: 0.5826122117 | V108: 0.06656816378 | W108: 0.5011098793 | X108: 0.5826225191 | Z108: =Z107 -> -0.96 | AA108: =1/SQRT(a00^2+b00^2*xxxx^2) -> 0.2807571336 | AB108: =AB107 -> -0.96 | AC108: =IF(xxxx<=x00,1/SQRT(a00^2+b00^2*xxxx^2),AC106) -> 0.2807571336 | AD108: =AD107 -> -0.5693131911 | AE108: =IF(xxxx<=x00,1/b00/COS(tt),AE106) -> 0.5936328832
C109: 0.06 | D109: 0.3336003204 | E109: 0.3848722209 | F109: 0.04001067435 | G109: 0.5 | H109: 0.3848691653 | J109: =J107+dx -> -0.47 | K109: 0 | L109: =IF(xx<=x0,L107+dx,L107) -> -0.47 | M109: =K109 -> 0 | N109: =IF(xx<=x0,ASIN(b0/a0*xx),N107) -> -0.3187010996 | O109: 0 | S109: 0.12 | T109: 0.3322717595 | U109: 0.5892608798 | V109: 0.07982998571 | W109: 0.5015974482 | X109: 0.5892713821 | Z109: =Z107+dxx -> -0.94 | AA109: 0 | AB109: =IF(xxxx<=x00,AB107+dxx,AB107) -> -0.94 | AC109: =AA109 -> 0 | AD109: =IF(xxxx<=x00,ATAN(b00/a00*xxxx),AD107) -> -0.5597969196 | AE109: 0
C110: 0.07 | D110: 0.3336968902 | E110: 0.3882087069 | F110: 0.04668362156 | G110: 0.5 | H110: 0.3882056389 | J110: =J109 -> -0.47 | K110: =1/SQRT(a0^2-b0^2*xx^2) -> 0.3510090217 | L110: =L109 -> -0.47 | M110: =IF(xx<=x0,1/SQRT(a0^2-b0^2*xx^2),M108) -> 0.3510090217 | N110: =N109 -> -0.3187010996 | O110: =O108 -> 0.5 | S110: 0.14 | T110: 0.3318908986 | U110: 0.5959025064 | V110: 0.09306372872 | W110: 0.5021730556 | X110: 0.5959132025 | Z110: =Z109 -> -0.94 | AA110: =1/SQRT(a00^2+b00^2*xxxx^2) -> 0.2824543224 | AB110: =AB109 -> -0.94 | AC110: =IF(xxxx<=x00,1/SQRT(a00^2+b00^2*xxxx^2),AC108) -> 0.2824543224 | AD110: =AD109 -> -0.5597969196 | AE110: =IF(xxxx<=x00,1/b00/COS(tt),AE108) -> 0.5900659097
C111: 0.08 | D111: 0.3338084212 | E111: 0.3915462335 | F111: 0.0533586497 | G111: 0.5 | H111: 0.391543153 | J111: =J109+dx -> -0.46 | K111: 0 | L111: =IF(xx<=x0,L109+dx,L109) -> -0.46 | M111: =K111 -> 0 | N111: =IF(xx<=x0,ASIN(b0/a0*xx),N109) -> -0.3116889734 | O111: 0 | S111: 0.16 | T111: 0.3314530669 | U111: 0.602535946 | V111: 0.1062648629 | W111: 0.5028363993 | X111: 0.6025468349 | Z111: =Z109+dxx -> -0.92 | AA111: 0 | AB111: =IF(xxxx<=x00,AB109+dxx,AB109) -> -0.92 | AC111: =AA111 -> 0 | AD111: =IF(xxxx<=x00,ATAN(b00/a00*xxxx),AD109) -> -0.5501657804 | AE111: 0
C112: 0.09 | D112: 0.3339349582 | E112: 0.3948849504 | F112: 0.06003605845 | G112: 0.5 | H112: 0.3948818573 | J112: =J111 -> -0.46 | K112: =1/SQRT(a0^2-b0^2*xx^2) -> 0.3502073842 | L112: =L111 -> -0.46 | M112: =IF(xx<=x0,1/SQRT(a0^2-b0^2*xx^2),M110) -> 0.3502073842 | N112: =N111 -> -0.3116889734 | O112: =O110 -> 0.5 | S112: 0.18 | T112: 0.3309589462 | U112: 0.6091600662 | V112: 0.119428926 | W112: 0.5035871325 | X112: 0.6091711463 | Z112: =Z111 -> -0.92 | AA112: =1/SQRT(a00^2+b00^2*xxxx^2) -> 0.284145953 | AB112: =AB111 -> -0.92 | AC112: =IF(xxxx<=x00,1/SQRT(a00^2+b00^2*xxxx^2),AC110) -> 0.284145953 | AD112: =AD111 -> -0.5501657804 | AE112: =IF(xxxx<=x00,1/b00/COS(tt),AE110) -> 0.5865530193
C113: 0.1 | D113: 0.3340765524 | E113: 0.3982250079 | F113: 0.06671614841 | G113: 0.5 | H113: 0.3982219023 | J113: =J111+dx -> -0.45 | K113: 0 | L113: =IF(xx<=x0,L111+dx,L111) -> -0.45 | M113: =K113 -> 0 | N113: =IF(xx<=x0,ASIN(b0/a0*xx),N111) -> -0.304692654 | O113: 0 | S113: 0.2 | T113: 0.3304093002 | U113: 0.6157737486 | V113: 0.1325515323 | W113: 0.504424865 | X113: 0.6157850186 | Z113: =Z111+dxx -> -0.9 | AA113: 0 | AB113: =IF(xxxx<=x00,AB111+dxx,AB111) -> -0.9 | AC113: =AA113 -> 0 | AD113: =IF(xxxx<=x00,ATAN(b00/a00*xxxx),AD111) -> -0.5404195003 | AE113: 0
C114: 0.11 | D114: 0.334233261 | E114: 0.401566557 | F114: 0.0733992213 | G114: 0.5 | H114: 0.4015634388 | J114: =J113 -> -0.45 | K114: =1/SQRT(a0^2-b0^2*xx^2) -> 0.3494282789 | L114: =L113 -> -0.45 | M114: =IF(xx<=x0,1/SQRT(a0^2-b0^2*xx^2),M112) -> 0.3494282789 | N114: =N113 -> -0.304692654 | O114: =O112 -> 0.5 | S114: 0.22 | T114: 0.3298049714 | U114: 0.6223758913 | V114: 0.1456283806 | W114: 0.5053491642 | X114: 0.6223873495 | Z114: =Z113 -> -0.9 | AA114: =1/SQRT(a00^2+b00^2*xxxx^2) -> 0.2858309752 | AB114: =AB113 -> -0.9 | AC114: =IF(xxxx<=x00,1/SQRT(a00^2+b00^2*xxxx^2),AC112) -> 0.2858309752 | AD114: =AD113 -> -0.5404195003 | AE114: =IF(xxxx<=x00,1/b00/COS(tt),AE112) -> 0.5830951895
C115: 0.12 | D115: 0.3344051475 | E115: 0.4049097491 | F115: 0.08008558003 | G115: 0.5 | H115: 0.4049066181 | J115: =J113+dx -> -0.44 | K115: 0 | L115: =IF(xx<=x0,L113+dx,L113) -> -0.44 | M115: =K115 -> 0 | N115: =IF(xx<=x0,ASIN(b0/a0*xx),N113) -> -0.2977116947 | O115: 0 | S115: 0.24 | T115: 0.3291468773 | U115: 0.6289654098 | V115: 0.1586552622 | W115: 0.506359556 | X115: 0.6289770544 | Z115: =Z113+dxx -> -0.88 | AA115: 0 | AB115: =IF(xxxx<=x00,AB113+dxx,AB113) -> -0.88 | AC115: =AA115 -> 0 | AD115: =IF(xxxx<=x00,ATAN(b00/a00*xxxx),AD113) -> -0.530557887 | AE115: 0
C116: 0.13 | D116: 0.3345922817 | E116: 0.4082547362 | F116: 0.08677552885 | G116: 0.5 | H116: 0.4082515925 | J116: =J115 -> -0.44 | K116: =1/SQRT(a0^2-b0^2*xx^2) -> 0.3486713046 | L116: =L115 -> -0.44 | M116: =IF(xx<=x0,1/SQRT(a0^2-b0^2*xx^2),M114) -> 0.3486713046 | N116: =N115 -> -0.2977116947 | O116: =O114 -> 0.5 | S116: 0.26 | T116: 0.3284360068 | U116: 0.6355412387 | V116: 0.1716280684 | W116: 0.5074555262 | X116: 0.6355530677 | Z116: =Z115 -> -0.88 | AA116: =1/SQRT(a00^2+b00^2*xxxx^2) -> 0.2875083019 | AB116: =AB115 -> -0.88 | AC116: =IF(xxxx<=x00,1/SQRT(a00^2+b00^2*xxxx^2),AC114) -> 0.2875083019 | AD116: =AD115 -> -0.530557887 | AE116: =IF(xxxx<=x00,1/b00/COS(tt),AE114) -> 0.5796934056
C117: 0.14 | D117: 0.33479474 | E117: 0.4116016713 | F117: 0.09346937346 | G117: 0.5 | H117: 0.4115985148 | J117: =J115+dx -> -0.43 | K117: 0 | L117: =IF(xx<=x0,L115+dx,L115) -> -0.43 | M117: =K117 -> 0 | N117: =IF(xx<=x0,ASIN(b0/a0*xx),N115) -> -0.2907456569 | O117: 0 | S117: 0.28 | T117: 0.3276734163 | U117: 0.6421023329 | V117: 0.1845427972 | W117: 0.5086365216 | X117: 0.6421143443 | Z117: =Z115+dxx -> -0.86 | AA117: 0 | AB117: =IF(xxxx<=x00,AB115+dxx,AB115) -> -0.86 | AC117: =AA117 -> 0 | AD117: =IF(xxxx<=x00,ATAN(b00/a00*xxxx),AD115) -> -0.5205808335 | AE117: 0
C118: 0.15 | D118: 0.3350126051 | E118: 0.414950708 | F118: 0.1001674212 | G118: 0.5 | H118: 0.4149475387 | J118: =J117 -> -0.43 | K118: =1/SQRT(a0^2-b0^2*xx^2) -> 0.3479360758 | L118: =L117 -> -0.43 | M118: =IF(xx<=x0,1/SQRT(a0^2-b0^2*xx^2),M116) -> 0.3479360758 | N118: =N117 -> -0.2907456569 | O118: =O116 -> 0.5 | S118: 0.3 | T118: 0.3268602252 | U118: 0.6486476693 | V118: 0.1973955598 | W118: 0.5099019514 | X118: 0.6486598609 | Z118: =Z117 -> -0.86 | AA118: =1/SQRT(a00^2+b00^2*xxxx^2) -> 0.2891768096 | AB118: =AB117 -> -0.86 | AC118: =IF(xxxx<=x00,1/SQRT(a00^2+b00^2*xxxx^2),AC116) -> 0.2891768096 | AD118: =AD117 -> -0.5205808335 | AE118: =IF(xxxx<=x00,1/b00/COS(tt),AE116) -> 0.5763486599
C119: 0.16 | D119: 0.3352459663 | E119: 0.4183020009 | F119: 0.106869981 | G119: 0.5 | H119: 0.4182988186 | J119: =J117+dx -> -0.42 | K119: 0 | L119: =IF(xx<=x0,L117+dx,L117) -> -0.42 | M119: =K119 -> 0 | N119: =IF(xx<=x0,ASIN(b0/a0*xx),N117) -> -0.2837941092 | O119: 0 | S119: 0.32 | T119: 0.3259976121 | U119: 0.6551762477 | V119: 0.2101825867 | W119: 0.5112511885 | X119: 0.6551886172 | Z119: =Z117+dxx -> -0.84 | AA119: 0 | AB119: =IF(xxxx<=x00,AB117+dxx,AB117) -> -0.84 | AC119: =AA119 -> 0 | AD119: =IF(xxxx<=x00,ATAN(b00/a00*xxxx),AD117) -> -0.5104883219 | AE119: 0
C120: 0.17 | D120: 0.3354949198 | E120: 0.4216557053 | F120: 0.1135773638 | G120: 0.5 | H120: 0.42165251 | J120: =J119 -> -0.42 | K120: =1/SQRT(a0^2-b0^2*xx^2) -> 0.3472222222 | L120: =L119 -> -0.42 | M120: =IF(xx<=x0,1/SQRT(a0^2-b0^2*xx^2),M118) -> 0.3472222222 | N120: =N119 -> -0.2837941092 | O120: =O118 -> 0.5 | S120: 0.34 | T120: 0.3250868098 | U120: 0.6616870919 | V120: 0.2229002323 | W120: 0.5126835715 | X120: 0.6616996369 | Z120: =Z119 -> -0.84 | AA120: =1/SQRT(a00^2+b00^2*xxxx^2) -> 0.2908353386 | AB120: =AB119 -> -0.84 | AC120: =IF(xxxx<=x00,1/SQRT(a00^2+b00^2*xxxx^2),AC118) -> 0.2908353386 | AD120: =AD119 -> -0.5104883219 | AE120: =IF(xxxx<=x00,1/b00/COS(tt),AE118) -> 0.5730619513
C121: 0.18 | D121: 0.3357595683 | E121: 0.4250119778 | F121: 0.1202898824 | G121: 0.5 | H121: 0.4250087693 | J121: =J119+dx -> -0.41 | K121: 0 | L121: =IF(xx<=x0,L119+dx,L119) -> -0.41 | M121: =K121 -> 0 | N121: =IF(xx<=x0,ASIN(b0/a0*xx),N119) -> -0.2768566278 | O121: 0 | S121: 0.36 | T121: 0.3241291007 | U121: 0.668179251 | V121: 0.2355449807 | W121: 0.5141984053 | X121: 0.668191969 | Z121: =Z119+dxx -> -0.82 | AA121: 0 | AB121: =IF(xxxx<=x00,AB119+dxx,AB119) -> -0.82 | AC121: =AA121 -> 0 | AD121: =IF(xxxx<=x00,ATAN(b00/a00*xxxx),AD119) -> -0.5002804282 | AE121: 0
C122: 0.19 | D122: 0.3360400218 | E122: 0.4283709757 | F122: 0.1270078519 | G122: 0.5 | H122: 0.428367754 | J122: =J121 -> -0.41 | K122: =1/SQRT(a0^2-b0^2*xx^2) -> 0.3465293881 | L122: =L121 -> -0.41 | M122: =IF(xx<=x0,1/SQRT(a0^2-b0^2*xx^2),M120) -> 0.3465293881 | N122: =N121 -> -0.2768566278 | O122: =O120 -> 0.5 | S122: 0.38 | T122: 0.3231258125 | U122: 0.6746518001 | V122: 0.2481134491 | W122: 0.5157949636 | X122: 0.6746646886 | Z122: =Z121 -> -0.82 | AA122: =1/SQRT(a00^2+b00^2*xxxx^2) -> 0.2924826943 | AB122: =AB121 -> -0.82 | AC122: =IF(xxxx<=x00,1/SQRT(a00^2+b00^2*xxxx^2),AC120) -> 0.2924826943 | AD122: =AD121 -> -0.5002804282 | AE122: =IF(xxxx<=x00,1/b00/COS(tt),AE120) -> 0.5698342839
C123: 0.2 | D123: 0.336336397 | E123: 0.4317328578 | F123: 0.1337315894 | G123: 0.5 | H123: 0.4317296228 | J123: =J121+dx -> -0.4 | K123: 0 | L123: =IF(xx<=x0,L121+dx,L121) -> -0.4 | M123: =K123 -> 0 | N123: =IF(xx<=x0,ASIN(b0/a0*xx),N121) -> -0.2699327958 | O123: 0 | S123: 0.4 | T123: 0.3220783132 | U123: 0.6811038414 | V123: 0.2606023917 | W123: 0.5174724899 | X123: 0.6811168976 | Z123: =Z121+dxx -> -0.8 | AA123: 0 | AB123: =IF(xxxx<=x00,AB121+dxx,AB121) -> -0.8 | AC123: =AA123 -> 0 | AD123: =IF(xxxx<=x00,ATAN(b00/a00*xxxx),AD121) -> -0.4899573263 | AE123: 0
C124: 0.21 | D124: 0.336648818 | E124: 0.4350977839 | F124: 0.1404614147 | G124: 0.5 | H124: 0.4350945355 | J124: =J123 -> -0.4 | K124: =1/SQRT(a0^2-b0^2*xx^2) -> 0.3458572319 | L124: =L123 -> -0.4 | M124: =IF(xx<=x0,1/SQRT(a0^2-b0^2*xx^2),M122) -> 0.3458572319 | N124: =N123 -> -0.2699327958 | O124: =O122 -> 0.5 | S124: 0.42 | T124: 0.3209880066 | U124: 0.6875345046 | V124: 0.2730087031 | W124: 0.5192301994 | X124: 0.6875477257 | Z124: =Z123 -> -0.8 | AA124: =1/SQRT(a00^2+b00^2*xxxx^2) -> 0.2941176471 | AB124: =AB123 -> -0.8 | AC124: =IF(xxxx<=x00,1/SQRT(a00^2+b00^2*xxxx^2),AC122) -> 0.2941176471 | AD124: =AD123 -> -0.4899573263 | AE124: =IF(xxxx<=x00,1/b00/COS(tt),AE122) -> 0.5666666667
C125: 0.22 | D125: 0.3369774163 | E125: 0.4384659151 | F125: 0.14719765 | G125: 0.5 | H125: 0.4384626531 | J125: =J123+dx -> -0.39 | K125: 0 | L125: =IF(xx<=x0,L123+dx,L123) -> -0.39 | M125: =K125 -> 0 | N125: =IF(xx<=x0,ASIN(b0/a0*xx),N123) -> -0.2630222029 | O125: 0 | S125: 0.44 | T125: 0.3198563272 | U125: 0.6939429479 | V125: 0.2853294202 | W125: 0.5210672808 | X125: 0.6939563312 | Z125: =Z123+dxx -> -0.78 | AA125: 0 | AB125: =IF(xxxx<=x00,AB123+dxx,AB123) -> -0.78 | AC125: =AA125 -> 0 | AD125: =IF(xxxx<=x00,ATAN(b00/a00*xxxx),AD123) -> -0.479519292 | AE125: 0
C126: 0.23 | D126: 0.3373223306 | E126: 0.4418374138 | F126: 0.1539406201 | G126: 0.5 | H126: 0.4418341382 | J126: =J125 -> -0.39 | K126: =1/SQRT(a0^2-b0^2*xx^2) -> 0.3452054256 | L126: =L125 -> -0.39 | M126: =IF(xx<=x0,1/SQRT(a0^2-b0^2*xx^2),M124) -> 0.3452054256 | N126: =N125 -> -0.2630222029 | O126: =O124 -> 0.5 | S126: 0.46 | T126: 0.3186847361 | U126: 0.7003283586 | V126: 0.2975617247 | W126: 0.5229828975 | X126: 0.7003419011 | Z126: =Z125 -> -0.78 | AA126: =1/SQRT(a00^2+b00^2*xxxx^2) -> 0.2957389337 | AB126: =AB125 -> -0.78 | AC126: =IF(xxxx<=x00,1/SQRT(a00^2+b00^2*xxxx^2),AC124) -> 0.2957389337 | AD126: =AD125 -> -0.479519292 | AE126: =IF(xxxx<=x00,1/b00/COS(tt),AE124) -> 0.5635601121
C127: 0.24 | D127: 0.3376837077 | E127: 0.445212444 | F127: 0.160690653 | G127: 0.5 | H127: 0.4452091546 | J127: =J125+dx -> -0.38 | K127: 0 | L127: =IF(xx<=x0,L125+dx,L125) -> -0.38 | M127: =K127 -> 0 | N127: =IF(xx<=x0,ASIN(b0/a0*xx),N125) -> -0.2561244452 | O127: 0 | S127: 0.48 | T127: 0.3174747157 | U127: 0.7066899531 | V127: 0.3097029445 | W127: 0.5249761899 | X127: 0.7067036519 | Z127: =Z125+dxx -> -0.76 | AA127: 0 | AB127: =IF(xxxx<=x00,AB125+dxx,AB125) -> -0.76 | AC127: =AA127 -> 0 | AD127: =IF(xxxx<=x00,ATAN(b00/a00*xxxx),AD125) -> -0.4689667078 | AE127: 0
C128: 0.25 | D128: 0.3380617019 | E128: 0.448591171 | F128: 0.1674480792 | G128: 0.5 | H128: 0.4485878677 | J128: =J127 -> -0.38 | K128: =1/SQRT(a0^2-b0^2*xx^2) -> 0.344573654 | L128: =L127 -> -0.38 | M128: =IF(xx<=x0,1/SQRT(a0^2-b0^2*xx^2),M126) -> 0.344573654 | N128: =N127 -> -0.2561244452 | O128: =O126 -> 0.5 | S128: 0.5 | T128: 0.316227766 | U128: 0.7130269779 | V128: 0.3217505544 | W128: 0.5270462767 | X128: 0.71304083 | Z128: =Z127 -> -0.76 | AA128: =1/SQRT(a00^2+b00^2*xxxx^2) -> 0.2973452587 | AB128: =AB127 -> -0.76 | AC128: =IF(xxxx<=x00,1/SQRT(a00^2+b00^2*xxxx^2),AC126) -> 0.2973452587 | AD128: =AD127 -> -0.4689667078 | AE128: =IF(xxxx<=x00,1/b00/COS(tt),AE126) -> 0.5605156356
C129: 0.26 | D129: 0.3384564757 | E129: 0.4519737619 | F129: 0.1742132329 | G129: 0.5 | H129: 0.4519704446 | J129: =J127+dx -> -0.37 | K129: 0 | L129: =IF(xx<=x0,L127+dx,L127) -> -0.37 | M129: =K129 -> 0 | N129: =IF(xx<=x0,ASIN(b0/a0*xx),N127) -> -0.2492391252 | O129: 0 | S129: 0.52 | T129: 0.3149453995 | U129: 0.7193387095 | V129: 0.3337021765 | W129: 0.5291922566 | X129: 0.7193527119 | Z129: =Z127+dxx -> -0.74 | AA129: 0 | AB129: =IF(xxxx<=x00,AB127+dxx,AB127) -> -0.74 | AC129: =AA129 -> 0 | AD129: =IF(xxxx<=x00,ATAN(b00/a00*xxxx),AD127) -> -0.4583000664 | AE129: 0
C130: 0.27 | D130: 0.3388681997 | E130: 0.4553603853 | F130: 0.1809864512 | G130: 0.5 | H130: 0.4553570537 | J130: =J129 -> -0.37 | K130: =1/SQRT(a0^2-b0^2*xx^2) -> 0.3439616149 | L130: =L129 -> -0.37 | M130: =IF(xx<=x0,1/SQRT(a0^2-b0^2*xx^2),M128) -> 0.3439616149 | N130: =N129 -> -0.2492391252 | O130: =O128 -> 0.5 | S130: 0.54 | T130: 0.3136291373 | U130: 0.7256244549 | V130: 0.3455555806 | W130: 0.5314132102 | X130: 0.7256386045 | Z130: =Z129 -> -0.74 | AA130: =1/SQRT(a00^2+b00^2*xxxx^2) -> 0.2989352949 | AB130: =AB129 -> -0.74 | AC130: =IF(xxxx<=x00,1/SQRT(a00^2+b00^2*xxxx^2),AC128) -> 0.2989352949 | AD130: =AD129 -> -0.4583000664 | AE130: =IF(xxxx<=x00,1/b00/COS(tt),AE128) -> 0.5575342541
C131: 0.28 | D131: =1/SQRT(a0^2-b0^2*x^2) -> 0.3392970532 | E131: 0.4587512116 | F131: 0.1877680751 | G131: =1/b0 -> 0.5 | H131: 0.4587478657 | J131: =J129+dx -> -0.36 | K131: 0 | L131: =IF(xx<=x0,L129+dx,L129) -> -0.36 | M131: =K131 -> 0 | N131: =IF(xx<=x0,ASIN(b0/a0*xx),N129) -> -0.242365851 | O131: 0 | S131: 0.56 | T131: =1/SQRT(a00^2+b00^2*xxx^2) -> 0.3122805049 | U131: 0.7318835513 | V131: 0.357308683 | W131: =1/b00/COS(t) -> 0.5337082016 | X131: 0.731897845 | Z131: =Z129+dxx -> -0.72 | AA131: 0 | AB131: =IF(xxxx<=x00,AB129+dxx,AB129) -> -0.72 | AC131: =AA131 -> 0 | AD131: =IF(xxxx<=x00,ATAN(b00/a00*xxxx),AD129) -> -0.4475199752 | AE131: 0
C132: =C131+dx -> 0.29 | D132: 0.339743224 | E132: =E131+(D131+D132)*dx/2 -> 0.4621464129 | F132: =ASIN(b0/a0*x) -> 0.1945584488 | G132: 0.5 | H132: 0.4621430525 | J132: =J131 -> -0.36 | K132: =1/SQRT(a0^2-b0^2*xx^2) -> 0.3433690181 | L132: =L131 -> -0.36 | M132: =IF(xx<=x0,1/SQRT(a0^2-b0^2*xx^2),M130) -> 0.3433690181 | N132: =N131 -> -0.242365851 | O132: =O130 -> 0.5 | S132: =S131+dxx -> 0.58 | T132: 0.3109010283 | U132: =U131+(T131+T132)*dxx/2 -> 0.7381153667 | V132: =ATAN(b00/a00*xxx) -> 0.3689595462 | W132: 0.5360762798 | X132: 0.7381298013 | Z132: =Z131 -> -0.72 | AA132: =1/SQRT(a00^2+b00^2*xxxx^2) -> 0.3005076858 | AB132: =AB131 -> -0.72 | AC132: =IF(xxxx<=x00,1/SQRT(a00^2+b00^2*xxxx^2),AC130) -> 0.3005076858 | AD132: =AD131 -> -0.4475199752 | AE132: =IF(xxxx<=x00,1/b00/COS(tt),AE130) -> 0.554616985
C133: 0.3 | D133: 0.3402069087 | E133: 0.4655461636 | F133: 0.2013579208 | G133: 0.5 | H133: =H132+(G132+G133)*(F133-F132)/2 -> 0.4655427885 | J133: =J131+dx -> -0.35 | K133: 0 | L133: =IF(xx<=x0,L131+dx,L131) -> -0.35 | M133: =K133 -> 0 | N133: =IF(xx<=x0,ASIN(b0/a0*xx),N131) -> -0.2355042367 | O133: 0 | S133: 0.6 | T133: 0.3094922303 | U133: 0.7443192993 | V133: 0.3805063771 | W133: 0.5385164807 | X133: =X132+(W132+W133)*(V133-V132)/2 -> 0.7443338718 | Z133: =Z131+dxx -> -0.7 | AA133: 0 | AB133: =IF(xxxx<=x00,AB131+dxx,AB131) -> -0.7 | AC133: =AA133 -> 0 | AD133: =IF(xxxx<=x00,ATAN(b00/a00*xxxx),AD131) -> -0.4366271598 | AE133: 0
C134: 0.31 | D134: 0.3406883134 | E134: 0.4689506397 | F134: 0.2081668433 | G134: 0.5 | H134: 0.4689472498 | J134: =J133 -> -0.35 | K134: =1/SQRT(a0^2-b0^2*xx^2) -> 0.3427955851 | L134: =L133 -> -0.35 | M134: =IF(xx<=x0,1/SQRT(a0^2-b0^2*xx^2),M132) -> 0.3427955851 | N134: =N133 -> -0.2355042367 | O134: =O132 -> 0.5 | S134: 0.62 | T134: 0.3080556266 | U134: 0.7504947778 | V134: 0.3919475255 | W134: 0.5410278284 | X134: 0.7505094851 | Z134: =Z133 -> -0.7 | AA134: =1/SQRT(a00^2+b00^2*xxxx^2) -> 0.3020610467 | AB134: =AB133 -> -0.7 | AC134: =IF(xxxx<=x00,1/SQRT(a00^2+b00^2*xxxx^2),AC132) -> 0.3020610467 | AD134: =AD133 -> -0.4366271598 | AE134: =IF(xxxx<=x00,1/b00/COS(tt),AE132) -> 0.5517648452
C135: 0.32 | D135: 0.3411876532 | E135: 0.4723600195 | F135: 0.2149855729 | G135: 0.5 | H135: 0.4723566146 | J135: =J133+dx -> -0.34 | K135: 0 | L135: =IF(xx<=x0,L133+dx,L133) -> -0.34 | M135: =K135 -> 0 | N135: =IF(xx<=x0,ASIN(b0/a0*xx),N133) -> -0.2286539017 | O135: 0 | S135: 0.64 | T135: 0.3065927227 | U135: 0.7566412613 | V135: 0.4032814817 | W135: 0.5436093369 | X135: 0.7566561002 | Z135: =Z133+dxx -> -0.68 | AA135: 0 | AB135: =IF(xxxx<=x00,AB133+dxx,AB133) -> -0.68 | AC135: =AA135 -> 0 | AD135: =IF(xxxx<=x00,ATAN(b00/a00*xxxx),AD133) -> -0.4256224683 | AE135: 0
C136: 0.33 | D136: 0.3417051534 | E136: 0.4757744836 | F136: 0.2218144705 | G136: 0.5 | H136: 0.4757710634 | J136: =J135 -> -0.34 | K136: =1/SQRT(a0^2-b0^2*xx^2) -> 0.3422410489 | L136: =L135 -> -0.34 | M136: =IF(xx<=x0,1/SQRT(a0^2-b0^2*xx^2),M134) -> 0.3422410489 | N136: =N135 -> -0.2286539017 | O136: =O134 -> 0.5 | S136: 0.66 | T136: 0.3051050108 | U136: 0.7627582387 | V136: 0.4145068746 | W136: 0.5462600113 | X136: 0.762773206 | Z136: =Z135 -> -0.68 | AA136: =1/SQRT(a00^2+b00^2*xxxx^2) -> 0.3035939666 | AB136: =AB135 -> -0.68 | AC136: =IF(xxxx<=x00,1/SQRT(a00^2+b00^2*xxxx^2),AC134) -> 0.3035939666 | AD136: =AD135 -> -0.4256224683 | AE136: =IF(xxxx<=x00,1/b00/COS(tt),AE134) -> 0.54897885
C137: 0.34 | D137: 0.3422410489 | E137: 0.4791942146 | F137: 0.2286539017 | G137: 0.5 | H137: 0.4791907789 | J137: =J135+dx -> -0.33 | K137: 0 | L137: =IF(xx<=x0,L135+dx,L135) -> -0.33 | M137: =K137 -> 0 | N137: =IF(xx<=x0,ASIN(b0/a0*xx),N135) -> -0.2218144705 | O137: 0 | S137: 0.68 | T137: 0.3035939666 | U137: 0.7688452284 | V137: 0.4256224683 | W137: 0.54897885 | X137: 0.7688603211 | Z137: =Z135+dxx -> -0.66 | AA137: 0 | AB137: =IF(xxxx<=x00,AB135+dxx,AB135) -> -0.66 | AC137: =AA137 -> 0 | AD137: =IF(xxxx<=x00,ATAN(b00/a00*xxxx),AD135) -> -0.4145068746 | AE137: 0
C138: 0.35 | D138: 0.3427955851 | E138: 0.4826193978 | F138: 0.2355042367 | G138: 0.5 | H138: 0.4826159465 | J138: =J137 -> -0.33 | K138: =1/SQRT(a0^2-b0^2*xx^2) -> 0.3417051534 | L138: =L137 -> -0.33 | M138: =IF(xx<=x0,1/SQRT(a0^2-b0^2*xx^2),M136) -> 0.3417051534 | N138: =N137 -> -0.2218144705 | O138: =O136 -> 0.5 | S138: 0.7 | T138: 0.3020610467 | U138: 0.7749017786 | V138: 0.4366271598 | W138: 0.5517648452 | X138: 0.7749169935 | Z138: =Z137 -> -0.66 | AA138: =1/SQRT(a00^2+b00^2*xxxx^2) -> 0.3051050108 | AB138: =AB137 -> -0.66 | AC138: =IF(xxxx<=x00,1/SQRT(a00^2+b00^2*xxxx^2),AC136) -> 0.3051050108 | AD138: =AD137 -> -0.4145068746 | AE138: =IF(xxxx<=x00,1/b00/COS(tt),AE136) -> 0.5462600113
C139: 0.36 | D139: 0.3433690181 | E139: 0.4860502208 | F139: 0.242365851 | G139: 0.5 | H139: 0.4860467536 | J139: =J137+dx -> -0.32 | K139: 0 | L139: =IF(xx<=x0,L137+dx,L137) -> -0.32 | M139: =K139 -> 0 | N139: =IF(xx<=x0,ASIN(b0/a0*xx),N137) -> -0.2149855729 | O139: 0 | S139: 0.72 | T139: 0.3005076858 | U139: 0.7809274659 | V139: 0.4475199752 | W139: 0.554616985 | X139: 0.7809428 | Z139: =Z137+dxx -> -0.64 | AA139: 0 | AB139: =IF(xxxx<=x00,AB137+dxx,AB137) -> -0.64 | AC139: =AA139 -> 0 | AD139: =IF(xxxx<=x00,ATAN(b00/a00*xxxx),AD137) -> -0.4032814817 | AE139: 0
C140: 0.37 | D140: 0.3439616149 | E140: 0.4894868739 | F140: 0.2492391252 | G140: 0.5 | H140: 0.4894833907 | J140: =J139 -> -0.32 | K140: =1/SQRT(a0^2-b0^2*xx^2) -> 0.3411876532 | L140: =L139 -> -0.32 | M140: =IF(xx<=x0,1/SQRT(a0^2-b0^2*xx^2),M138) -> 0.3411876532 | N140: =N139 -> -0.2149855729 | O140: =O138 -> 0.5 | S140: 0.74 | T140: 0.2989352949 | U140: 0.7869218957 | V140: 0.4583000664 | W140: 0.5575342541 | X140: 0.7869373459 | Z140: =Z139 -> -0.64 | AA140: =1/SQRT(a00^2+b00^2*xxxx^2) -> 0.3065927227 | AB140: =AB139 -> -0.64 | AC140: =IF(xxxx<=x00,1/SQRT(a00^2+b00^2*xxxx^2),AC138) -> 0.3065927227 | AD140: =AD139 -> -0.4032814817 | AE140: =IF(xxxx<=x00,1/b00/COS(tt),AE138) -> 0.5436093369
C141: 0.38 | D141: 0.344573654 | E141: 0.4929295503 | F141: 0.2561244452 | G141: 0.5 | H141: 0.4929260507 | J141: =J139+dx -> -0.31 | K141: 0 | L141: =IF(xx<=x0,L139+dx,L139) -> -0.31 | M141: =K141 -> 0 | N141: =IF(xx<=x0,ASIN(b0/a0*xx),N139) -> -0.2081668433 | O141: 0 | S141: 0.76 | T141: 0.2973452587 | U141: 0.7928847012 | V141: 0.4689667078 | W141: 0.5605156356 | X141: 0.7929002645 | Z141: =Z139+dxx -> -0.62 | AA141: 0 | AB141: =IF(xxxx<=x00,AB139+dxx,AB139) -> -0.62 | AC141: =AA141 -> 0 | AD141: =IF(xxxx<=x00,ATAN(b00/a00*xxxx),AD139) -> -0.3919475255 | AE141: 0
C142: 0.39 | D142: 0.3452054256 | E142: 0.4963784457 | F142: 0.2630222029 | G142: 0.5 | H142: 0.4963749296 | J142: =J141 -> -0.31 | K142: =1/SQRT(a0^2-b0^2*xx^2) -> 0.3406883134 | L142: =L141 -> -0.31 | M142: =IF(xx<=x0,1/SQRT(a0^2-b0^2*xx^2),M140) -> 0.3406883134 | N142: =N141 -> -0.2081668433 | O142: =O140 -> 0.5 | S142: 0.78 | T142: 0.2957389337 | U142: 0.7988155432 | V142: 0.479519292 | W142: 0.5635601121 | X142: 0.7988312165 | Z142: =Z141 -> -0.62 | AA142: =1/SQRT(a00^2+b00^2*xxxx^2) -> 0.3080556266 | AB142: =AB141 -> -0.62 | AC142: =IF(xxxx<=x00,1/SQRT(a00^2+b00^2*xxxx^2),AC140) -> 0.3080556266 | AD142: =AD141 -> -0.3919475255 | AE142: =IF(xxxx<=x00,1/b00/COS(tt),AE140) -> 0.5410278284
C143: 0.4 | D143: 0.3458572319 | E143: 0.499833759 | F143: 0.2699327958 | G143: 0.5 | H143: 0.499830226 | J143: =J141+dx -> -0.3 | K143: 0 | L143: =IF(xx<=x0,L141+dx,L141) -> -0.3 | M143: =K143 -> 0 | N143: =IF(xx<=x0,ASIN(b0/a0*xx),N141) -> -0.2013579208 | O143: 0 | S143: 0.8 | T143: 0.2941176471 | U143: 0.804714109 | V143: 0.4899573263 | W143: 0.5666666667 | X143: 0.8047298894 | Z143: =Z141+dxx -> -0.6 | AA143: 0 | AB143: =IF(xxxx<=x00,AB141+dxx,AB141) -> -0.6 | AC143: =AA143 -> 0 | AD143: =IF(xxxx<=x00,ATAN(b00/a00*xxxx),AD141) -> -0.3805063771 | AE143: 0
C144: 0.41 | D144: 0.3465293881 | E144: 0.5032956921 | F144: 0.2768566278 | G144: 0.5 | H144: 0.503292142 | J144: =J143 -> -0.3 | K144: =1/SQRT(a0^2-b0^2*xx^2) -> 0.3402069087 | L144: =L143 -> -0.3 | M144: =IF(xx<=x0,1/SQRT(a0^2-b0^2*xx^2),M142) -> 0.3402069087 | N144: =N143 -> -0.2013579208 | O144: =O142 -> 0.5 | S144: 0.82 | T144: 0.2924826943 | U144: 0.8105801124 | V144: 0.5002804282 | W144: 0.5698342839 | X144: 0.810595997 | Z144: =Z143 -> -0.6 | AA144: =1/SQRT(a00^2+b00^2*xxxx^2) -> 0.3094922303 | AB144: =AB143 -> -0.6 | AC144: =IF(xxxx<=x00,1/SQRT(a00^2+b00^2*xxxx^2),AC142) -> 0.3094922303 | AD144: =AD143 -> -0.3805063771 | AE144: =IF(xxxx<=x00,1/b00/COS(tt),AE142) -> 0.5385164807
C145: 0.42 | D145: 0.3472222222 | E145: 0.5067644501 | F145: 0.2837941092 | G145: 0.5 | H145: 0.5067608827 | J145: =J143+dx -> -0.29 | K145: 0 | L145: =IF(xx<=x0,L143+dx,L143) -> -0.29 | M145: =K145 -> 0 | N145: =IF(xx<=x0,ASIN(b0/a0*xx),N143) -> -0.1945584488 | O145: 0 | S145: 0.84 | T145: 0.2908353386 | U145: 0.8164132927 | V145: 0.5104883219 | W145: 0.5730619513 | X145: 0.8164292786 | Z145: =Z143+dxx -> -0.58 | AA145: 0 | AB145: =IF(xxxx<=x00,AB143+dxx,AB143) -> -0.58 | AC145: =AA145 -> 0 | AD145: =IF(xxxx<=x00,ATAN(b00/a00*xxxx),AD143) -> -0.3689595462 | AE145: 0
C146: 0.43 | D146: 0.3479360758 | E146: 0.5102402416 | F146: 0.2907456569 | G146: 0.5 | H146: 0.5102366565 | J146: =J145 -> -0.29 | K146: =1/SQRT(a0^2-b0^2*xx^2) -> 0.339743224 | L146: =L145 -> -0.29 | M146: =IF(xx<=x0,1/SQRT(a0^2-b0^2*xx^2),M144) -> 0.339743224 | N146: =N145 -> -0.1945584488 | O146: =O144 -> 0.5 | S146: 0.86 | T146: 0.2891768096 | U146: 0.8222134142 | V146: 0.5205808335 | W146: 0.5763486599 | X146: 0.8222294986 | Z146: =Z145 -> -0.58 | AA146: =1/SQRT(a00^2+b00^2*xxxx^2) -> 0.3109010283 | AB146: =AB145 -> -0.58 | AC146: =IF(xxxx<=x00,1/SQRT(a00^2+b00^2*xxxx^2),AC144) -> 0.3109010283 | AD146: =AD145 -> -0.3689595462 | AE146: =IF(xxxx<=x00,1/b00/COS(tt),AE144) -> 0.5360762798
C147: 0.44 | D147: 0.3486713046 | E147: 0.5137232785 | F147: 0.2977116947 | G147: 0.5 | H147: 0.5137196755 | J147: =J145+dx -> -0.28 | K147: 0 | L147: =IF(xx<=x0,L145+dx,L145) -> -0.28 | M147: =K147 -> 0 | N147: =IF(xx<=x0,ASIN(b0/a0*xx),N145) -> -0.1877680751 | O147: 0 | S147: 0.88 | T147: 0.2875083019 | U147: 0.8279802653 | V147: 0.530557887 | W147: 0.5796934056 | X147: 0.8279964454 | Z147: =Z145+dxx -> -0.56 | AA147: 0 | AB147: =IF(xxxx<=x00,AB145+dxx,AB145) -> -0.56 | AC147: =AA147 -> 0 | AD147: =IF(xxxx<=x00,ATAN(b00/a00*xxxx),AD145) -> -0.357308683 | AE147: 0
C148: 0.45 | D148: 0.3494282789 | E148: 0.5172137764 | F148: 0.304692654 | G148: 0.5 | H148: 0.5172101551 | J148: =J147 -> -0.28 | K148: =1/SQRT(a0^2-b0^2*xx^2) -> 0.3392970532 | L148: =L147 -> -0.28 | M148: =IF(xx<=x0,1/SQRT(a0^2-b0^2*xx^2),M146) -> 0.3392970532 | N148: =N147 -> -0.1877680751 | O148: =O146 -> 0.5 | S148: 0.9 | T148: 0.2858309752 | U148: 0.8337136581 | V148: 0.5404195003 | W148: 0.5830951895 | X148: 0.8337299311 | Z148: =Z147 -> -0.56 | AA148: =1/SQRT(a00^2+b00^2*xxxx^2) -> 0.3122805049 | AB148: =AB147 -> -0.56 | AC148: =IF(xxxx<=x00,1/SQRT(a00^2+b00^2*xxxx^2),AC146) -> 0.3122805049 | AD148: =AD147 -> -0.357308683 | AE148: =IF(xxxx<=x00,1/b00/COS(tt),AE146) -> 0.5337082016
C149: 0.46 | D149: 0.3502073842 | E149: 0.5207119548 | F149: 0.3116889734 | G149: 0.5 | H149: 0.5207083148 | J149: =J147+dx -> -0.27 | K149: 0 | L149: =IF(xx<=x0,L147+dx,L147) -> -0.27 | M149: =K149 -> 0 | N149: =IF(xx<=x0,ASIN(b0/a0*xx),N147) -> -0.1809864512 | O149: 0 | S149: 0.92 | T149: 0.284145953 | U149: 0.8394134274 | V149: 0.5501657804 | W149: 0.5865530193 | X149: 0.8394297906 | Z149: =Z147+dxx -> -0.54 | AA149: 0 | AB149: =IF(xxxx<=x00,AB147+dxx,AB147) -> -0.54 | AC149: =AA149 -> 0 | AD149: =IF(xxxx<=x00,ATAN(b00/a00*xxxx),AD147) -> -0.3455555806 | AE149: 0
C150: 0.47 | D150: 0.3510090217 | E150: 0.5242180368 | F150: 0.3187010996 | G150: 0.5 | H150: 0.5242143779 | J150: =J149 -> -0.27 | K150: =1/SQRT(a0^2-b0^2*xx^2) -> 0.3388681997 | L150: =L149 -> -0.27 | M150: =IF(xx<=x0,1/SQRT(a0^2-b0^2*xx^2),M148) -> 0.3388681997 | N150: =N149 -> -0.1809864512 | O150: =O148 -> 0.5 | S150: 0.94 | T150: 0.2824543224 | U150: 0.8450794301 | V150: 0.5597969196 | W150: 0.5900659097 | X150: 0.845095881 | Z150: =Z149 -> -0.54 | AA150: =1/SQRT(a00^2+b00^2*xxxx^2) -> 0.3136291373 | AB150: =AB149 -> -0.54 | AC150: =IF(xxxx<=x00,1/SQRT(a00^2+b00^2*xxxx^2),AC148) -> 0.3136291373 | AD150: =AD149 -> -0.3455555806 | AE150: =IF(xxxx<=x00,1/b00/COS(tt),AE148) -> 0.5314132102
C151: 0.48 | D151: 0.3518336091 | E151: 0.5277322499 | F151: 0.3257294873 | G151: 0.5 | H151: 0.5277285718 | J151: =J149+dx -> -0.26 | K151: 0 | L151: =IF(xx<=x0,L149+dx,L149) -> -0.26 | M151: =K151 -> 0 | N151: =IF(xx<=x0,ASIN(b0/a0*xx),N149) -> -0.1742132329 | O151: 0 | S151: 0.96 | T151: 0.2807571336 | U151: 0.8507115447 | V151: 0.5693131911 | W151: 0.5936328832 | X151: 0.8507280805 | Z151: =Z149+dxx -> -0.52 | AA151: 0 | AB151: =IF(xxxx<=x00,AB149+dxx,AB149) -> -0.52 | AC151: =AA151 -> 0 | AD151: =IF(xxxx<=x00,ATAN(b00/a00*xxxx),AD149) -> -0.3337021765 | AE151: 0
C152: 0.49 | D152: 0.3526815812 | E152: 0.5312548259 | F152: 0.3327745999 | G152: 0.5 | H152: 0.531251128 | J152: =J151 -> -0.26 | K152: =1/SQRT(a0^2-b0^2*xx^2) -> 0.3384564757 | L152: =L151 -> -0.26 | M152: =IF(xx<=x0,1/SQRT(a0^2-b0^2*xx^2),M150) -> 0.3384564757 | N152: =N151 -> -0.1742132329 | O152: =O150 -> 0.5 | S152: 0.98 | T152: 0.2790554 | U152: 0.85630967 | V152: 0.5787149449 | W152: 0.5972529708 | X152: 0.8563262883 | Z152: =Z151 -> -0.52 | AA152: =1/SQRT(a00^2+b00^2*xxxx^2) -> 0.3149453995 | AB152: =AB151 -> -0.52 | AC152: =IF(xxxx<=x00,1/SQRT(a00^2+b00^2*xxxx^2),AC150) -> 0.3149453995 | AD152: =AD151 -> -0.3337021765 | AE152: =IF(xxxx<=x00,1/b00/COS(tt),AE150) -> 0.5291922566
C153: 0.5 | D153: 0.3535533906 | E153: 0.5347860007 | F153: 0.3398369095 | G153: 0.5 | H153: 0.5347822828 | J153: =J151+dx -> -0.25 | K153: 0 | L153: =IF(xx<=x0,L151+dx,L151) -> -0.25 | M153: =K153 -> 0 | N153: =IF(xx<=x0,ASIN(b0/a0*xx),N151) -> -0.1674480792 | O153: 0 | S153: 1 | T153: 0.2773500981 | U153: 0.861873725 | V153: 0.5880026035 | W153: 0.6009252126 | X153: 0.8618904233 | Z153: =Z151+dxx -> -0.5 | AA153: 0 | AB153: =IF(xxxx<=x00,AB151+dxx,AB151) -> -0.5 | AC153: =AA153 -> 0 | AD153: =IF(xxxx<=x00,ATAN(b00/a00*xxxx),AD151) -> -0.3217505544 | AE153: 0
C154: 0.51 | D154: 0.3544495084 | E154: 0.5383260152 | F154: 0.3469168975 | G154: 0.5 | H154: 0.5383222769 | J154: =J153 -> -0.25 | K154: =1/SQRT(a0^2-b0^2*xx^2) -> 0.3380617019 | L154: =L153 -> -0.25 | M154: =IF(xx<=x0,1/SQRT(a0^2-b0^2*xx^2),M152) -> 0.3380617019 | N154: =N153 -> -0.1674480792 | O154: =O152 -> 0.5 | S154: 1.02 | T154: 0.2756421674 | U154: 0.8674036476 | V154: 0.5971766581 | W154: 0.6046486583 | X154: 0.8674204235 | Z154: =Z153 -> -0.5 | AA154: =1/SQRT(a00^2+b00^2*xxxx^2) -> 0.316227766 | AB154: =AB153 -> -0.5 | AC154: =IF(xxxx<=x00,1/SQRT(a00^2+b00^2*xxxx^2),AC152) -> 0.316227766 | AD154: =AD153 -> -0.3217505544 | AE154: =IF(xxxx<=x00,1/b00/COS(tt),AE152) -> 0.5270462767
C155: 0.52 | D155: 0.3553704251 | E155: 0.5418751149 | F155: 0.3540150551 | G155: 0.5 | H155: 0.5418713557 | J155: =J153+dx -> -0.24 | K155: 0 | L155: =IF(xx<=x0,L153+dx,L153) -> -0.24 | M155: =K155 -> 0 | N155: =IF(xx<=x0,ASIN(b0/a0*xx),N153) -> -0.160690653 | O155: 0 | S155: 1.04 | T155: 0.2739325105 | U155: 0.8728993944 | V155: 0.6062376642 | W155: 0.6084223679 | X155: 0.8729162455 | Z155: =Z153+dxx -> -0.48 | AA155: 0 | AB155: =IF(xxxx<=x00,AB153+dxx,AB153) -> -0.48 | AC155: =AA155 -> 0 | AD155: =IF(xxxx<=x00,ATAN(b00/a00*xxxx),AD153) -> -0.3097029445 | AE155: 0
C156: 0.53 | D156: 0.3563166514 | E156: 0.5454335503 | F156: 0.3611318833 | G156: 0.5 | H156: 0.5454297697 | J156: =J155 -> -0.24 | K156: =1/SQRT(a0^2-b0^2*xx^2) -> 0.3376837077 | L156: =L155 -> -0.24 | M156: =IF(xx<=x0,1/SQRT(a0^2-b0^2*xx^2),M154) -> 0.3376837077 | N156: =N155 -> -0.160690653 | O156: =O154 -> 0.5 | S156: 1.06 | T156: 0.2722219937 | U156: 0.8783609395 | V156: 0.6151862381 | W156: 0.6122454119 | X156: 0.8783778634 | Z156: =Z155 -> -0.48 | AA156: =1/SQRT(a00^2+b00^2*xxxx^2) -> 0.3174747157 | AB156: =AB155 -> -0.48 | AC156: =IF(xxxx<=x00,1/SQRT(a00^2+b00^2*xxxx^2),AC154) -> 0.3174747157 | AD156: =AD155 -> -0.3097029445 | AE156: =IF(xxxx<=x00,1/b00/COS(tt),AE154) -> 0.5249761899
C157: 0.54 | D157: 0.357288719 | E157: 0.5490015771 | F157: 0.3682678934 | G157: 0.5 | H157: 0.5489977748 | J157: =J155+dx -> -0.23 | K157: 0 | L157: =IF(xx<=x0,L155+dx,L155) -> -0.23 | M157: =K157 -> 0 | N157: =IF(xx<=x0,ASIN(b0/a0*xx),N155) -> -0.1539406201 | O157: 0 | S157: 1.08 | T157: 0.2705114472 | U157: 0.8837882739 | V157: 0.624023053 | W157: 0.616116872 | X157: 0.8838052685 | Z157: =Z155+dxx -> -0.46 | AA157: 0 | AB157: =IF(xxxx<=x00,AB155+dxx,AB155) -> -0.46 | AC157: =AA157 -> 0 | AD157: =IF(xxxx<=x00,ATAN(b00/a00*xxxx),AD155) -> -0.2975617247 | AE157: 0
C158: 0.55 | D158: 0.358287182 | E158: 0.5525794566 | F158: 0.375423608 | G158: 0.5 | H158: 0.5525756321 | J158: =J157 -> -0.23 | K158: =1/SQRT(a0^2-b0^2*xx^2) -> 0.3373223306 | L158: =L157 -> -0.23 | M158: =IF(xx<=x0,1/SQRT(a0^2-b0^2*xx^2),M156) -> 0.3373223306 | N158: =N157 -> -0.1539406201 | O158: =O156 -> 0.5 | S158: 1.1 | T158: 0.2688016653 | U158: 0.889181405 | V158: 0.632748835 | W158: 0.6200358413 | X158: 0.8891984681 | Z158: =Z157 -> -0.46 | AA158: =1/SQRT(a00^2+b00^2*xxxx^2) -> 0.3186847361 | AB158: =AB157 -> -0.46 | AC158: =IF(xxxx<=x00,1/SQRT(a00^2+b00^2*xxxx^2),AC156) -> 0.3186847361 | AD158: =AD157 -> -0.2975617247 | AE158: =IF(xxxx<=x00,1/b00/COS(tt),AE156) -> 0.5229828975
C159: 0.56 | D159: 0.359312617 | E159: 0.5561674556 | F159: 0.3825995605 | G159: 0.5 | H159: 0.5561636084 | J159: =J157+dx -> -0.22 | K159: 0 | L159: =IF(xx<=x0,L157+dx,L157) -> -0.22 | M159: =K159 -> 0 | N159: =IF(xx<=x0,ASIN(b0/a0*xx),N157) -> -0.14719765 | O159: 0 | S159: 1.12 | T159: 0.2670934074 | U159: 0.8945403557 | V159: 0.6413643599 | W159: 0.6240014245 | X159: 0.8945574851 | Z159: =Z157+dxx -> -0.44 | AA159: 0 | AB159: =IF(xxxx<=x00,AB157+dxx,AB157) -> -0.44 | AC159: =AA159 -> 0 | AD159: =IF(xxxx<=x00,ATAN(b00/a00*xxxx),AD157) -> -0.2853294202 | AE159: 0
C160: 0.57 | D160: 0.3603656251 | E160: 0.5597658468 | F160: 0.3897962965 | G160: 0.5 | H160: 0.5597619764 | J160: =J159 -> -0.22 | K160: =1/SQRT(a0^2-b0^2*xx^2) -> 0.3369774163 | L160: =L159 -> -0.22 | M160: =IF(xx<=x0,1/SQRT(a0^2-b0^2*xx^2),M158) -> 0.3369774163 | N160: =N159 -> -0.14719765 | O160: =O158 -> 0.5 | S160: 1.14 | T160: 0.265387398 | U160: 0.8998651638 | V160: 0.6498704494 | W160: 0.6280127387 | X160: 0.8998823573 | Z160: =Z159 -> -0.44 | AA160: =1/SQRT(a00^2+b00^2*xxxx^2) -> 0.3198563272 | AB160: =AB159 -> -0.44 | AC160: =IF(xxxx<=x00,1/SQRT(a00^2+b00^2*xxxx^2),AC158) -> 0.3198563272 | AD160: =AD159 -> -0.2853294202 | AE160: =IF(xxxx<=x00,1/b00/COS(tt),AE158) -> 0.5210672808
C161: 0.58 | D161: 0.3614468325 | E161: 0.5633749091 | F161: 0.3970143735 | G161: 0.5 | H161: 0.5633710149 | J161: =J159+dx -> -0.21 | K161: 0 | L161: =IF(xx<=x0,L159+dx,L159) -> -0.21 | M161: =K161 -> 0 | N161: =IF(xx<=x0,ASIN(b0/a0*xx),N159) -> -0.1404614147 | O161: 0 | S161: 1.16 | T161: 0.263684328 | U161: 0.905155881 | V161: 0.6582679678 | W161: 0.6320689133 | X161: 0.9051731368 | Z161: =Z159+dxx -> -0.42 | AA161: 0 | AB161: =IF(xxxx<=x00,AB159+dxx,AB159) -> -0.42 | AC161: =AA161 -> 0 | AD161: =IF(xxxx<=x00,ATAN(b00/a00*xxxx),AD159) -> -0.2730087031 | AE161: 0
C162: 0.59 | D162: 0.3625568919 | E162: 0.5669949278 | F162: 0.4042543621 | G162: 0.5 | H162: 0.5669910092 | J162: =J161 -> -0.21 | K162: =1/SQRT(a0^2-b0^2*xx^2) -> 0.336648818 | L162: =L161 -> -0.21 | M162: =IF(xx<=x0,1/SQRT(a0^2-b0^2*xx^2),M160) -> 0.336648818 | N162: =N161 -> -0.1404614147 | O162: =O160 -> 0.5 | S162: 1.18 | T162: 0.2619848548 | U162: 0.9104125729 | V162: 0.6665578188 | W162: 0.63616909 | X162: 0.9104298888 | Z162: =Z161 -> -0.42 | AA162: =1/SQRT(a00^2+b00^2*xxxx^2) -> 0.3209880066 | AB162: =AB161 -> -0.42 | AC162: =IF(xxxx<=x00,1/SQRT(a00^2+b00^2*xxxx^2),AC160) -> 0.3209880066 | AD162: =AD161 -> -0.2730087031 | AE162: =IF(xxxx<=x00,1/b00/COS(tt),AE160) -> 0.5192301994
C163: 0.6 | D163: 0.3636964837 | E163: 0.5706261946 | F163: 0.4115168461 | G163: 0.5 | H163: 0.5706222511 | J163: =J161+dx -> -0.2 | K163: 0 | L163: =IF(xx<=x0,L161+dx,L161) -> -0.2 | M163: =K163 -> 0 | N163: =IF(xx<=x0,ASIN(b0/a0*xx),N161) -> -0.1337315894 | O163: 0 | S163: 1.2 | T163: 0.2602896031 | U163: 0.9156353174 | V163: 0.6747409422 | W163: 0.6403124237 | X163: 0.9156526917 | Z163: =Z161+dxx -> -0.4 | AA163: 0 | AB163: =IF(xxxx<=x00,AB161+dxx,AB161) -> -0.4 | AC163: =AA163 -> 0 | AD163: =IF(xxxx<=x00,ATAN(b00/a00*xxxx),AD161) -> -0.2606023917 | AE163: 0
C164: =C163+dx -> 0.61 | D164: 0.3648663174 | E164: =E163+(D163+D164)*dx/2 -> 0.5742690086 | F164: =ASIN(b0/a0*x) -> 0.4188024231 | G164: 0.5 | H164: 0.5742650396 | J164: =J163 -> -0.2 | K164: =1/SQRT(a0^2-b0^2*xx^2) -> 0.336336397 | L164: =L163 -> -0.2 | M164: =IF(xx<=x0,1/SQRT(a0^2-b0^2*xx^2),M162) -> 0.336336397 | N164: =N163 -> -0.1337315894 | O164: =O162 -> 0.5 | S164: =S163+dxx -> 1.22 | T164: 0.2585991662 | U164: =U163+(T163+T164)*dxx/2 -> 0.9208242051 | V164: =ATAN(b00/a00*xxx) -> 0.682818311 | W164: 0.6444980821 | X164: 0.9208416358 | Z164: =Z163 -> -0.4 | AA164: =1/SQRT(a00^2+b00^2*xxxx^2) -> 0.3220783132 | AB164: =AB163 -> -0.4 | AC164: =IF(xxxx<=x00,1/SQRT(a00^2+b00^2*xxxx^2),AC162) -> 0.3220783132 | AD164: =AD163 -> -0.2606023917 | AE164: =IF(xxxx<=x00,1/b00/COS(tt),AE162) -> 0.5174724899
C165: 0.62 | D165: 0.3660671329 | E165: 0.5779236759 | F165: 0.4261117053 | G165: 0.5 | H165: 0.5779196808 | J165: =J163+dx -> -0.19 | K165: 0 | L165: =IF(xx<=x0,L163+dx,L163) -> -0.19 | M165: =K165 -> 0 | N165: =IF(xx<=x0,ASIN(b0/a0*xx),N163) -> -0.1270078519 | O165: 0 | S165: 1.24 | T165: 0.2569141062 | U165: 0.9259793379 | V165: 0.6907909283 | W165: 0.6487252457 | X165: 0.9259968231 | Z165: =Z163+dxx -> -0.38 | AA165: 0 | AB165: =IF(xxxx<=x00,AB163+dxx,AB163) -> -0.38 | AC165: =AA165 -> 0 | AD165: =IF(xxxx<=x00,ATAN(b00/a00*xxxx),AD163) -> -0.2481134491 | AE165: 0
C166: 0.63 | D166: 0.3672997023 | E166: 0.5815905101 | F166: 0.4334453201 | G166: 0.5 | H166: 0.5815864881 | J166: =J165 -> -0.19 | K166: =1/SQRT(a0^2-b0^2*xx^2) -> 0.3360400218 | L166: =L165 -> -0.19 | M166: =IF(xx<=x0,1/SQRT(a0^2-b0^2*xx^2),M164) -> 0.3360400218 | N166: =N165 -> -0.1270078519 | O166: =O164 -> 0.5 | S166: 1.26 | T166: 0.2552349549 | U166: 0.9311008285 | V166: 0.6986598247 | W166: 0.6529931087 | X166: 0.9311183666 | Z166: =Z165 -> -0.38 | AA166: =1/SQRT(a00^2+b00^2*xxxx^2) -> 0.3231258125 | AB166: =AB165 -> -0.38 | AC166: =IF(xxxx<=x00,1/SQRT(a00^2+b00^2*xxxx^2),AC164) -> 0.3231258125 | AD166: =AD165 -> -0.2481134491 | AE166: =IF(xxxx<=x00,1/b00/COS(tt),AE164) -> 0.5157949636
C167: 0.64 | D167: 0.3685648312 | E167: 0.5852698327 | F167: 0.4408039104 | G167: 0.5 | H167: 0.5852657833 | J167: =J165+dx -> -0.18 | K167: 0 | L167: =IF(xx<=x0,L165+dx,L165) -> -0.18 | M167: =K167 -> 0 | N167: =IF(xx<=x0,ASIN(b0/a0*xx),N165) -> -0.1202898824 | O167: 0 | S167: 1.28 | T167: 0.2535622151 | U167: 0.9361888002 | V167: 0.7064260557 | W167: 0.6573008782 | X167: 0.9362063895 | Z167: =Z165+dxx -> -0.36 | AA167: 0 | AB167: =IF(xxxx<=x00,AB165+dxx,AB165) -> -0.36 | AC167: =AA167 -> 0 | AD167: =IF(xxxx<=x00,ATAN(b00/a00*xxxx),AD165) -> -0.2355449807 | AE167: 0
C168: 0.65 | D168: 0.3698633607 | E168: 0.5889619737 | F168: 0.448188136 | G168: 0.5 | H168: 0.5889578961 | J168: =J167 -> -0.18 | K168: =1/SQRT(a0^2-b0^2*xx^2) -> 0.3357595683 | L168: =L167 -> -0.18 | M168: =IF(xx<=x0,1/SQRT(a0^2-b0^2*xx^2),M166) -> 0.3357595683 | N168: =N167 -> -0.1202898824 | O168: =O166 -> 0.5 | S168: 1.3 | T168: 0.2518963609 | U168: 0.9412433859 | V168: 0.7140906986 | W168: 0.6616477747 | X168: 0.9412610247 | Z168: =Z167 -> -0.36 | AA168: =1/SQRT(a00^2+b00^2*xxxx^2) -> 0.3241291007 | AB168: =AB167 -> -0.36 | AC168: =IF(xxxx<=x00,1/SQRT(a00^2+b00^2*xxxx^2),AC166) -> 0.3241291007 | AD168: =AD167 -> -0.2355449807 | AE168: =IF(xxxx<=x00,1/b00/COS(tt),AE166) -> 0.5141984053
C169: 0.66 | D169: 0.3711961693 | E169: 0.5926672713 | F169: 0.4555986734 | G169: 0.5 | H169: 0.5926631648 | J169: =J167+dx -> -0.17 | K169: 0 | L169: =IF(xx<=x0,L167+dx,L167) -> -0.17 | M169: =K169 -> 0 | N169: =IF(xx<=x0,ASIN(b0/a0*xx),N167) -> -0.1135773638 | O169: 0 | S169: 1.32 | T169: 0.250237839 | U169: 0.9462647279 | V169: 0.7216548509 | W169: 0.6660330322 | X169: 0.9462824146 | Z169: =Z167+dxx -> -0.34 | AA169: 0 | AB169: =IF(xxxx<=x00,AB167+dxx,AB167) -> -0.34 | AC169: =AA169 -> 0 | AD169: =IF(xxxx<=x00,ATAN(b00/a00*xxxx),AD167) -> -0.2229002323 | AE169: 0
C170: 0.67 | D170: 0.3725641746 | E170: 0.5963860731 | F170: 0.4630362174 | G170: 0.5 | H170: 0.5963819368 | J170: =J169 -> -0.17 | K170: =1/SQRT(a0^2-b0^2*xx^2) -> 0.3354949198 | L170: =L169 -> -0.17 | M170: =IF(xx<=x0,1/SQRT(a0^2-b0^2*xx^2),M168) -> 0.3354949198 | N170: =N169 -> -0.1135773638 | O170: =O168 -> 0.5 | S170: 1.34 | T170: 0.2485870691 | U170: 0.951252977 | V170: 0.7291196271 | W170: 0.670455898 | X170: 0.95127071 | Z170: =Z169 -> -0.34 | AA170: =1/SQRT(a00^2+b00^2*xxxx^2) -> 0.3250868098 | AB170: =AB169 -> -0.34 | AC170: =IF(xxxx<=x00,1/SQRT(a00^2+b00^2*xxxx^2),AC168) -> 0.3250868098 | AD170: =AD169 -> -0.2229002323 | AE170: =IF(xxxx<=x00,1/b00/COS(tt),AE168) -> 0.5126835715
C171: 0.68 | D171: 0.3739683355 | E171: 0.6001187356 | F171: 0.4705014814 | G171: 0.5 | H171: 0.6001145688 | J171: =J169+dx -> -0.16 | K171: 0 | L171: =IF(xx<=x0,L169+dx,L169) -> -0.16 | M171: =K171 -> 0 | N171: =IF(xx<=x0,ASIN(b0/a0*xx),N169) -> -0.106869981 | O171: 0 | S171: 1.36 | T171: 0.2469444455 | U171: 0.9562082922 | V171: 0.7364861572 | W171: 0.6749156326 | X171: 0.95622607 | Z171: =Z169+dxx -> -0.32 | AA171: 0 | AB171: =IF(xxxx<=x00,AB169+dxx,AB169) -> -0.32 | AC171: =AA171 -> 0 | AD171: =IF(xxxx<=x00,ATAN(b00/a00*xxxx),AD169) -> -0.2101825867 | AE171: 0
C172: 0.69 | D172: 0.3754096547 | E172: 0.6038656256 | F172: 0.4779951985 | G172: 0.5 | H172: 0.6038614274 | J172: =J171 -> -0.16 | K172: =1/SQRT(a0^2-b0^2*xx^2) -> 0.3352459663 | L172: =L171 -> -0.16 | M172: =IF(xx<=x0,1/SQRT(a0^2-b0^2*xx^2),M170) -> 0.3352459663 | N172: =N171 -> -0.106869981 | O172: =O170 -> 0.5 | S172: 1.38 | T172: 0.2453103373 | U172: 0.96113084 | V172: 0.7437555843 | W172: 0.6794115101 | X172: 0.9611486611 | Z172: =Z171 -> -0.32 | AA172: =1/SQRT(a00^2+b00^2*xxxx^2) -> 0.3259976121 | AB172: =AB171 -> -0.32 | AC172: =IF(xxxx<=x00,1/SQRT(a00^2+b00^2*xxxx^2),AC170) -> 0.3259976121 | AD172: =AD171 -> -0.2101825867 | AE172: =IF(xxxx<=x00,1/b00/COS(tt),AE170) -> 0.5112511885
C173: 0.7 | D173: 0.3768891807 | E173: 0.6076271197 | F173: 0.4855181223 | G173: 0.5 | H173: 0.6076228893 | J173: =J171+dx -> -0.15 | K173: 0 | L173: =IF(xx<=x0,L171+dx,L171) -> -0.15 | M173: =K173 -> 0 | N173: =IF(xx<=x0,ASIN(b0/a0*xx),N171) -> -0.1001674212 | O173: 0 | S173: 1.4 | T173: 0.2436850894 | U173: 0.9660207943 | V173: 0.7509290624 | W173: 0.6839428176 | X173: 0.9660386574 | Z173: =Z171+dxx -> -0.3 | AA173: 0 | AB173: =IF(xxxx<=x00,AB171+dxx,AB171) -> -0.3 | AC173: =AA173 -> 0 | AD173: =IF(xxxx<=x00,ATAN(b00/a00*xxxx),AD171) -> -0.1973955598 | AE173: 0
C174: 0.71 | D174: 0.3784080109 | E174: 0.6114036057 | F174: 0.4930710278 | G174: 0.5 | H174: 0.611399342 | J174: =J173 -> -0.15 | K174: =1/SQRT(a0^2-b0^2*xx^2) -> 0.3350126051 | L174: =L173 -> -0.15 | M174: =IF(xx<=x0,1/SQRT(a0^2-b0^2*xx^2),M172) -> 0.3350126051 | N174: =N173 -> -0.1001674212 | O174: =O172 -> 0.5 | S174: 1.42 | T174: 0.2420690239 | U174: 0.9708783354 | V174: 0.7580077549 | W174: 0.6885088557 | X174: 0.9708962391 | Z174: =Z173 -> -0.3 | AA174: =1/SQRT(a00^2+b00^2*xxxx^2) -> 0.3268602252 | AB174: =AB173 -> -0.3 | AC174: =IF(xxxx<=x00,1/SQRT(a00^2+b00^2*xxxx^2),AC172) -> 0.3268602252 | AD174: =AD173 -> -0.1973955598 | AE174: =IF(xxxx<=x00,1/b00/COS(tt),AE172) -> 0.5099019514
C175: 0.72 | D175: 0.3799672938 | E175: 0.6151954822 | F175: 0.5006547124 | G175: 0.5 | H175: 0.6151911843 | J175: =J173+dx -> -0.14 | K175: 0 | L175: =IF(xx<=x0,L173+dx,L173) -> -0.14 | M175: =K175 -> 0 | N175: =IF(xx<=x0,ASIN(b0/a0*xx),N173) -> -0.09346937346 | O175: 0 | S175: 1.44 | T175: 0.2404624403 | U175: 0.97570365 | V175: 0.7649928327 | W175: 0.693108938 | X175: 0.9757215929 | Z175: =Z173+dxx -> -0.28 | AA175: 0 | AB175: =IF(xxxx<=x00,AB173+dxx,AB173) -> -0.28 | AC175: =AA175 -> 0 | AD175: =IF(xxxx<=x00,ATAN(b00/a00*xxxx),AD173) -> -0.1845427972 | AE175: 0
C176: 0.73 | D176: 0.3815682324 | E176: 0.6190031599 | F176: 0.5082699972 | G176: 0.5 | H176: 0.6189988267 | J176: =J175 -> -0.14 | K176: =1/SQRT(a0^2-b0^2*xx^2) -> 0.33479474 | L176: =L175 -> -0.14 | M176: =IF(xx<=x0,1/SQRT(a0^2-b0^2*xx^2),M174) -> 0.33479474 | N176: =N175 -> -0.09346937346 | O176: =O174 -> 0.5 | S176: 1.46 | T176: 0.2388656168 | U176: 0.9804969306 | V176: 0.7718854724 | W176: 0.6977423912 | X176: 0.9805149115 | Z176: =Z175 -> -0.28 | AA176: =1/SQRT(a00^2+b00^2*xxxx^2) -> 0.3276734163 | AB176: =AB175 -> -0.28 | AC176: =IF(xxxx<=x00,1/SQRT(a00^2+b00^2*xxxx^2),AC174) -> 0.3276734163 | AD176: =AD175 -> -0.1845427972 | AE176: =IF(xxxx<=x00,1/b00/COS(tt),AE174) -> 0.5086365216
C177: 0.74 | D177: 0.3832120872 | E177: 0.6228270615 | F177: 0.5159177278 | G177: 0.5 | H177: 0.622822692 | J177: =J175+dx -> -0.13 | K177: 0 | L177: =IF(xx<=x0,L175+dx,L175) -> -0.13 | M177: =K177 -> 0 | N177: =IF(xx<=x0,ASIN(b0/a0*xx),N175) -> -0.08677552885 | O177: 0 | S177: 1.48 | T177: 0.2372788109 | U177: 0.9852583749 | V177: 0.7786868548 | W177: 0.7024085547 | X177: 0.9852763925 | Z177: =Z175+dxx -> -0.26 | AA177: 0 | AB177: =IF(xxxx<=x00,AB175+dxx,AB175) -> -0.26 | AC177: =AA177 -> 0 | AD177: =IF(xxxx<=x00,ATAN(b00/a00*xxxx),AD175) -> -0.1716280684 | AE177: 0
C178: 0.75 | D178: 0.3849001795 | E178: 0.6266676228 | F178: 0.5235987756 | G178: 0.5 | H178: 0.6266632159 | J178: =J177 -> -0.13 | K178: =1/SQRT(a0^2-b0^2*xx^2) -> 0.3345922817 | L178: =L177 -> -0.13 | M178: =IF(xx<=x0,1/SQRT(a0^2-b0^2*xx^2),M176) -> 0.3345922817 | N178: =N177 -> -0.08677552885 | O178: =O176 -> 0.5 | S178: 1.5 | T178: 0.2357022604 | U178: 0.9899881856 | V178: 0.7853981634 | W178: 0.7071067812 | X178: 0.9900062387 | Z178: =Z177 -> -0.26 | AA178: =1/SQRT(a00^2+b00^2*xxxx^2) -> 0.3284360068 | AB178: =AB177 -> -0.26 | AC178: =IF(xxxx<=x00,1/SQRT(a00^2+b00^2*xxxx^2),AC176) -> 0.3284360068 | AD178: =AD177 -> -0.1716280684 | AE178: =IF(xxxx<=x00,1/b00/COS(tt),AE176) -> 0.5074555262
C179: 0.76 | D179: 0.3866338952 | E179: 0.6305252932 | F179: 0.5313140391 | G179: 0.5 | H179: 0.6305208477 | J179: =J177+dx -> -0.12 | K179: 0 | L179: =IF(xx<=x0,L177+dx,L177) -> -0.12 | M179: =K179 -> 0 | N179: =IF(xx<=x0,ASIN(b0/a0*xx),N177) -> -0.08008558003 | O179: 0 | S179: 1.52 | T179: 0.234136184 | U179: 0.99468657 | V179: 0.7920205831 | W179: 0.7118364356 | X179: 0.9947046575 | Z179: =Z177+dxx -> -0.24 | AA179: 0 | AB179: =IF(xxxx<=x00,AB177+dxx,AB177) -> -0.24 | AC179: =AA179 -> 0 | AD179: =IF(xxxx<=x00,ATAN(b00/a00*xxxx),AD177) -> -0.1586552622 | AE179: 0
C180: 0.77 | D180: 0.3884146891 | E180: 0.6344005361 | F180: 0.5390644452 | G180: 0.5 | H180: 0.6343960507 | J180: =J179 -> -0.12 | K180: =1/SQRT(a0^2-b0^2*xx^2) -> 0.3344051475 | L180: =L179 -> -0.12 | M180: =IF(xx<=x0,1/SQRT(a0^2-b0^2*xx^2),M178) -> 0.3344051475 | N180: =N179 -> -0.08008558003 | O180: =O178 -> 0.5 | S180: 1.54 | T180: 0.2325807824 | U180: 0.9993537397 | V180: 0.7985552989 | W180: 0.7165968958 | X180: 0.9993718603 | Z180: =Z179 -> -0.24 | AA180: =1/SQRT(a00^2+b00^2*xxxx^2) -> 0.3291468773 | AB180: =AB179 -> -0.24 | AC180: =IF(xxxx<=x00,1/SQRT(a00^2+b00^2*xxxx^2),AC178) -> 0.3291468773 | AD180: =AD179 -> -0.1586552622 | AE180: =IF(xxxx<=x00,1/b00/COS(tt),AE178) -> 0.506359556
C181: 0.78 | D181: 0.3902440882 | E181: 0.63829383 | F181: 0.5468509507 | G181: 0.5 | H181: 0.6382893035 | J181: =J179+dx -> -0.11 | K181: 0 | L181: =IF(xx<=x0,L179+dx,L179) -> -0.11 | M181: =K181 -> 0 | N181: =IF(xx<=x0,ASIN(b0/a0*xx),N179) -> -0.0733992213 | O181: 0 | S181: 1.56 | T181: 0.2310362388 | U181: 1.00398991 | V181: 0.8050034943 | W181: 0.7213875519 | X181: 1.004008063 | Z181: =Z179+dxx -> -0.22 | AA181: 0 | AB181: =IF(xxxx<=x00,AB179+dxx,AB179) -> -0.22 | AC181: =AA181 -> 0 | AD181: =IF(xxxx<=x00,ATAN(b00/a00*xxxx),AD179) -> -0.1456283806 | AE181: 0
C182: 0.79 | D182: 0.3921236972 | E182: 0.6422056689 | F182: 0.5546745435 | G182: 0.5 | H182: 0.6422010999 | J182: =J181 -> -0.11 | K182: =1/SQRT(a0^2-b0^2*xx^2) -> 0.334233261 | L182: =L181 -> -0.11 | M182: =IF(xx<=x0,1/SQRT(a0^2-b0^2*xx^2),M180) -> 0.334233261 | N182: =N181 -> -0.0733992213 | O182: =O180 -> 0.5 | S182: 1.58 | T182: 0.2295027198 | U182: 1.008595299 | V182: 0.8113663506 | W182: 0.7262078062 | X182: 1.008613483 | Z182: =Z181 -> -0.22 | AA182: =1/SQRT(a00^2+b00^2*xxxx^2) -> 0.3298049714 | AB182: =AB181 -> -0.22 | AC182: =IF(xxxx<=x00,1/SQRT(a00^2+b00^2*xxxx^2),AC180) -> 0.3298049714 | AD182: =AD181 -> -0.1456283806 | AE182: =IF(xxxx<=x00,1/b00/COS(tt),AE180) -> 0.5053491642
C183: 0.8 | D183: 0.3940552031 | E183: 0.6461365634 | F183: 0.5625362445 | G183: 0.5 | H183: 0.6461319504 | J183: =J181+dx -> -0.1 | K183: 0 | L183: =IF(xx<=x0,L181+dx,L181) -> -0.1 | M183: =K183 -> 0 | N183: =IF(xx<=x0,ASIN(b0/a0*xx),N181) -> -0.06671614841 | O183: 0 | S183: 1.6 | T183: 0.2279803763 | U183: 1.01317013 | V183: 0.8176450458 | W183: 0.7310570733 | X183: 1.013188344 | Z183: =Z181+dxx -> -0.2 | AA183: 0 | AB183: =IF(xxxx<=x00,AB181+dxx,AB181) -> -0.2 | AC183: =AA183 -> 0 | AD183: =IF(xxxx<=x00,ATAN(b00/a00*xxxx),AD181) -> -0.1325515323 | AE183: 0
C184: 0.81 | D184: 0.3960403804 | E184: 0.6500870413 | F184: 0.5704371094 | G184: 0.5 | H184: 0.6500823828 | J184: =J183 -> -0.1 | K184: =1/SQRT(a0^2-b0^2*xx^2) -> 0.3340765524 | L184: =L183 -> -0.1 | M184: =IF(xx<=x0,1/SQRT(a0^2-b0^2*xx^2),M182) -> 0.3340765524 | N184: =N183 -> -0.06671614841 | O184: =O182 -> 0.5 | S184: 1.62 | T184: 0.2264693438 | U184: 1.017714628 | V184: 0.8238407534 | W184: 0.7359347797 | X184: 1.017732871 | Z184: =Z183 -> -0.2 | AA184: =1/SQRT(a00^2+b00^2*xxxx^2) -> 0.3304093002 | AB184: =AB183 -> -0.2 | AC184: =IF(xxxx<=x00,1/SQRT(a00^2+b00^2*xxxx^2),AC182) -> 0.3304093002 | AD184: =AD183 -> -0.1325515323 | AE184: =IF(xxxx<=x00,1/b00/COS(tt),AE182) -> 0.504424865
C185: 0.82 | D185: 0.3980810971 | E185: 0.6540576487 | F185: 0.57837823 | G185: 0.5 | H185: 0.6540529431 | J185: =J183+dx -> -0.09 | K185: 0 | L185: =IF(xx<=x0,L183+dx,L183) -> -0.09 | M185: =K185 -> 0 | N185: =IF(xx<=x0,ASIN(b0/a0*xx),N183) -> -0.06003605845 | O185: 0 | S185: 1.64 | T185: 0.2249697436 | U185: 1.022229019 | V185: 0.8299546415 | W185: 0.7408403637 | X185: 1.02224729 | Z185: =Z183+dxx -> -0.18 | AA185: 0 | AB185: =IF(xxxx<=x00,AB183+dxx,AB183) -> -0.18 | AC185: =AA185 -> 0 | AD185: =IF(xxxx<=x00,ATAN(b00/a00*xxxx),AD183) -> -0.119428926 | AE185: 0
C186: 0.83 | D186: 0.4001793205 | E186: 0.6580489508 | F186: 0.5863607366 | G186: 0.5 | H186: 0.6580441964 | J186: =J185 -> -0.09 | K186: =1/SQRT(a0^2-b0^2*xx^2) -> 0.3339349582 | L186: =L185 -> -0.09 | M186: =IF(xx<=x0,1/SQRT(a0^2-b0^2*xx^2),M184) -> 0.3339349582 | N186: =N185 -> -0.06003605845 | O186: =O184 -> 0.5 | S186: 1.66 | T186: 0.223481683 | U186: 1.026713533 | V186: 0.8359878722 | W186: 0.745773275 | X186: 1.026731831 | Z186: =Z185 -> -0.18 | AA186: =1/SQRT(a00^2+b00^2*xxxx^2) -> 0.3309589462 | AB186: =AB185 -> -0.18 | AC186: =IF(xxxx<=x00,1/SQRT(a00^2+b00^2*xxxx^2),AC184) -> 0.3309589462 | AD186: =AD185 -> -0.119428926 | AE186: =IF(xxxx<=x00,1/b00/COS(tt),AE184) -> 0.5035871325
C187: 0.84 | D187: 0.4023371247 | E187: 0.662061533 | F187: 0.5943858 | G187: 0.5 | H187: 0.6620567281 | J187: =J185+dx -> -0.08 | K187: 0 | L187: =IF(xx<=x0,L185+dx,L185) -> -0.08 | M187: =K187 -> 0 | N187: =IF(xx<=x0,ASIN(b0/a0*xx),N185) -> -0.0533586497 | O187: 0 | S187: 1.68 | T187: 0.2220052564 | U187: 1.031168402 | V187: 0.8419416003 | W187: 0.7507329752 | X187: 1.031186727 | Z187: =Z185+dxx -> -0.16 | AA187: 0 | AB187: =IF(xxxx<=x00,AB185+dxx,AB185) -> -0.16 | AC187: =AA187 -> 0 | AD187: =IF(xxxx<=x00,ATAN(b00/a00*xxxx),AD185) -> -0.1062648629 | AE187: 0
C188: 0.85 | D188: 0.404556697 | E188: 0.6660960021 | F188: 0.6024546334 | G188: 0.5 | H188: 0.6660911448 | J188: =J187 -> -0.08 | K188: =1/SQRT(a0^2-b0^2*xx^2) -> 0.3338084212 | L188: =L187 -> -0.08 | M188: =IF(xx<=x0,1/SQRT(a0^2-b0^2*xx^2),M186) -> 0.3338084212 | N188: =N187 -> -0.0533586497 | O188: =O186 -> 0.5 | S188: 1.7 | T188: 0.2205405457 | U188: 1.03559386 | V188: 0.8478169734 | W188: 0.7557189366 | X188: 1.03561221 | Z188: =Z187 -> -0.16 | AA188: =1/SQRT(a00^2+b00^2*xxxx^2) -> 0.3314530669 | AB188: =AB187 -> -0.16 | AC188: =IF(xxxx<=x00,1/SQRT(a00^2+b00^2*xxxx^2),AC186) -> 0.3314530669 | AD188: =AD187 -> -0.1062648629 | AE188: =IF(xxxx<=x00,1/b00/COS(tt),AE186) -> 0.5028363993
C189: 0.86 | D189: 0.4068403468 | E189: 0.6701529873 | F189: 0.610568495 | G189: 0.5 | H189: 0.6701480756 | J189: =J187+dx -> -0.07 | K189: 0 | L189: =IF(xx<=x0,L187+dx,L187) -> -0.07 | M189: =K189 -> 0 | N189: =IF(xx<=x0,ASIN(b0/a0*xx),N187) -> -0.04668362156 | O189: 0 | S189: 1.72 | T189: 0.2190876208 | U189: 1.039990142 | V189: 0.8536151303 | W189: 0.7607306429 | X189: 1.040008517 | Z189: =Z187+dxx -> -0.14 | AA189: 0 | AB189: =IF(xxxx<=x00,AB187+dxx,AB187) -> -0.14 | AC189: =AA189 -> 0 | AD189: =IF(xxxx<=x00,ATAN(b00/a00*xxxx),AD187) -> -0.09306372872 | AE189: 0
C190: 0.87 | D190: 0.4091905135 | E190: 0.6742331416 | F190: 0.6187286907 | G190: 0.5 | H190: 0.6742281734 | J190: =J189 -> -0.07 | K190: =1/SQRT(a0^2-b0^2*xx^2) -> 0.3336968902 | L190: =L189 -> -0.07 | M190: =IF(xx<=x0,1/SQRT(a0^2-b0^2*xx^2),M188) -> 0.3336968902 | N190: =N189 -> -0.04668362156 | O190: =O188 -> 0.5 | S190: 1.74 | T190: 0.2176465407 | U190: 1.044357483 | V190: 0.8593372011 | W190: 0.7657675888 | X190: 1.044375882 | Z190: =Z189 -> -0.14 | AA190: =1/SQRT(a00^2+b00^2*xxxx^2) -> 0.3318908986 | AB190: =AB189 -> -0.14 | AC190: =IF(xxxx<=x00,1/SQRT(a00^2+b00^2*xxxx^2),AC188) -> 0.3318908986 | AD190: =AD189 -> -0.09306372872 | AE190: =IF(xxxx<=x00,1/b00/COS(tt),AE188) -> 0.5021730556
C191: 0.88 | D191: 0.4116097761 | E191: 0.6783371431 | F191: 0.6269365762 | G191: 0.5 | H191: 0.6783321162 | J191: =J189+dx -> -0.06 | K191: 0 | L191: =IF(xx<=x0,L189+dx,L189) -> -0.06 | M191: =K191 -> 0 | N191: =IF(xx<=x0,ASIN(b0/a0*xx),N189) -> -0.04001067435 | O191: 0 | S191: 1.76 | T191: 0.2162173534 | U191: 1.048696122 | V191: 0.8649843061 | W191: 0.7708292793 | X191: 1.048714544 | Z191: =Z189+dxx -> -0.12 | AA191: 0 | AB191: =IF(xxxx<=x00,AB189+dxx,AB189) -> -0.12 | AC191: =AA191 -> 0 | AD191: =IF(xxxx<=x00,ATAN(b00/a00*xxxx),AD189) -> -0.07982998571 | AE191: 0
C192: 0.89 | D192: 0.4141008637 | E192: 0.6824656963 | F192: 0.6351935605 | G192: 0.5 | H192: 0.6824606084 | J192: =J191 -> -0.06 | K192: =1/SQRT(a0^2-b0^2*xx^2) -> 0.3336003204 | L192: =L191 -> -0.06 | M192: =IF(xx<=x0,1/SQRT(a0^2-b0^2*xx^2),M190) -> 0.3336003204 | N192: =N191 -> -0.04001067435 | O192: =O190 -> 0.5 | S192: 1.78 | T192: 0.2148000969 | U192: 1.053006297 | V192: 0.870557556 | W192: 0.7759152302 | X192: 1.053024741 | Z192: =Z191 -> -0.12 | AA192: =1/SQRT(a00^2+b00^2*xxxx^2) -> 0.3322717595 | AB192: =AB191 -> -0.12 | AC192: =IF(xxxx<=x00,1/SQRT(a00^2+b00^2*xxxx^2),AC190) -> 0.3322717595 | AD192: =AD191 -> -0.07982998571 | AE192: =IF(xxxx<=x00,1/b00/COS(tt),AE190) -> 0.5015974482
C193: 0.9 | D193: 0.4166666667 | E193: 0.6866195339 | F193: 0.6435011088 | G193: 0.5 | H193: 0.6866143825 | J193: =J191+dx -> -0.05 | K193: 0 | L193: =IF(xx<=x0,L191+dx,L191) -> -0.05 | M193: =K193 -> 0 | N193: =IF(xx<=x0,ASIN(b0/a0*xx),N191) -> -0.03333950926 | O193: 0 | S193: 1.8 | T193: 0.2133947999 | U193: 1.057288246 | V193: 0.8760580506 | W193: 0.7810249676 | X193: 1.057306711 | Z193: =Z191+dxx -> -0.1 | AA193: 0 | AB193: =IF(xxxx<=x00,AB191+dxx,AB191) -> -0.1 | AC193: =AA193 -> 0 | AD193: =IF(xxxx<=x00,ATAN(b00/a00*xxxx),AD191) -> -0.06656816378 | AE193: 0
C194: 0.91 | D194: 0.4193102485 | E194: 0.6907994185 | F194: 0.6518607457 | G194: 0.5 | H194: 0.6907942009 | J194: =J193 -> -0.05 | K194: =1/SQRT(a0^2-b0^2*xx^2) -> 0.333518673 | L194: =L193 -> -0.05 | M194: =IF(xx<=x0,1/SQRT(a0^2-b0^2*xx^2),M192) -> 0.333518673 | N194: =N193 -> -0.03333950926 | O194: =O192 -> 0.5 | S194: 1.82 | T194: 0.2120014816 | U194: 1.061542209 | V194: 0.8814868789 | W194: 0.7861580277 | X194: 1.061560695 | Z194: =Z193 -> -0.1 | AA194: =1/SQRT(a00^2+b00^2*xxxx^2) -> 0.3325950526 | AB194: =AB193 -> -0.1 | AC194: =IF(xxxx<=x00,1/SQRT(a00^2+b00^2*xxxx^2),AC192) -> 0.3325950526 | AD194: =AD193 -> -0.06656816378 | AE194: =IF(xxxx<=x00,1/b00/COS(tt),AE192) -> 0.5011098793
C195: 0.92 | D195: =1/SQRT(a0^2-b0^2*x^2) -> 0.4220348595 | E195: 0.6950061441 | F195: 0.6602740589 | G195: =1/b0 -> 0.5 | H195: 0.6950008576 | J195: =J193+dx -> -0.04 | K195: 0 | L195: =IF(xx<=x0,L193+dx,L193) -> -0.04 | M195: =K195 -> 0 | N195: =IF(xx<=x0,ASIN(b0/a0*xx),N193) -> -0.02666982817 | O195: 0 | S195: 1.84 | T195: =1/SQRT(a00^2+b00^2*xxx^2) -> 0.2106201531 | U195: 1.065768425 | V195: 0.8868451187 | W195: =1/b00/COS(t) -> 0.7913139565 | X195: 1.065786932 | Z195: =Z193+dxx -> -0.08 | AA195: 0 | AB195: =IF(xxxx<=x00,AB193+dxx,AB193) -> -0.08 | AC195: =AA195 -> 0 | AD195: =IF(xxxx<=x00,ATAN(b00/a00*xxxx),AD193) -> -0.05328285156 | AE195: 0
C196: =C195+dx -> 0.93 | D196: 0.4248439516 | E196: =E195+(D195+D196)*dx/2 -> 0.6992405381 | F196: =ASIN(b0/a0*x) -> 0.6687427032 | G196: 0.5 | H196: 0.6992351797 | J196: =J195 -> -0.04 | K196: =1/SQRT(a0^2-b0^2*xx^2) -> 0.3334519151 | L196: =L195 -> -0.04 | M196: =IF(xx<=x0,1/SQRT(a0^2-b0^2*xx^2),M194) -> 0.3334519151 | N196: =N195 -> -0.02666982817 | O196: =O194 -> 0.5 | S196: =S195+dxx -> 1.86 | T196: 0.2092508171 | U196: =U195+(T195+T196)*dxx/2 -> 1.069967135 | V196: =ATAN(b00/a00*xxx) -> 0.892133836 | W196: 0.7964923101 | X196: 1.069985661 | Z196: =Z195 -> -0.08 | AA196: =1/SQRT(a00^2+b00^2*xxxx^2) -> 0.3328602682 | AB196: =AB195 -> -0.08 | AC196: =IF(xxxx<=x00,1/SQRT(a00^2+b00^2*xxxx^2),AC194) -> 0.3328602682 | AD196: =AD195 -> -0.05328285156 | AE196: =IF(xxxx<=x00,1/b00/COS(tt),AE194) -> 0.5007106062
C197: 0.94 | D197: 0.4277411943 | E197: 0.7035034638 | F197: 0.6772684046 | G197: 0.5 | H197: =H196+(G196+G197)*(F197-F196)/2 -> 0.7034980304 | J197: =J195+dx -> -0.03 | K197: 0 | L197: =IF(xx<=x0,L195+dx,L195) -> -0.03 | M197: =K197 -> 0 | N197: =IF(xx<=x0,ASIN(b0/a0*xx),N195) -> -0.02000133357 | O197: 0 | S197: 1.88 | T197: 0.2078934688 | U197: 1.074138578 | V197: 0.8973540851 | W197: 0.8016926538 | X197: =X196+(W196+W197)*(V197-V196)/2 -> 1.074157123 | Z197: =Z195+dxx -> -0.06 | AA197: 0 | AB197: =IF(xxxx<=x00,AB195+dxx,AB195) -> -0.06 | AC197: =AA197 -> 0 | AD197: =IF(xxxx<=x00,ATAN(b00/a00*xxxx),AD195) -> -0.03997868712 | AE197: 0
C198: 0.95 | D198: 0.4307304923 | E198: 0.7077958223 | F198: 0.6858529646 | G198: 0.5 | H198: 0.7077903104 | J198: =J197 -> -0.03 | K198: =1/SQRT(a0^2-b0^2*xx^2) -> 0.33340002 | L198: =L197 -> -0.03 | M198: =IF(xx<=x0,1/SQRT(a0^2-b0^2*xx^2),M196) -> 0.33340002 | N198: =N197 -> -0.02000133357 | O198: =O196 -> 0.5 | S198: 1.9 | T198: 0.2065480962 | U198: 1.078282993 | V198: 0.902506908 | W198: 0.8069145625 | X198: 1.078301557 | Z198: =Z197 -> -0.06 | AA198: =1/SQRT(a00^2+b00^2*xxxx^2) -> 0.3330669862 | AB198: =AB197 -> -0.06 | AC198: =IF(xxxx<=x00,1/SQRT(a00^2+b00^2*xxxx^2),AC196) -> 0.3330669862 | AD198: =AD197 -> -0.03997868712 | AE198: =IF(xxxx<=x00,1/b00/COS(tt),AE196) -> 0.5003998401
C199: 0.96 | D199: 0.4338160052 | E199: 0.7121185548 | F199: 0.6944982656 | G199: 0.5 | H199: 0.7121129609 | J199: =J197+dx -> -0.02 | K199: 0 | L199: =IF(xx<=x0,L197+dx,L197) -> -0.02 | M199: =K199 -> 0 | N199: =IF(xx<=x0,ASIN(b0/a0*xx),N197) -> -0.01333372843 | O199: 0 | S199: 1.92 | T199: 0.2052146807 | U199: 1.082400621 | V199: 0.9075933341 | W199: 0.8121576202 | X199: 1.082419202 | Z199: =Z197+dxx -> -0.04 | AA199: 0 | AB199: =IF(xxxx<=x00,AB197+dxx,AB197) -> -0.04 | AC199: =AA199 -> 0 | AD199: =IF(xxxx<=x00,ATAN(b00/a00*xxxx),AD197) -> -0.02666034837 | AE199: 0
C200: 0.97 | D200: 0.4370021694 | E200: 0.7164726456 | F200: 0.7032062758 | G200: 0.5 | H200: 0.716466966 | J200: =J199 -> -0.02 | K200: =1/SQRT(a0^2-b0^2*xx^2) -> 0.3333629669 | L200: =L199 -> -0.02 | M200: =IF(xx<=x0,1/SQRT(a0^2-b0^2*xx^2),M198) -> 0.3333629669 | N200: =N199 -> -0.01333372843 | O200: =O198 -> 0.5 | S200: 1.94 | T200: 0.2038931971 | U200: 1.0864917 | V200: 0.9126143805 | W200: 0.8174214199 | X200: 1.086510298 | Z200: =Z199 -> -0.04 | AA200: =1/SQRT(a00^2+b00^2*xxxx^2) -> 0.333214878 | AB200: =AB199 -> -0.04 | AC200: =IF(xxxx<=x00,1/SQRT(a00^2+b00^2*xxxx^2),AC198) -> 0.333214878 | AD200: =AD199 -> -0.02666034837 | AE200: =IF(xxxx<=x00,1/b00/COS(tt),AE198) -> 0.5001777462
... 203 more rows
